{"text_format":"1","workbook":"xlsx","n_sheets":11,"sheets":["HOME","GETTING STARTED","AGENCY PROFILE","WORKFORCE DATA","AGENCY STRATEGY"," EOP SUMMARY","CENTRAL DATA","CENTRAL ANALYSIS","DHRM ADMIN","IMPORTED DATA","DATA EXPORT"],"not_rendered":{"charts":12,"images":57,"macros":1,"external_links":0,"defined_names":8,"comments":0,"pivot_tables":0},"unopened":[],"bounds":{"document_bytes":16777216,"sheet_cells":100000,"rows_first":2000,"rows_last":500,"rows_between":2000,"halvings":0,"cell_chars":16384,"cell_head_chars":4096},"cells_cut":0,"cells_raw":0,"read":"whole","date_system":"1900"}

{"sheet":"HOME","index":0,"n_rows":38,"n_cols":30,"rows_kept":38,"cut":false,"hidden":false,"merged":[[4,25,6,27],[0,24,3,27],[15,7,15,10],[15,13,15,16],[15,19,15,22],[9,15,9,21],[0,23,1,23],[7,10,8,21],[32,2,35,4],[23,24,25,24],[37,2,37,20],[19,1,21,4],[23,7,35,10],[23,13,35,16],[19,19,21,22],[19,13,21,16],[19,7,21,10],[23,19,35,22],[23,1,31,4]]}
[" ",null,null,null,null,null,null,null,null,null,null,null,null,null,null,null,null,null,null,null,null,null,null,null,"DHRM ADMIN"]
[]
[]
[]
[null,null,null,null,null,null,null,null,null,null,null,null,null,null,null,null,null,null,null,null,null,null,null,null,null,{"$f":"AD6","v":"LOCKED"}]
[null,null,null,null,null,null,null,null,null,null,null,null,null,null,null,null,null,null,null,null,null,null,null,null,null,null,null,null,null,"LOCKED"]
[]
[null,null,null,null,null,null,null,null,null,null,{"$f":"IF('AGENCY PROFILE'!J29=\"\",\"\",'AGENCY PROFILE'!J29)","v":""}]
[]
[null,null,null,null,null,null,null,null,null,null,null,null,null,null,null,{"$f":"IF(K8=\"\",\"\",CONCATENATE(\"Fiscal Year \",'DHRM ADMIN'!P15))","v":""}]
[]
[]
[]
[]
[]
[null,null,null,null,null,null,null,"STEP % COMPLETION",null,null,null,null,null,"STEP % COMPLETION",null,null,null,null,null,"STEP % COMPLETION"]
[]
[]
[]
[null,"GETTING STARTED",null,null,null,null,null,"AGENCY PROFILE",null,null,null,null,null,"EOP WORKFORCE DATA\n & AGENCY STRATEGY",null,null,null,null,null,"EOP SUMMARY"]
[]
[]
[]
[null,"It is highly recommended first time users start here. \n\n\n reviews important features, setup, and instructions for using this template to its full potential. \n\n\n",null,null,null,null,null,"\n includes the overall agency information required to utilize this template, including the name, agency number, secretariat, and logo. \n\nIt also includes overall workforce information related to the employment opportunities plan. ",null,null,null,null,null,"\nidentifies specific data elements for agencies to interpret elements of their current workforce that relate to their EOP.\n\n\nguides agencies through a SWOT analysis exercise to interpret the current environment and utilize that, along with workforce data to create an action plan.",null,null,null,null,null,"\n compiles the information from the Agency Profile, EOP Workforce Data, and Agency Strategy tabs into a single, easy to read report. \n\nSome customization features can be adjusted on this tab. The report is formatted and can be exported as a PDF when finalized."]
[]
[]
[]
[]
[]
[]
[]
[]
[null,null,"Users can also import data from other tools on the Getting Started Tab.\n"]
[]
[]
[]
[]
[null,null,"For questions or assistance using this template, please contact DHRM Workforce Planning at dhrm.wfp@dhrm.virginia.gov.",null,null,null,null,null,null,null,null,null,null,null,null,null,null,null,null,null,null,null,"Version 1.1"]

{"sheet":"GETTING STARTED","index":1,"n_rows":134,"n_cols":16,"rows_kept":134,"cut":false,"hidden":false,"merged":[[5,2,7,14],[30,1,31,15],[35,3,40,7],[35,11,40,15],[42,3,47,7],[42,11,47,15],[32,1,33,15],[12,1,13,15],[14,1,16,15],[8,2,11,14],[74,5,82,13],[86,1,87,15],[65,5,72,13],[49,3,54,7],[49,11,54,15],[56,5,64,13],[100,1,104,15],[88,1,90,15],[118,1,119,15],[120,1,122,15],[133,1,133,9],[132,10,132,15],[133,10,133,14],[114,10,114,15],[115,1,115,9],[115,10,115,14],[98,1,99,15]]}
[]
[]
[]
[]
[]
[null,null,"GETTING STARTED"]
[]
[]
[null,null,"This tab reviews key features of this template and steps required in order to utilize all features. Taking the time to review each section will significantly enhance your understanding of the design and your ability to use the template efficiently.\nIt is highly recommended first time users review this tab."]
[]
[]
[]
[null,"Step 1: Review Overall Setup"]
[]
[null,"To use this template, it is recommended to follow the tabs in order from left to right, completing each step in order. For each step, instructions are included underneath. Some steps also provide sub-steps with additional instructions. Information required to be entered is noted by a yellow color and labeled either to the left or above the cell."]
[]
[]
[]
[]
[]
[]
[]
[]
[]
[]
[]
[]
[]
[]
[]
[null,"Step 2: Review Important Features of This Template"]
[]
[null,"This template utilizes various features to assist with entering and interpreting workforce information. Below are descriptions of the template's key features and design. "]
[]
[]
[null,null,null,"USE OF EXCEL MACROS\nThis template utilizes a series of excel macros, which are custom actions to automate tasks. This template performs best when using Excel 2016 or later.  \nNOTE: MACROS MUST BE ENABLED TO USE THEM. SEE BELOW TO LEARN HOW.",null,null,null,null,null,null,null,"EASY FILE NAVIGATION\nEach excel worksheet, or tab, houses related information which is compiled together into a single report. Links to each are frozen at the top of each tab. See the HOME tab for descriptions of each."]
[]
[]
[]
[]
[]
[]
[null,null,null,"COLOR GUIDED DATA ENTRY\nColors are used to identify what data should be entered and where. Yellow indicates required information, Green indicates optional information, and Gray indicates information that is not required",null,null,null,null,null,null,null,"BUILT-IN HELP FEATURE\nThis template has a built-in help feature. Click on the question mark in the blue circle for additional information, definitions, and steps to complete each section. NOTE: MACROS MUST BE ENABLED. THE TEMPLATE CANNOT BE EDITED WHILE OPEN. "]
[]
[]
[]
[]
[]
[]
[null,null,null,"PROGRESS INDICATORS\nThe home tab shows the overall progress for each stage of developing the Agency EOP. Each tab also has indicators for each specific step to show if they are complete or incomplete. ",null,null,null,null,null,null,null,"ONLINE INSTRUCTIONS\nA full step by step guide and data definitions can be found on the DHRM Workforce Planning website. "]
[]
[]
[]
[]
[]
[]
[null,null,null,null,null,"ADVANCED FEATURE: DATA IMPORT\nThis template is part of a suite of integrated workforce planning and development tools. Using these tools allows for information to easily be imported from one tool to the next. Data cannot be imported unless using a specific template, provided by DHRM upon request.\n MACROS MUST BE ENABLED TO UTILIZE THIS FEATURE."]
[]
[]
[]
[]
[]
[]
[]
[]
[null,null,null,null,null,"ADVANCED FEATURE: EASILY REVIEW PRIOR INFORMATION \nAfter information is imported, select areas of the template allow for easy viewing of the prior year responses. Information can only be viewed if data from the respective template was imported.  \n MACROS MUST BE ENABLED TO UTILIZE THIS FEATURE."]
[]
[]
[]
[]
[]
[]
[]
[]
[null,null,null,null,null,"TEMPLATE VERSIONS\nAs we continue to enhance this template, integrate it with other elements of workforce planning and development, or as changes to any mandates or guidance occurs, new versions of this template may be released. The version number is located on the home tab in the bottom right corner. \n\nIt is important to be using the most up to date version, which will be noted on the DHRM Workforce Planning Website. As new versions are released, the prior version data can be imported so that no progress is lost."]
[]
[]
[]
[]
[]
[]
[]
[]
[]
[]
[]
[null,"(Optional) Step 3: Enable Macros to Utilize Full Functionality"]
[]
[null,"When first opening the file, or anytime the filename changes, you will see a \"Security Warning\" at the top (shown in the picture below) indicating Macros have been disabled. Click the \"Enable Content\" button to enable macros for the file."]
[]
[]
[]
[]
[]
[]
[]
[]
[]
[null,"(Optional) Step 4: Import a Prior Version of the Employment Opportunities Plan Template"]
[]
[null,"If using the Employment Opportunities Plan Template for the first time or using the current version, this step can be skipped. For efficiency and integration, data from prior versions of the Employment Opportunities Plan can be imported. Imported data will automatically enter the information into the respective cells. Agencies are encouraged to still review the data for accuracy. Complete this step first to ensure no progress is lost. Importing data from other sources before a prior version of the Employment Opportunities Plan may result in data being overwritten."]
[]
[]
[]
[]
[]
[]
[]
[]
[]
[]
[]
[]
[]
[null,"Last Uploaded Date and Time",null,null,null,null,null,null,null,null,"Upload Status"]
[null,null,null,null,null,null,null,null,null,null,null,null,null,null,null,{"$f":"IF(K116=\"upload complete\",3,IF(K116=\"pending\",0,IF(K116=\"upload incomplete\",-1,\"\")))","v":""}]
[]
[]
[null,"(Optional) Step 5: Import Data from Other Sources"]
[]
[null,"For efficiency and integration to other workforce planning and development tools, data from the Prior Year Employment Opportunity Plan can be imported. Imported data will automatically enter the information into the respective cells. Agencies are encouraged to still review the data for accuracy."]
[]
[]
[]
[]
[]
[]
[]
[]
[]
[]
[]
[null,"Last Uploaded Date and Time",null,null,null,null,null,null,null,null,"Upload Status"]
[null,null,null,null,null,null,null,null,null,null,null,null,null,null,null,{"$f":"IF(K134=\"upload complete\",3,IF(K134=\"pending\",0,IF(K134=\"upload incomplete\",-1,\"\")))","v":""}]

{"sheet":"AGENCY PROFILE","index":2,"n_rows":65,"n_cols":18,"rows_kept":65,"cut":false,"hidden":false,"merged":[[0,17,3,20],[23,1,24,12],[23,13,24,15],[55,13,55,15],[25,1,26,15],[51,1,53,15],[8,2,11,14],[49,1,50,12],[49,13,50,15],[28,9,28,15],[29,9,29,15],[31,10,34,15],[39,1,40,12],[39,13,40,15],[41,1,42,15],[44,11,44,15],[45,13,45,15],[56,15,57,15],[5,2,7,14]]}
[null,null,null,null,null,null,null,null,null,null,null,null,null,null,null,null,null,"USER SETTINGS"]
[]
[]
[]
[]
[null,null,"AGENCY PROFILE"]
[]
[]
[null,null,"The Agency Profile of the Employment Opportunities Plan is a condensed version of the full Workforce Planning and Development Agency Profile. It includes the same general information, such as agency name, secretariat, number, and overall workforce data essential to the Employment Opportunities Plan."]
[]
[]
[]
[]
[]
[]
[]
[]
[]
[]
[]
[]
[]
[]
[null,"Step 1: Enter Agency Information",null,null,null,null,null,null,null,null,null,null,null,{"$f":"IF(AND(J29<>\"\"),\"Complete\",\"Incomplete\")","v":"Incomplete"}]
[]
[null,"INSTRUCTIONS: Please select the agency name from the drop down menu in the yellow box. The secretary and agency number will be displayed. An optional logo can added by clicking the \"insert logo\" button and using the \"Resize\" button to size the picture to be in the box with a green outline."]
[]
[]
[null,null,null,null,null,null,null,null," Agency Name:"]
[null,null,null,null,null,null,null,null," Secretariat:",{"$f":"IFERROR(IF(VLOOKUP($J$29,'CENTRAL DATA'!$A:$C,2,FALSE)=0,\"--\",VLOOKUP($J$29,'CENTRAL DATA'!$A:$C,2,FALSE)),\"\")","v":""}]
[null,null,null,null,null,null,null,null,null,null,null,null,null,null," Agency Number:",{"$f":"IFERROR(IF(VLOOKUP($J$29,'CENTRAL DATA'!$A:$C,3,FALSE)=0,\"--\",VLOOKUP($J$29,'CENTRAL DATA'!$A:$C,3,FALSE)),\"\")","v":""}]
[null,null,null,null,null,null,null,null,null,"Optional Agency Logo:"]
[null,null,null,null,null,null,null,null,null,"(Macros must be Enabled to Add Logo)"]
[]
[]
[]
[]
[]
[]
[null,"Step 2: Specify if the tempalte is used for the FY Summary or to take a Workforce Snapshot",null,null,null,null,null,null,null,null,null,null,null,{"$f":"IF(AND(J45<>\"\"),\"Complete\",\"Incomplete\")","v":"Incomplete"}]
[]
[null,"INSTRUCTIONS: Please select whether the agency is using this template to complete the mandated fiscal year employment opportunities plan or to take a workforce snapshot from the drop down menu in the yellow box. After, please enter the end of the fiscal year or the \"As of\" date."]
[]
[]
[null,null,null,null,null,null,null,null,null,null,"Is this for the Fiscal Year EOP or a Snapshop of the Workforce?"]
[null,null,null,null,null,null,null,null,null,null,null,null,{"$f":"IF(L45=\"Fiscal Year EOP\",\"Please enter the date of the end of the fiscal year (MM/DD/YYYY):\",IF(L45=\"Snapshot\",\"Please enter the snapshot as of date (MM/DD/YYYY):\",\"Date:\"))","v":"Date:"}]
[]
[]
[]
[null,"Step 3: Enter Classified Employee Workforce Information",null,null,null,null,null,null,null,null,null,null,null,{"$f":"IF(COUNTBLANK(P59:P65)=0,\"Complete\",\"Incomplete\")","v":"Incomplete"}]
[]
[null,"INSTRUCTIONS: Please enter the total number of classified employees and employees with disabilities for each FY in the yellow boxes. Please also enter the total employees with disabilities for each FY who are leaders (defined as individuals with 2 or more direct reports) and who are executives (defined as the agency head and their direct reports). Please enter the same information for Veterans with Disabilities at the Agency."]
[]
[]
[]
[null,null,null,null,null,null,null,null,null,null,null,null,null,"Workforce Information"]
[null,null,null,null,null,null,null,null,null,null,null,null,null,null,null,{"$f":"IF($L$45=\"Snapshot\",CONCATENATE(\"As of \",TEXT($N$46,\"MM/DD/YY\")),CONCATENATE(\"FY\",RIGHT('DHRM ADMIN'!$P$15,2)))","v":"FY00"}]
[null,null,null,null,null,null,null,null,null,null,null,null,null,{"$f":"CONCATENATE(\"FY\",RIGHT('DHRM ADMIN'!$P$15,2)-2)","v":"FY-2"},{"$f":"CONCATENATE(\"FY\",RIGHT('DHRM ADMIN'!$P$15,2)-1)","v":"FY-1"}]
[null,null,null,null,null,null,null,null,null,null,null,null,"Total Classified Employees at the Agency"]
[null,null,null,null,null,null,null,null,null,null,null,null,"Total Classified Employees with Disabilities at the Agency"]
[null,null,null,null,null,null,null,null,null,null,null,null,"Total Classified Employees with Disabilities who are Leaders/Supervisors (2 or more direct reports)"]
[null,null,null,null,null,null,null,null,null,null,null,null,"Total Classified Employees with Disabilities at the Agency who are Executives"]
[null,null,null,null,null,null,null,null,null,null,null,null,"Total Classified Veterans with Disabilities at the Agency"]
[null,null,null,null,null,null,null,null,null,null,null,null,"Total Classified Veterans with Disabilities who are Leaders/Supervisors (2 or more direct reports)"]
[null,null,null,null,null,null,null,null,null,null,null,null,"Total Classified Veterans with Disabilities at the Agency who are Executives"]

{"sheet":"WORKFORCE DATA","index":3,"n_rows":105,"n_cols":16,"rows_kept":105,"cut":false,"hidden":false,"merged":[[67,15,68,15],[75,15,76,15],[83,15,84,15],[91,15,92,15],[99,15,100,15],[59,1,60,12],[59,13,60,15],[61,1,65,15],[5,2,7,14],[8,2,12,14],[23,1,24,12],[23,13,24,15],[25,1,28,15],[46,1,47,12],[46,13,47,15],[48,1,50,15],[30,15,31,15],[38,15,39,15],[52,15,53,15]]}
[]
[]
[]
[]
[]
[null,null,"WORKFORCE DATA"]
[]
[]
[null,null,"The Workforce Data Tab guides agencies by identifying the key metrics included in the Employment Opportunities Plan, specifically recruitment and retention information. Data entered here feeds into a brief Workforce Insights tool on the Agency Strategy tab and into the overall EOP Summary. Data should be reflective of Classified Employees only for July 1st through May 31st of the reporting fiscal year."]
[]
[]
[]
[]
[]
[]
[]
[]
[]
[]
[]
[]
[]
[]
[null,"Step 1: Enter Classified Employee Recruitment Information",null,null,null,null,null,null,null,null,null,null,null,{"$f":"IF(AND(COUNTBLANK(P33:P36)=0,COUNTBLANK(P41:P44)=0),\"Complete\",\"Incomplete\")","v":"Incomplete"}]
[]
[null,"INSTRUCTIONS: Please enter the classified hiring and applicant information for the agency in the yellow boxes, to include the total hires, total applicants, and a breakdown of hires and applications for employees with disabilities. Please also enter the number of employees with disabilities that were hired to and applied to a leader/supervisor role (defined as individuals with 2 or more direct reports) and executive roles (defined as the agency head and their direct reports). "]
[]
[]
[]
[null,null,null,null,null,null,null,null,null,null,null,null,null,null,null,"Hiring Information"]
[null,null,null,null,null,null,null,null,null,null,null,null,null,null,null,{"$f":"IF('AGENCY PROFILE'!$L$45=\"Snapshot\",CONCATENATE(\"As of \",TEXT('AGENCY PROFILE'!$N$46,\"MM/DD/YY\")),CONCATENATE(\"FY\",RIGHT('DHRM ADMIN'!$P$15,2)))","v":"FY00"}]
[null,null,null,null,null,null,null,null,null,null,null,null,null,{"$f":"CONCATENATE(\"FY\",RIGHT('DHRM ADMIN'!$P$15,2)-2)","v":"FY-2"},{"$f":"CONCATENATE(\"FY\",RIGHT('DHRM ADMIN'!$P$15,2)-1)","v":"FY-1"}]
[null,null,null,null,null,null,null,null,null,null,null,null,"Total Classified Hires at the Agency"]
[null,null,null,null,null,null,null,null,null,null,null,null,"Total Classified Hires who were Employees with Disabilities"]
[null,null,null,null,null,null,null,null,null,null,null,null,"Total Classified Employees with Disabilities hired to Leader/Supervisor Role (2 or more direct reports)"]
[null,null,null,null,null,null,null,null,null,null,null,null,"Total Classified Employees with Disabilities hired to Executive Role"]
[]
[null,null,null,null,null,null,null,null,null,null,null,null,null,null,null,"Applicant Information"]
[null,null,null,null,null,null,null,null,null,null,null,null,null,null,null,{"$f":"IF('AGENCY PROFILE'!$L$45=\"Snapshot\",CONCATENATE(\"As of \",TEXT('AGENCY PROFILE'!$N$46,\"MM/DD/YY\")),CONCATENATE(\"FY\",RIGHT('DHRM ADMIN'!$P$15,2)))","v":"FY00"}]
[null,null,null,null,null,null,null,null,null,null,null,null,null,{"$f":"CONCATENATE(\"FY\",RIGHT('DHRM ADMIN'!$P$15,2)-2)","v":"FY-2"},{"$f":"CONCATENATE(\"FY\",RIGHT('DHRM ADMIN'!$P$15,2)-1)","v":"FY-1"}]
[null,null,null,null,null,null,null,null,null,null,null,null,"Total Classified Applicants to Positions at the Agency"]
[null,null,null,null,null,null,null,null,null,null,null,null,"Total Classified Applicants who were Employees with Disabilities"]
[null,null,null,null,null,null,null,null,null,null,null,null,"Total Classified Employees with Disabilities that applied for a Leader/Supervisor Role (2 or more direct reports)"]
[null,null,null,null,null,null,null,null,null,null,null,null,"Total Classified Employees with Disabilities that applied for an Executive Role"]
[]
[]
[null,"Step 2: Enter Alternative Hiring Process Information",null,null,null,null,null,null,null,null,null,null,null,{"$f":"IF(COUNTBLANK(P55:P57)=0,\"Complete\",\"Incomplete\")","v":"Incomplete"}]
[]
[null,"INSTRUCTIONS: Please enter the following information regarding the alternative hiring process, launched in April of 2022, to include the total number of individuals who applied using this process, the total hired from this process, and the total employees of those hired with this process who transitioned to a classified position."]
[]
[]
[null,null,null,null,null,null,null,null,null,null,null,null,null,null,null,"Alternative Hiring Information"]
[null,null,null,null,null,null,null,null,null,null,null,null,null,null,null,{"$f":"IF('AGENCY PROFILE'!$L$45=\"Snapshot\",CONCATENATE(\"As of \",TEXT('AGENCY PROFILE'!$N$46,\"MM/DD/YY\")),CONCATENATE(\"FY\",RIGHT('DHRM ADMIN'!$P$15,2)))","v":"FY00"}]
[null,null,null,null,null,null,null,null,null,null,null,null,null,{"$f":"CONCATENATE(\"FY\",RIGHT('DHRM ADMIN'!$P$15,2)-2)","v":"FY-2"},{"$f":"CONCATENATE(\"FY\",RIGHT('DHRM ADMIN'!$P$15,2)-1)","v":"FY-1"}]
[null,null,null,null,null,null,null,null,null,null,null,null,"Total Applicants that used the Alternative Hiring Process"]
[null,null,null,null,null,null,null,null,null,null,null,null,"Total Individuals Hired from Alternative Hiring Process"]
[null,null,null,null,null,null,null,null,null,null,null,null,"Total Employees Hired through Alternative Hiring Process that transitioned to a Classified Employee"]
[]
[]
[null,"Step 3: Enter Classified Employee Retention Information",null,null,null,null,null,null,null,null,null,null,null,{"$f":"IF(AND(COUNTBLANK(P70:P73)=0,COUNTBLANK(P78:P81)=0,COUNTBLANK(P86:P89)=0,COUNTBLANK(P94:P97)=0,COUNTBLANK(P102:P105)=0),\"Complete\",\"Incomplete\")","v":"Incomplete"}]
[]
[null,"INSTRUCTIONS: Please enter the classified retention information in the yellow boxes, to include the average years of service, number of internal promotions, number of internal transfers, number of voluntary separations, and number of external transfers to other state agencies for classified employees and for employees with disabilities. Please also enter the number employees with disabilities who are in a leader/supervisor role (defined as individuals with 2 or more direct reports) and for employees with disabilities in executive roles (defined as the agency head and their direct reports) for each of these information areas."]
[]
[]
[]
[]
[null,null,null,null,null,null,null,null,null,null,null,null,null,null,null,"Agency Service Information"]
[null,null,null,null,null,null,null,null,null,null,null,null,null,null,null,{"$f":"IF('AGENCY PROFILE'!$L$45=\"Snapshot\",CONCATENATE(\"As of \",TEXT('AGENCY PROFILE'!$N$46,\"MM/DD/YY\")),CONCATENATE(\"FY\",RIGHT('DHRM ADMIN'!$P$15,2)))","v":"FY00"}]
[null,null,null,null,null,null,null,null,null,null,null,null,null,{"$f":"CONCATENATE(\"FY\",RIGHT('DHRM ADMIN'!$P$15,2)-2)","v":"FY-2"},{"$f":"CONCATENATE(\"FY\",RIGHT('DHRM ADMIN'!$P$15,2)-1)","v":"FY-1"}]
[null,null,null,null,null,null,null,null,null,null,null,null,"Average Years of Service at the Agency for Classified Employees"]
[null,null,null,null,null,null,null,null,null,null,null,null,"Average Years of Service for Classified Employees with Disabilities"]
[null,null,null,null,null,null,null,null,null,null,null,null,"Average Years of Service for Classified Employees with Disabilities in a Leader/Supervisor Role (2 or more direct reports)"]
[null,null,null,null,null,null,null,null,null,null,null,null,"Average Years of Service for Classified Employees with Disabilities in an Executive Role"]
[]
[null,null,null,null,null,null,null,null,null,null,null,null,null,null,null,"Internal Promotions Information"]
[null,null,null,null,null,null,null,null,null,null,null,null,null,null,null,{"$f":"IF('AGENCY PROFILE'!$L$45=\"Snapshot\",CONCATENATE(\"As of \",TEXT('AGENCY PROFILE'!$N$46,\"MM/DD/YY\")),CONCATENATE(\"FY\",RIGHT('DHRM ADMIN'!$P$15,2)))","v":"FY00"}]
[null,null,null,null,null,null,null,null,null,null,null,null,null,{"$f":"CONCATENATE(\"FY\",RIGHT('DHRM ADMIN'!$P$15,2)-2)","v":"FY-2"},{"$f":"CONCATENATE(\"FY\",RIGHT('DHRM ADMIN'!$P$15,2)-1)","v":"FY-1"}]
[null,null,null,null,null,null,null,null,null,null,null,null,"Total Number of Internal Promotions of Classified Employees at the Agency"]
[null,null,null,null,null,null,null,null,null,null,null,null,"Total Classified Internal Promotions who were Employees with Disabilities"]
[null,null,null,null,null,null,null,null,null,null,null,null,"Total Classified Internal Promotions who were Employees with Disabilities to a Leader/Supervisor Role (2 or more direct reports)"]
[null,null,null,null,null,null,null,null,null,null,null,null,"Total Classified Internal Promotions who were Employees with Disabilities to an Executive Role"]
[]
[null,null,null,null,null,null,null,null,null,null,null,null,null,null,null,"Internal Transfer Information"]
[null,null,null,null,null,null,null,null,null,null,null,null,null,null,null,{"$f":"IF('AGENCY PROFILE'!$L$45=\"Snapshot\",CONCATENATE(\"As of \",TEXT('AGENCY PROFILE'!$N$46,\"MM/DD/YY\")),CONCATENATE(\"FY\",RIGHT('DHRM ADMIN'!$P$15,2)))","v":"FY00"}]
[null,null,null,null,null,null,null,null,null,null,null,null,null,{"$f":"CONCATENATE(\"FY\",RIGHT('DHRM ADMIN'!$P$15,2)-2)","v":"FY-2"},{"$f":"CONCATENATE(\"FY\",RIGHT('DHRM ADMIN'!$P$15,2)-1)","v":"FY-1"}]
[null,null,null,null,null,null,null,null,null,null,null,null,"Total Number of Internal Transfers of Classified Employees at the Agency"]
[null,null,null,null,null,null,null,null,null,null,null,null,"Total Classified Internal Transfers who were Employees with Disabilities"]
[null,null,null,null,null,null,null,null,null,null,null,null,"Total Classified Internal Transfers who were Employees with Disabilities to a Leader/Supervisor Role (2 or more direct reports)"]
[null,null,null,null,null,null,null,null,null,null,null,null,"Total Classified Internal Transfers who were Employees with Disabilities to an Executive Role"]
[]
[null,null,null,null,null,null,null,null,null,null,null,null,null,null,null,"Voluntary Separations Information"]
[null,null,null,null,null,null,null,null,null,null,null,null,null,null,null,{"$f":"IF('AGENCY PROFILE'!$L$45=\"Snapshot\",CONCATENATE(\"As of \",TEXT('AGENCY PROFILE'!$N$46,\"MM/DD/YY\")),CONCATENATE(\"FY\",RIGHT('DHRM ADMIN'!$P$15,2)))","v":"FY00"}]
[null,null,null,null,null,null,null,null,null,null,null,null,null,{"$f":"CONCATENATE(\"FY\",RIGHT('DHRM ADMIN'!$P$15,2)-2)","v":"FY-2"},{"$f":"CONCATENATE(\"FY\",RIGHT('DHRM ADMIN'!$P$15,2)-1)","v":"FY-1"}]
[null,null,null,null,null,null,null,null,null,null,null,null,"Total Number of Voluntary Separations of Classified Employees at the Agency"]
[null,null,null,null,null,null,null,null,null,null,null,null,"Total Classified Voluntary Separations who were Employees with Disabilities"]
[null,null,null,null,null,null,null,null,null,null,null,null,"Total Classified Voluntary Separations who were Employees with Disabilities to a Leader/Supervisor Role (2 or more direct reports)"]
[null,null,null,null,null,null,null,null,null,null,null,null,"Total Classified Voluntary Separations who were Employees with Disabilities to an Executive Role"]
[]
[null,null,null,null,null,null,null,null,null,null,null,null,null,null,null,"External Transfers (to other State Agencies) Information"]
[null,null,null,null,null,null,null,null,null,null,null,null,null,null,null,{"$f":"IF('AGENCY PROFILE'!$L$45=\"Snapshot\",CONCATENATE(\"As of \",TEXT('AGENCY PROFILE'!$N$46,\"MM/DD/YY\")),CONCATENATE(\"FY\",RIGHT('DHRM ADMIN'!$P$15,2)))","v":"FY00"}]
[null,null,null,null,null,null,null,null,null,null,null,null,null,{"$f":"CONCATENATE(\"FY\",RIGHT('DHRM ADMIN'!$P$15,2)-2)","v":"FY-2"},{"$f":"CONCATENATE(\"FY\",RIGHT('DHRM ADMIN'!$P$15,2)-1)","v":"FY-1"}]
[null,null,null,null,null,null,null,null,null,null,null,null,"Total Number of External Transfers of Classified Employees at the Agency"]
[null,null,null,null,null,null,null,null,null,null,null,null,"Total Classified External Transfers who were Employees with Disabilities"]
[null,null,null,null,null,null,null,null,null,null,null,null,"Total Classified External Transfers who were Employees with Disabilities to a Leader/Supervisor Role (2 or more direct reports)"]
[null,null,null,null,null,null,null,null,null,null,null,null,"Total Classified External Transfers who were Employees with Disabilities to an Executive Role"]

{"sheet":"AGENCY STRATEGY","index":4,"n_rows":416,"n_cols":19,"rows_kept":416,"cut":false,"hidden":false,"merged":[[41,3,42,4],[41,7,42,8],[41,11,42,12],[41,15,42,16],[132,4,136,6],[132,7,136,9],[132,10,136,12],[132,13,136,15],[131,10,131,12],[131,13,131,15],[128,2,129,15],[118,4,122,6],[118,7,122,9],[118,10,122,12],[118,13,122,15],[126,13,127,15],[123,10,124,12],[123,13,124,15],[126,2,127,12],[74,13,74,15],[74,10,74,12],[74,7,74,9],[74,4,74,6],[69,2,70,12],[410,1,411,15],[5,2,7,14],[62,1,63,12],[62,13,63,15],[64,1,67,15],[16,1,18,15],[14,1,15,15],[22,2,22,3],[21,0,21,4],[31,8,31,10],[25,1,25,3],[23,2,23,3],[21,8,21,10],[32,8,32,10],[93,13,93,15],[90,2,91,15],[80,13,84,15],[80,10,84,12],[80,7,84,9],[80,4,84,6],[88,13,89,15],[88,2,89,12],[69,13,70,15],[94,4,98,6],[71,2,72,15],[85,4,86,6],[85,7,86,9],[85,10,86,12],[85,13,86,15],[75,4,79,6],[75,7,79,9],[75,10,79,12],[75,13,79,15],[123,4,124,6],[123,7,124,9],[112,4,112,6],[112,7,112,9],[112,10,112,12],[112,13,112,15],[109,2,110,15],[131,4,131,6],[131,7,131,9],[113,4,117,6],[113,7,117,9],[113,10,117,12],[113,13,117,15],[99,4,103,6],[99,7,103,9],[99,10,103,12],[99,13,103,15],[107,13,108,15],[107,2,108,12],[93,4,93,6],[93,7,93,9],[93,10,93,12],[104,4,105,6],[104,7,105,9],[104,10,105,12],[104,13,105,15],[94,7,98,9],[94,10,98,12],[94,13,98,15],[137,4,141,6],[137,7,141,9],[137,10,141,12],[137,13,141,15],[146,1,147,12],[146,13,147,15],[153,13,154,15],[153,2,154,12],[155,2,157,15],[148,1,151,15],[221,5,222,6],[142,4,143,6],[142,7,143,9],[142,10,143,12],[142,13,143,15],[165,7,167,15],[168,7,170,15],[171,7,173,15],[174,7,176,15],[177,7,179,15],[159,5,161,15],[199,2,200,12],[199,13,200,15],[189,7,194,15],[188,7,188,15],[160,3,161,4],[166,5,167,6],[169,5,170,6],[172,5,173,6],[175,5,176,6],[178,5,179,6],[181,7,181,15],[182,7,187,15],[8,2,12,14],[349,7,351,15],[352,7,354,15],[355,7,357,15],[358,7,360,15],[361,7,363,15],[315,7,317,15],[337,2,338,12],[337,13,338,15],[339,2,341,15],[343,5,345,15],[297,5,299,15],[303,7,305,15],[306,7,308,15],[309,7,311,15],[312,7,314,15],[266,7,268,15],[269,7,271,15],[291,2,292,12],[291,13,292,15],[293,2,295,15],[247,2,249,15],[251,5,253,15],[201,2,203,15],[54,9,56,11],[408,1,409,15],[389,2,390,13],[391,2,394,15],[383,1,383,15],[260,7,262,15],[263,7,265,15],[214,7,216,15],[217,7,219,15],[220,7,222,15],[223,7,225,15],[245,2,246,12],[245,13,246,15],[257,7,259,15],[205,5,207,15],[211,7,213,15],[227,7,227,15],[228,7,233,15],[234,7,234,15],[235,7,240,15],[206,3,207,4],[212,5,213,6],[215,5,216,6],[218,5,219,6],[57,9,57,11],[54,13,56,15],[57,13,57,15],[55,2,57,7],[41,1,42,2],[41,5,42,6],[41,9,42,10],[41,13,42,14],[43,9,44,11],[43,13,44,15],[45,9,49,11],[45,13,49,15],[50,9,52,11],[50,13,52,15],[53,9,53,11],[53,13,53,15],[43,1,44,3],[45,1,49,3],[53,1,53,3],[50,1,52,3],[43,5,44,7],[45,5,49,7],[50,5,52,7],[53,5,53,7],[373,7,378,15],[344,3,345,4],[350,5,351,6],[353,5,354,6],[356,5,357,6],[359,5,360,6],[362,5,363,6],[365,7,365,15],[366,7,371,15],[372,7,372,15],[224,5,225,6],[273,7,273,15],[319,7,319,15],[320,7,325,15],[326,7,326,15],[327,7,332,15],[298,3,299,4],[304,5,305,6],[307,5,308,6],[310,5,311,6],[313,5,314,6],[316,5,317,6],[274,7,279,15],[280,7,280,15],[281,7,286,15],[252,3,253,4],[258,5,259,6],[261,5,262,6],[264,5,265,6],[267,5,268,6],[270,5,271,6]]}
[null,null,null,null,null,null,null,null,null,null,null,null,null,null,null,null,null,null,1]
[null,null,null,null,null,null,null,null,null,null,null,null,null,null,null,null,null,null,1]
[null,null,null,null,null,null,null,null,null,null,null,null,null,null,null,null,null,null,1]
[null,null,null,null,null,null,null,null,null,null,null,null,null,null,null,null,null,null,1]
[null,null,null,null,null,null,null,null,null,null,null,null,null,null,null,null,null,null,1]
[null,null,"AGENCY STRATEGY",null,null,null,null,null,null,null,null,null,null,null,null,null,null,null,1]
[null,null,null,null,null,null,null,null,null,null,null,null,null,null,null,null,null,null,1]
[null,null,null,null,null,null,null,null,null,null,null,null,null,null,null,null,null,null,1]
[null,null,"The Agency Strategy tab first presents a quick analysis of the workforce data (in the Workforce Insights section) to assist with completing a SWOT Analysis and Strategic Action Plan. The SWOT Analysis is a reflective exercise to note the strengths, weaknesses, opportunities and threats that impact the recruitment, retention, engagement, and development of employees with disabilities. The action plan is an exercise to develop specific goals, using a format that outlines up to 5 overall objectives and up to 5 corresponding action items for each. ",null,null,null,null,null,null,null,null,null,null,null,null,null,null,null,1]
[null,null,null,null,null,null,null,null,null,null,null,null,null,null,null,null,null,null,1]
[null,null,null,null,null,null,null,null,null,null,null,null,null,null,null,null,null,null,1]
[null,null,null,null,null,null,null,null,null,null,null,null,null,null,null,null,null,null,1]
[null,null,null,null,null,null,null,null,null,null,null,null,null,null,null,null,null,null,1]
[null,null,null,null,null,null,null,null,null,null,null,null,null,null,null,null,null,null,1]
[null,"Workforce Insights",null,null,null,null,null,null,null,null,null,null,null,null,null,null,null,null,1]
[null,null,null,null,null,null,null,null,null,null,null,null,null,null,null,null,null,null,1]
[null,"OPTIONAL USE: This workforce insights section provides a brief review of the information entered on the Agency Profile and Workforce Data tabs to assist with interpreting workforce data that can help in completing steps 1 and 2 of the Agency Strategy (this tab). To adjust the graphics, select a fiscal year and demographic group from the dropdown menus in the yellow boxes.",null,null,null,null,null,null,null,null,null,null,null,null,null,null,null,null,1]
[null,null,null,null,null,null,null,null,null,null,null,null,null,null,null,null,null,null,1]
[null,null,null,null,null,null,null,null,null,null,null,null,null,null,null,null,null,null,1]
[null,null,null,null,null,null,null,null,null,null,null,null,null,null,null,null,null,null,1]
[null,null,null,null,null,null,null,null,null,null,null,null,null,null,null,null,null,null,1]
["Select Items Below to Change Graphics:",null,null,null,null,null,null,null,"Fiscal Year Entry / Exit",null,null,null,null,null,null,null,null,null,1]
[null,"Fiscal Year:","FY23",null,null,null,null,null,null,"Total Applicants",{"$f":"IFERROR('CENTRAL ANALYSIS'!B45,\"\")","v":""},null,null,null,null,null,null,null,1]
[null,"Demographic","ALL",null,null,null,null,null,null,"Total Hires",{"$f":"IFERROR('CENTRAL ANALYSIS'!B46,\"\")","v":""},null,null,null,null,null,null,null,1]
[null,null,null,null,null,null,null,null,null,"Total Voluntary Separations",{"$f":"IFERROR('CENTRAL ANALYSIS'!B47,\"\")","v":""},null,null,null,null,null,null,null,1]
[null,"Fiscal Year Demographics",null,null,null,null,null,null,null,"Total External Transfers",{"$f":"IFERROR('CENTRAL ANALYSIS'!B48,\"\")","v":""},null,null,null,null,null,null,null,1]
[null,null,"Employees with Disabilities",{"$f":"IFERROR('CENTRAL ANALYSIS'!C25,\"\")","v":""},null,null,null,null,null,null,null,null,null,null,null,null,null,null,1]
[null,null,"…who are Leaders/Sups.",{"$f":"IFERROR('CENTRAL ANALYSIS'!D25,\"\")","v":""},null,null,null,null,null,null,null,null,null,null,null,null,null,null,1]
[null,null,"…who are Executives",{"$f":"IFERROR('CENTRAL ANALYSIS'!E25,\"\")","v":""},null,null,null,null,null,null,null,null,null,null,null,null,null,null,1]
[null,null,"…who are Non-Leaders",{"$f":"IFERROR('CENTRAL ANALYSIS'!F25,\"\")","v":""},null,null,null,null,null,null,null,null,null,null,null,null,null,null,1]
[null,null,null,null,null,null,null,null,null,null,null,null,null,null,null,null,null,null,1]
[null,null,null,null,null,null,null,null,null,null,null,null,null,null,null,null,null,null,1]
[null,null,null,null,null,null,null,null,"Internal Mobility",null,null,null,null,null,null,null,null,null,1]
[null,null,null,null,null,null,null,null,null,"Promotions",{"$f":"IFERROR('CENTRAL ANALYSIS'!B59,\"\")","v":""},null,null,null,null,null,null,null,1]
[null,null,null,null,null,null,null,null,null,"Internal Transfers",{"$f":"IFERROR('CENTRAL ANALYSIS'!B60,\"\")","v":""},null,null,null,null,null,null,null,1]
[null,null,null,null,null,null,null,null,null,null,null,null,null,null,null,null,null,null,1]
[null,null,null,null,null,null,null,null,null,null,null,null,null,null,null,null,null,null,1]
[null,null,null,null,null,null,null,null,null,null,null,null,null,null,null,null,null,null,1]
[null,null,null,null,null,null,null,null,null,null,null,null,null,null,null,null,null,null,1]
[null,null,null,null,null,null,null,null,null,null,null,null,null,null,null,null,null,null,1]
[null,null,null,null,null,null,null,null,null,null,null,null,null,null,null,null,null,null,1]
[null,{"$f":"'CENTRAL ANALYSIS'!J24","v":{"$error":"#VALUE!"}},null,{"$f":"'CENTRAL ANALYSIS'!J31","v":""},null,{"$f":"'CENTRAL ANALYSIS'!K24","v":{"$error":"#VALUE!"}},null,{"$f":"'CENTRAL ANALYSIS'!K31","v":""},null,{"$f":"'CENTRAL ANALYSIS'!L24","v":{"$error":"#N/A"}},null,{"$f":"'CENTRAL ANALYSIS'!L31","v":""},null,{"$f":"'CENTRAL ANALYSIS'!M24","v":{"$error":"#N/A"}},null,{"$f":"'CENTRAL ANALYSIS'!M31","v":""},null,null,1]
[null,null,null,null,null,null,null,null,null,null,null,null,null,null,null,null,null,null,1]
[null,"Hire Rate",null,null,null,"Candidate Hire Rate",null,null,null,"Internal Mobility Rate",null,null,null,"Vol. Separation Rate",null,null,null,null,1]
[null,null,null,null,null,"Candidate Hire Rate",null,null,null,null,null,null,null,"Candidate Hire Rate",null,null,null,null,1]
[null,"Hire Rate is the total number of hires of individuals with disabilities divided by the total number of employees.",null,null,null,"Candidate Hire Rate is the total number of hires of individuals with disabilities by the total number of applicants with disabilities.",null,null,null,"Internal Mobility Rate is the total number of internal promotions and transfers of individuals with disabilities divided by the total number of employees.",null,null,null,"Vol. Separation Rate is the total number of external transfers and voluntary separations of individuals with disabilities divided by the total number of employees.",null,null,null,null,1]
[null,null,null,null,null,null,null,null,null,null,null,null,null,null,null,null,null,null,1]
[null,null,null,null,null,null,null,null,null,null,null,null,null,null,null,null,null,null,1]
[null,null,null,null,null,null,null,null,null,null,null,null,null,null,null,null,null,null,1]
[null,null,null,null,null,null,null,null,null,null,null,null,null,null,null,null,null,null,1]
[null,{"$f":"'CENTRAL ANALYSIS'!J25","v":""},null,null,null,{"$f":"'CENTRAL ANALYSIS'!K25","v":""},null,null,null,{"$f":"'CENTRAL ANALYSIS'!L25","v":{"$error":"#N/A"}},null,null,null,{"$f":"'CENTRAL ANALYSIS'!M25","v":""},null,null,null,null,1]
[null,null,null,null,null,null,null,null,null,null,null,null,null,null,null,null,null,null,1]
[null,null,null,null,null,null,null,null,null,null,null,null,null,null,null,null,null,null,1]
[null,"Total Hires",null,null,null,"Total Applicants",null,null,null,"Internal Promotions",null,null,null,"External Transfers",null,null,null,null,1]
[null,null,null,null,null,null,null,null,null,{"$f":"'CENTRAL ANALYSIS'!L26","v":{"$error":"#N/A"}},null,null,null,{"$f":"'CENTRAL ANALYSIS'!M26","v":""},null,null,null,null,1]
[null,null,"Percent changes denote differences compared to the prior fiscal year.",null,null,null,null,null,null,null,null,null,null,null,null,null,null,null,1]
[null,null,null,null,null,null,null,null,null,null,null,null,null,null,null,null,null,null,1]
[null,null,null,null,null,null,null,null,null,"Internal Transfers",null,null,null,"Voluntary Separations",null,null,null,null,1]
[null,null,null,null,null,null,null,null,null,null,null,null,null,null,null,null,null,null,1]
[null,null,null,null,null,null,null,null,null,null,null,null,null,null,null,null,null,null,1]
[null,null,null,null,null,null,null,null,null,null,null,null,null,null,null,null,null,null,1]
[null,null,null,null,null,null,null,null,null,null,null,null,null,null,null,null,null,null,1]
[null,"Step 1: Complete a SWOT Analysis for the Agency",null,null,null,null,null,null,null,null,null,null,null,{"$f":"IF(COUNTIFS(N70,\"Complete\",N89,\"Complete\",N108,\"Complete\",N127,\"Complete\")=1,\"Complete\",\"Incomplete\")","v":"Incomplete"},null,null,null,null,1]
[null,null,null,null,null,null,null,null,null,null,null,null,null,null,null,null,null,null,1]
[null,"INSTRUCTIONS: A SWOT analysis (Strengths, Weaknesses, Opportunities, and Threats) is one of many tools organizations can utilize to reflect on their internal and external environments. See below for a description of each area of the SWOT analysis. Enter a brief, high level, description of the items in each respective category (recruitment, retention, engagement, and development) for each area of the analysis. Use the check box beneath each category if there is nothing to enter. ",null,null,null,null,null,null,null,null,null,null,null,null,null,null,null,null,1]
[null,null,null,null,null,null,null,null,null,null,null,null,null,null,null,null,null,null,1]
[null,null,null,null,null,null,null,null,null,null,null,null,null,null,null,null,null,null,1]
[null,null,null,null,null,null,null,null,null,null,null,null,null,null,null,null,null,null,1]
[null,null,null,null,null,null,null,null,null,null,null,null,null,null,null,null,null,null,1]
[null,null,"Step 1(a): Enter Agency Strengths",null,null,null,null,null,null,null,null,null,null,{"$f":"IF(SUM('CENTRAL ANALYSIS'!B68:E68)=4,\"Complete\",\"Incomplete\")","v":"Incomplete"},null,null,null,null,1]
[null,null,null,null,null,null,null,null,null,null,null,null,null,null,null,null,null,null,1]
[null,null,"Strengths are elements INTERNAL to the Agency (defined as being within the control of the Agency) that ENHANCE an Agency's ability to recruit, retain, engage, and/or develop employees with disabilities.  ",null,null,null,null,null,null,null,null,null,null,null,null,null,null,null,1]
[null,null,null,null,null,null,null,null,null,null,null,null,null,null,null,null,null,null,1]
[null,null,null,null,null,null,null,null,null,null,null,null,null,null,null,null,null,null,1]
[null,null,null,null,"Recruitment",null,null,"Retention",null,null,"Engagement",null,null,"Learning / Development",null,null,null,null,1]
[null,null,null,null,null,null,null,0,null,null,null,null,null,0,null,null,null,null,0]
[null,null,null,null,null,null,null,null,null,null,null,null,null,null,null,null,null,null,0]
[null,null,null,null,null,null,null,null,null,null,null,null,null,null,null,null,null,null,0]
[null,null,null,null,null,null,null,null,null,null,null,null,null,null,null,null,null,null,0]
[null,null,null,null,null,null,null,null,null,null,null,null,null,null,null,null,null,null,0]
[null,null,null,null,null,null,null,null,null,null,null,null,null,null,null,null,null,null,1]
[null,null,null,null,null,null,null,null,null,null,null,null,null,null,null,null,null,null,1]
[null,null,null,null,null,null,null,null,null,null,null,null,null,null,null,null,null,null,1]
[null,null,null,null,null,null,null,null,null,null,null,null,null,null,null,null,null,null,1]
[null,null,null,null,null,null,null,null,null,null,null,null,null,null,null,null,null,null,1]
[null,null,null,null,null,null,null,null,null,null,null,null,null,null,null,null,null,null,1]
[null,null,null,null,null,null,null,null,null,null,null,null,null,null,null,null,null,null,1]
[null,null,null,null,null,null,null,null,null,null,null,null,null,null,null,null,null,null,1]
[null,null,"Step 1(b): Enter Agency Weaknesses",null,null,null,null,null,null,null,null,null,null,{"$f":"IF(SUM('CENTRAL ANALYSIS'!B73:E73)=4,\"Complete\",\"Incomplete\")","v":"Incomplete"},null,null,null,null,1]
[null,null,null,null,null,null,null,null,null,null,null,null,null,null,null,null,null,null,1]
[null,null,"Weaknesses are elements INTERNAL to the Agency (defined as being within the control of the Agency) that INHIBIT an Agency's ability to recruit, retain, engage, and/or develop employees with disabilities.  ",null,null,null,null,null,null,null,null,null,null,null,null,null,null,null,1]
[null,null,null,null,null,null,null,null,null,null,null,null,null,null,null,null,null,null,1]
[null,null,null,null,null,null,null,null,null,null,null,null,null,null,null,null,null,null,1]
[null,null,null,null,"Recruitment",null,null,"Retention",null,null,"Engagement",null,null,"Learning / Development",null,null,null,null,1]
[null,null,null,null,null,null,null,null,null,null,0,null,null,0,null,null,null,null,0]
[null,null,null,null,null,null,null,null,null,null,null,null,null,null,null,null,null,null,0]
[null,null,null,null,null,null,null,null,null,null,null,null,null,null,null,null,null,null,0]
[null,null,null,null,null,null,null,null,null,null,null,null,null,null,null,null,null,null,0]
[null,null,null,null,null,null,null,null,null,null,null,null,null,null,null,null,null,null,0]
[null,null,null,null,null,null,null,null,null,null,null,null,null,null,null,null,null,null,1]
[null,null,null,null,null,null,null,null,null,null,null,null,null,null,null,null,null,null,1]
[null,null,null,null,null,null,null,null,null,null,null,null,null,null,null,null,null,null,1]
[null,null,null,null,null,null,null,null,null,null,null,null,null,null,null,null,null,null,1]
[null,null,null,null,null,null,null,null,null,null,null,null,null,null,null,null,null,null,1]
[null,null,null,null,null,null,null,null,null,null,null,null,null,null,null,null,null,null,1]
[null,null,null,null,null,null,null,null,null,null,null,null,null,null,null,null,null,null,1]
[null,null,null,null,null,null,null,null,null,null,null,null,null,null,null,null,null,null,1]
[null,null,"Step 1(c): Enter Agency Opportunities",null,null,null,null,null,null,null,null,null,null,{"$f":"IF(SUM('CENTRAL ANALYSIS'!B78:E78)=4,\"Complete\",\"Incomplete\")","v":"Incomplete"},null,null,null,null,1]
[null,null,null,null,null,null,null,null,null,null,null,null,null,null,null,null,null,null,1]
[null,null,"Opportunities are elements EXTERNAL to the Agency (defined as being out of the control of the Agency) that may ENHANCE an Agency's ability to recruit, retain, engage, and/or develop employees with disabilities.  ",null,null,null,null,null,null,null,null,null,null,null,null,null,null,null,1]
[null,null,null,null,null,null,null,null,null,null,null,null,null,null,null,null,null,null,1]
[null,null,null,null,null,null,null,null,null,null,null,null,null,null,null,null,null,null,1]
[null,null,null,null,"Recruitment",null,null,"Retention",null,null,"Engagement",null,null,"Learning / Development",null,null,null,null,1]
[null,null,null,null,null,null,null,null,null,null,null,null,null,0,null,null,null,null,0]
[null,null,null,null,null,null,null,null,null,null,null,null,null,null,null,null,null,null,0]
[null,null,null,null,null,null,null,null,null,null,null,null,null,null,null,null,null,null,0]
[null,null,null,null,null,null,null,null,null,null,null,null,null,null,null,null,null,null,0]
[null,null,null,null,null,null,null,null,null,null,null,null,null,null,null,null,null,null,0]
[null,null,null,null,null,null,null,null,null,null,null,null,null,null,null,null,null,null,1]
[null,null,null,null,null,null,null,null,null,null,null,null,null,null,null,null,null,null,1]
[null,null,null,null,null,null,null,null,null,null,null,null,null,null,null,null,null,null,1]
[null,null,null,null,null,null,null,null,null,null,null,null,null,null,null,null,null,null,1]
[null,null,null,null,null,null,null,null,null,null,null,null,null,null,null,null,null,null,1]
[null,null,null,null,null,null,null,null,null,null,null,null,null,null,null,null,null,null,1]
[null,null,null,null,null,null,null,null,null,null,null,null,null,null,null,null,null,null,1]
[null,null,null,null,null,null,null,null,null,null,null,null,null,null,null,null,null,null,1]
[null,null,"Step 1(d): Enter Agency Threats",null,null,null,null,null,null,null,null,null,null,{"$f":"IF(SUM('CENTRAL ANALYSIS'!B83:E83)=4,\"Complete\",\"Incomplete\")","v":"Incomplete"},null,null,null,null,1]
[null,null,null,null,null,null,null,null,null,null,null,null,null,null,null,null,null,null,1]
[null,null,"Threats are elements EXTERNAL to the Agency (defined as being out of the control of the Agency) that may INHIBIT an Agency's ability to recruit, retain, engage, and/or develop employees with disabilities.  ",null,null,null,null,null,null,null,null,null,null,null,null,null,null,null,1]
[null,null,null,null,null,null,null,null,null,null,null,null,null,null,null,null,null,null,1]
[null,null,null,null,null,null,null,null,null,null,null,null,null,null,null,null,null,null,1]
[null,null,null,null,"Recruitment",null,null,"Retention",null,null,"Engagement",null,null,"Learning / Development",null,null,null,null,1]
[null,null,null,null,null,null,null,null,null,null,0,null,null,0,null,null,null,null,0]
[null,null,null,null,null,null,null,null,null,null,null,null,null,null,null,null,null,null,0]
[null,null,null,null,null,null,null,null,null,null,null,null,null,null,null,null,null,null,0]
[null,null,null,null,null,null,null,null,null,null,null,null,null,null,null,null,null,null,0]
[null,null,null,null,null,null,null,null,null,null,null,null,null,null,null,null,null,null,0]
[null,null,null,null,null,null,null,null,null,null,null,null,null,null,null,null,null,null,1]
[null,null,null,null,null,null,null,null,null,null,null,null,null,null,null,null,null,null,1]
[null,null,null,null,null,null,null,null,null,null,null,null,null,null,null,null,null,null,1]
[null,null,null,null,null,null,null,null,null,null,null,null,null,null,null,null,null,null,1]
[null,null,null,null,null,null,null,null,null,null,null,null,null,null,null,null,null,null,1]
[null,null,null,null,null,null,null,null,null,null,null,null,null,null,null,null,null,null,1]
[null,null,null,null,null,null,null,null,null,null,null,null,null,null,null,null,null,null,1]
[null,null,null,null,null,null,null,null,null,null,null,null,null,null,null,null,null,null,1]
[null,null,null,null,null,null,null,null,null,null,null,null,null,null,null,null,null,null,1]
[null,"Step 2: Create, Track, or Modify Agency Strategy (If not using Macros, go to Step 2(a))",null,null,null,null,null,null,null,null,null,null,null,{"$f":"IF('CENTRAL ANALYSIS'!$B$90=0,\"Incomplete\",IF(COUNTIF(C154:P352,\"Complete\")='CENTRAL ANALYSIS'!$B$90,\"Complete\",\"Incomplete\"))","v":"Incomplete"},null,null,null,null,1]
[null,null,null,null,null,null,null,null,null,null,null,null,null,null,null,null,null,null,1]
[null,"INSTRUCTIONS: Using both the Workforce Insights and SWOT Analysis, please either create a strategic action plan, provide progress updates for current objectives, or modify the existing agency strategy to address the recruitment, retention, engagement and development of employees with disabilities. Each item should include an overall objective statement and then specific action items to take in order to fulfill that objective. Objectives can be added by clicking the \"Add Objective\" button, for a total of 5 overall objectives per plan.",null,null,null,null,null,null,null,null,null,null,null,null,null,null,null,null,1]
[null,null,null,null,null,null,null,null,null,null,null,null,null,null,null,null,null,null,1]
[null,null,null,null,null,null,null,null,null,null,null,null,null,null,null,null,null,null,1]
[null,null,null,null,null,null,null,null,null,null,null,null,null,null,null,null,null,null,1]
[null,null,null,null,null,null,null,null,null,null,null,null,null,null,null,null,null,null,1]
[null,null,"Objective",null,null,null,null,null,null,null,null,null,null,{"$f":"IF(S154<>1,\"\",IF(AND('CENTRAL ANALYSIS'!$D$91='CENTRAL ANALYSIS'!$B$97+1,D161<>\"◄NEW►\",H189<>\"\",H190<>\"\"),\"Complete\",IF(AND('CENTRAL ANALYSIS'!$D$91='CENTRAL ANALYSIS'!$B$97+1,D161=\"◄NEW►\"),\"Complete\",\"Incomplete\")))","v":""},null,null,null,null,{"$f":"IF('CENTRAL ANALYSIS'!$B$90>=1,1,0)","v":0}]
[null,null,null,null,null,null,null,null,null,null,null,null,null,null,null,null,null,null,{"$f":"IF('CENTRAL ANALYSIS'!$B$90>=1,1,0)","v":0}]
[null,null,"Please enter the item objective statement and corresponding action items. Action items can be added by clicking the \"Add Action Item\" button, or existing actions can be modified, for a total of 5 action items per each objective. Action items should describe what the action is and how it will be measured. A brief summary of progress can be provided by clicking the \"Add Progress Update\" button for existing objectives. ",null,null,null,null,null,null,null,null,null,null,null,null,null,null,null,{"$f":"IF('CENTRAL ANALYSIS'!$B$90>=1,1,0)","v":0}]
[null,null,null,null,null,null,null,null,null,null,null,null,null,null,null,null,null,null,{"$f":"IF('CENTRAL ANALYSIS'!$B$90>=1,1,0)","v":0}]
[null,null,null,null,null,null,null,null,null,null,null,null,null,null,null,null,null,null,{"$f":"IF('CENTRAL ANALYSIS'!$B$90>=1,1,0)","v":0}]
[null,null,null,null,null,null,null,null,null,null,null,null,null,null,null,null,null,null,{"$f":"IF('CENTRAL ANALYSIS'!$B$90>=1,1,0)","v":0}]
[null,null,null,null,"Overall Objective Statement",null,null,null,null,null,null,null,null,null,null,null,null,null,{"$f":"IF('CENTRAL ANALYSIS'!$B$90>=1,1,0)","v":0}]
[null,null,null,{"$f":"IF($F$160='IMPORTED DATA'!$O$71,\"\",IF(AND('IMPORTED DATA'!$O$71=0,'AGENCY STRATEGY'!$F$160<>\"\"),'CENTRAL DATA'!$M$15,IF(AND('IMPORTED DATA'!$O$71<>0,'IMPORTED DATA'!$O$71<>'AGENCY STRATEGY'!$F$160),'CENTRAL DATA'!$M$14,\"\")))","v":""},null,null,null,null,null,null,null,null,null,null,null,null,null,null,{"$f":"IF('CENTRAL ANALYSIS'!$B$90>=1,1,0)","v":0}]
[null,null,null,null,null,null,null,null,null,null,null,null,null,null,null,null,null,null,{"$f":"IF('CENTRAL ANALYSIS'!$B$90>=1,1,0)","v":0}]
[null,null,null,null,null,null,null,null,null,null,null,null,null,null,null,null,null,null,{"$f":"IF('CENTRAL ANALYSIS'!$B$90>=1,1,0)","v":0}]
[null,null,null,null,null,null,null,null,null,null,null,null,null,null,null,null,null,null,{"$f":"IF('CENTRAL ANALYSIS'!$B$90>=1,1,0)","v":0}]
[null,null,null,null,null,null,null,null,null,null,null,null,null,null,null,null,null,null,{"$f":"IF('CENTRAL ANALYSIS'!$B$90>=1,1,0)","v":0}]
[null,null,null,null,null,null,"Action Item",null,null,null,null,null,null,null,null,null,null,null,{"$f":"IF('CENTRAL ANALYSIS'!$B$97>=1,1,0)","v":0}]
[null,null,null,null,null,{"$f":"IF($H$166='IMPORTED DATA'!$O$72,\"\",IF(AND('IMPORTED DATA'!$O$72=0,'AGENCY STRATEGY'!$H$166<>\"\"),'CENTRAL DATA'!$M$15,IF(AND('IMPORTED DATA'!$O$72<>0,'IMPORTED DATA'!$O$72<>'AGENCY STRATEGY'!$H$166),'CENTRAL DATA'!$M$14,\"\")))","v":""},null,null,null,null,null,null,null,null,null,null,null,null,{"$f":"IF('CENTRAL ANALYSIS'!$B$97>=1,1,0)","v":0}]
[null,null,null,null,null,null,null,null,null,null,null,null,null,null,null,null,null,null,{"$f":"IF('CENTRAL ANALYSIS'!$B$97>=1,1,0)","v":0}]
[null,null,null,null,null,null,"Action Item",null,null,null,null,null,null,null,null,null,null,null,{"$f":"IF('CENTRAL ANALYSIS'!$B$97>=2,1,0)","v":0}]
[null,null,null,null,null,{"$f":"IF($H$169='IMPORTED DATA'!$O$73,\"\",IF(AND('IMPORTED DATA'!$O$73=0,'AGENCY STRATEGY'!$H$169<>\"\"),'CENTRAL DATA'!$M$15,IF(AND('IMPORTED DATA'!$O$73<>0,'IMPORTED DATA'!$O$73<>'AGENCY STRATEGY'!$H$169),'CENTRAL DATA'!$M$14,\"\")))","v":""},null,null,null,null,null,null,null,null,null,null,null,null,{"$f":"IF('CENTRAL ANALYSIS'!$B$97>=2,1,0)","v":0}]
[null,null,null,null,null,null,null,null,null,null,null,null,null,null,null,null,null,null,{"$f":"IF('CENTRAL ANALYSIS'!$B$97>=2,1,0)","v":0}]
[null,null,null,null,null,null,"Action Item",null,null,null,null,null,null,null,null,null,null,null,{"$f":"IF('CENTRAL ANALYSIS'!$B$97>=3,1,0)","v":0}]
[null,null,null,null,null,{"$f":"IF($H$172='IMPORTED DATA'!$O$74,\"\",IF(AND('IMPORTED DATA'!$O$74=0,'AGENCY STRATEGY'!$H$172<>\"\"),'CENTRAL DATA'!$M$15,IF(AND('IMPORTED DATA'!$O$74<>0,'IMPORTED DATA'!$O$74<>'AGENCY STRATEGY'!$H$172),'CENTRAL DATA'!$M$14,\"\")))","v":""},null,null,null,null,null,null,null,null,null,null,null,null,{"$f":"IF('CENTRAL ANALYSIS'!$B$97>=3,1,0)","v":0}]
[null,null,null,null,null,null,null,null,null,null,null,null,null,null,null,null,null,null,{"$f":"IF('CENTRAL ANALYSIS'!$B$97>=3,1,0)","v":0}]
[null,null,null,null,null,null,"Action Item",null,null,null,null,null,null,null,null,null,null,null,{"$f":"IF('CENTRAL ANALYSIS'!$B$97>=4,1,0)","v":0}]
[null,null,null,null,null,{"$f":"IF($H$175='IMPORTED DATA'!$O$75,\"\",IF(AND('IMPORTED DATA'!$O$75=0,'AGENCY STRATEGY'!$H$175<>\"\"),'CENTRAL DATA'!$M$15,IF(AND('IMPORTED DATA'!$O$75<>0,'IMPORTED DATA'!$O$75<>'AGENCY STRATEGY'!$H$175),'CENTRAL DATA'!$M$14,\"\")))","v":""},null,null,null,null,null,null,null,null,null,null,null,null,{"$f":"IF('CENTRAL ANALYSIS'!$B$97>=4,1,0)","v":0}]
[null,null,null,null,null,null,null,null,null,null,null,null,null,null,null,null,null,null,{"$f":"IF('CENTRAL ANALYSIS'!$B$97>=4,1,0)","v":0}]
[null,null,null,null,null,null,"Action Item",null,null,null,null,null,null,null,null,null,null,null,{"$f":"IF('CENTRAL ANALYSIS'!$B$97>=5,1,0)","v":0}]
[null,null,null,null,null,{"$f":"IF($H$178='IMPORTED DATA'!$O$76,\"\",IF(AND('IMPORTED DATA'!$O$76=0,'AGENCY STRATEGY'!$H$178<>\"\"),'CENTRAL DATA'!$M$15,IF(AND('IMPORTED DATA'!$O$76<>0,'IMPORTED DATA'!$O$76<>'AGENCY STRATEGY'!$H$178),'CENTRAL DATA'!$M$14,\"\")))","v":""},null,null,null,null,null,null,null,null,null,null,null,null,{"$f":"IF('CENTRAL ANALYSIS'!$B$97>=5,1,0)","v":0}]
[null,null,null,null,null,null,null,null,null,null,null,null,null,null,null,null,null,null,{"$f":"IF('CENTRAL ANALYSIS'!$B$97>=5,1,0)","v":0}]
[null,null,null,null,null,null,null,null,null,null,null,null,null,null,null,null,null,null,{"$f":"IF('CENTRAL ANALYSIS'!$F$91=\"yes\",1,0)","v":0}]
[null,null,null,null,null,null,"Date of Update",null,null,null,null,null,null,null,null,null,null,null,0]
[null,null,null,null,null,null,"Objective Progress Summary",null,null,null,null,null,null,null,null,null,null,null,0]
[null,null,null,null,null,null,null,null,null,null,null,null,null,null,null,null,null,null,0]
[null,null,null,null,null,null,null,null,null,null,null,null,null,null,null,null,null,null,0]
[null,null,null,null,null,null,null,null,null,null,null,null,null,null,null,null,null,null,0]
[null,null,null,null,null,null,null,null,null,null,null,null,null,null,null,null,null,null,0]
[null,null,null,null,null,null,null,null,null,null,null,null,null,null,null,null,null,null,0]
[null,null,null,null,null,null,"Date of Update",null,null,null,null,null,null,null,null,null,null,null,{"$f":"IF('CENTRAL ANALYSIS'!$F$91=\"yes\",1,0)","v":0}]
[null,null,null,null,null,null,"Objective Progress Summary",null,null,null,null,null,null,null,null,null,null,null,{"$f":"IF('CENTRAL ANALYSIS'!$F$91=\"yes\",1,0)","v":0}]
[null,null,null,null,null,null,null,null,null,null,null,null,null,null,null,null,null,null,{"$f":"IF('CENTRAL ANALYSIS'!$F$91=\"yes\",1,0)","v":0}]
[null,null,null,null,null,null,null,null,null,null,null,null,null,null,null,null,null,null,{"$f":"IF('CENTRAL ANALYSIS'!$F$91=\"yes\",1,0)","v":0}]
[null,null,null,null,null,null,null,null,null,null,null,null,null,null,null,null,null,null,{"$f":"IF('CENTRAL ANALYSIS'!$F$91=\"yes\",1,0)","v":0}]
[null,null,null,null,null,null,null,null,null,null,null,null,null,null,null,null,null,null,{"$f":"IF('CENTRAL ANALYSIS'!$F$91=\"yes\",1,0)","v":0}]
[null,null,null,null,null,null,null,null,null,null,null,null,null,null,null,null,null,null,{"$f":"IF('CENTRAL ANALYSIS'!$F$91=\"yes\",1,0)","v":0}]
[null,null,null,null,null,null,null,null,null,null,null,null,null,null,null,null,null,null,{"$f":"IF('CENTRAL ANALYSIS'!$F$91=\"yes\",1,0)","v":0}]
[null,null,null,null,null,null,null,null,null,null,null,null,null,null,null,null,null,null,{"$f":"IF('CENTRAL ANALYSIS'!$F$91=\"yes\",1,0)","v":0}]
[null,null,null,null,null,null,null,null,null,null,null,null,null,null,null,null,null,null,{"$f":"IF('CENTRAL ANALYSIS'!$F$91=\"yes\",1,0)","v":0}]
[null,null,null,null,null,null,null,null,null,null,null,null,null,null,null,null,null,null,{"$f":"IF('CENTRAL ANALYSIS'!$B$90>=2,1,0)","v":0}]
[null,null,"Objective",null,null,null,null,null,null,null,null,null,null,{"$f":"IF(S200<>1,\"\",IF(AND('CENTRAL ANALYSIS'!$D$99='CENTRAL ANALYSIS'!B105+1,D207<>\"◄NEW►\",H235<>\"\",H236<>\"\"),\"Complete\",IF(AND('CENTRAL ANALYSIS'!$D$99='CENTRAL ANALYSIS'!B105+1,D207=\"◄NEW►\"),\"Complete\",\"Incomplete\")))","v":""},null,null,null,null,{"$f":"IF('CENTRAL ANALYSIS'!$B$90>=2,1,0)","v":0}]
[null,null,null,null,null,null,null,null,null,null,null,null,null,null,null,null,null,null,{"$f":"IF('CENTRAL ANALYSIS'!$B$90>=2,1,0)","v":0}]
[null,null,"Please enter the item objective statement and corresponding action items. Action items can be added by clicking the \"Add Action Item\" button, or existing actions can be modified, for a total of 5 action items per each objective. Action items should describe what the action is and how it will be measured. A brief summary of progress can be provided by clicking the \"Add Progress Update\" button for existing objectives. ",null,null,null,null,null,null,null,null,null,null,null,null,null,null,null,{"$f":"IF('CENTRAL ANALYSIS'!$B$90>=2,1,0)","v":0}]
[null,null,null,null,null,null,null,null,null,null,null,null,null,null,null,null,null,null,{"$f":"IF('CENTRAL ANALYSIS'!$B$90>=2,1,0)","v":0}]
[null,null,null,null,null,null,null,null,null,null,null,null,null,null,null,null,null,null,{"$f":"IF('CENTRAL ANALYSIS'!$B$90>=2,1,0)","v":0}]
[null,null,null,null,null,null,null,null,null,null,null,null,null,null,null,null,null,null,{"$f":"IF('CENTRAL ANALYSIS'!$B$90>=2,1,0)","v":0}]
[null,null,null,null,"Overall Objective Statement",null,null,null,null,null,null,null,null,null,null,null,null,null,{"$f":"IF('CENTRAL ANALYSIS'!$B$90>=2,1,0)","v":0}]
[null,null,null,{"$f":"IF(F206='IMPORTED DATA'!$O$77,\"\",IF(AND('IMPORTED DATA'!$O$77=0,'AGENCY STRATEGY'!F206<>\"\"),'CENTRAL DATA'!$M$15,IF(AND('IMPORTED DATA'!$O$77<>0,'IMPORTED DATA'!$O$77<>'AGENCY STRATEGY'!F206),'CENTRAL DATA'!$M$14,\"\")))","v":""},null,null,null,null,null,null,null,null,null,null,null,null,null,null,{"$f":"IF('CENTRAL ANALYSIS'!$B$90>=2,1,0)","v":0}]
[null,null,null,null,null,null,null,null,null,null,null,null,null,null,null,null,null,null,{"$f":"IF('CENTRAL ANALYSIS'!$B$90>=2,1,0)","v":0}]
[null,null,null,null,null,null,null,null,null,null,null,null,null,null,null,null,null,null,{"$f":"IF('CENTRAL ANALYSIS'!$B$90>=2,1,0)","v":0}]
[null,null,null,null,null,null,null,null,null,null,null,null,null,null,null,null,null,null,{"$f":"IF('CENTRAL ANALYSIS'!$B$90>=2,1,0)","v":0}]
[null,null,null,null,null,null,null,null,null,null,null,null,null,null,null,null,null,null,{"$f":"IF('CENTRAL ANALYSIS'!$B$90>=2,1,0)","v":0}]
[null,null,null,null,null,null,"Action Item",null,null,null,null,null,null,null,null,null,null,null,{"$f":"IF('CENTRAL ANALYSIS'!$B$105>=1,1,0)","v":0}]
[null,null,null,null,null,{"$f":"IF(H212='IMPORTED DATA'!$O$78,\"\",IF(AND('IMPORTED DATA'!$O$78=0,'AGENCY STRATEGY'!H212<>\"\"),'CENTRAL DATA'!$M$15,IF(AND('IMPORTED DATA'!$O$78<>0,'IMPORTED DATA'!$O$78<>'AGENCY STRATEGY'!H212),'CENTRAL DATA'!$M$14,\"\")))","v":""},null,null,null,null,null,null,null,null,null,null,null,null,{"$f":"IF('CENTRAL ANALYSIS'!$B$105>=1,1,0)","v":0}]
[null,null,null,null,null,null,null,null,null,null,null,null,null,null,null,null,null,null,{"$f":"IF('CENTRAL ANALYSIS'!$B$105>=1,1,0)","v":0}]
[null,null,null,null,null,null,"Action Item","",null,null,null,null,null,null,null,null,null,null,{"$f":"IF('CENTRAL ANALYSIS'!$B$105>=2,1,0)","v":0}]
[null,null,null,null,null,{"$f":"IF(H215='IMPORTED DATA'!$O$79,\"\",IF(AND('IMPORTED DATA'!$O$79=0,'AGENCY STRATEGY'!H215<>\"\"),'CENTRAL DATA'!$M$15,IF(AND('IMPORTED DATA'!$O$79<>0,'IMPORTED DATA'!$O$79<>'AGENCY STRATEGY'!H215),'CENTRAL DATA'!$M$14,\"\")))","v":""},null,null,null,null,null,null,null,null,null,null,null,null,{"$f":"IF('CENTRAL ANALYSIS'!$B$105>=2,1,0)","v":0}]
[null,null,null,null,null,null,null,null,null,null,null,null,null,null,null,null,null,null,{"$f":"IF('CENTRAL ANALYSIS'!$B$105>=2,1,0)","v":0}]
[null,null,null,null,null,null,"Action Item","",null,null,null,null,null,null,null,null,null,null,{"$f":"IF('CENTRAL ANALYSIS'!$B$105>=3,1,0)","v":0}]
[null,null,null,null,null,{"$f":"IF(H218='IMPORTED DATA'!$O$80,\"\",IF(AND('IMPORTED DATA'!$O$80=0,'AGENCY STRATEGY'!H218<>\"\"),'CENTRAL DATA'!$M$15,IF(AND('IMPORTED DATA'!$O$80<>0,'IMPORTED DATA'!$O$80<>'AGENCY STRATEGY'!H218),'CENTRAL DATA'!$M$14,\"\")))","v":""},null,null,null,null,null,null,null,null,null,null,null,null,{"$f":"IF('CENTRAL ANALYSIS'!$B$105>=3,1,0)","v":0}]
[null,null,null,null,null,null,null,null,null,null,null,null,null,null,null,null,null,null,{"$f":"IF('CENTRAL ANALYSIS'!$B$105>=3,1,0)","v":0}]
[null,null,null,null,null,null,"Action Item","",null,null,null,null,null,null,null,null,null,null,{"$f":"IF('CENTRAL ANALYSIS'!$B$105>=4,1,0)","v":0}]
[null,null,null,null,null,{"$f":"IF(H221='IMPORTED DATA'!$O$81,\"\",IF(AND('IMPORTED DATA'!$O$81=0,'AGENCY STRATEGY'!H221<>\"\"),'CENTRAL DATA'!$M$15,IF(AND('IMPORTED DATA'!$O$81<>0,'IMPORTED DATA'!$O$81<>'AGENCY STRATEGY'!H221),'CENTRAL DATA'!$M$14,\"\")))","v":""},null,null,null,null,null,null,null,null,null,null,null,null,{"$f":"IF('CENTRAL ANALYSIS'!$B$105>=4,1,0)","v":0}]
[null,null,null,null,null,null,null,null,null,null,null,null,null,null,null,null,null,null,{"$f":"IF('CENTRAL ANALYSIS'!$B$105>=4,1,0)","v":0}]
[null,null,null,null,null,null,"Action Item","",null,null,null,null,null,null,null,null,null,null,{"$f":"IF('CENTRAL ANALYSIS'!$B$105>=5,1,0)","v":0}]
[null,null,null,null,null,{"$f":"IF(H224='IMPORTED DATA'!$O$82,\"\",IF(AND('IMPORTED DATA'!$O$82=0,'AGENCY STRATEGY'!H224<>\"\"),'CENTRAL DATA'!$M$15,IF(AND('IMPORTED DATA'!$O$82<>0,'IMPORTED DATA'!$O$82<>'AGENCY STRATEGY'!H224),'CENTRAL DATA'!$M$14,\"\")))","v":""},null,null,null,null,null,null,null,null,null,null,null,null,{"$f":"IF('CENTRAL ANALYSIS'!$B$105>=5,1,0)","v":0}]
[null,null,null,null,null,null,null,null,null,null,null,null,null,null,null,null,null,null,{"$f":"IF('CENTRAL ANALYSIS'!$B$105>=5,1,0)","v":0}]
[null,null,null,null,null,null,null,null,null,null,null,null,null,null,null,null,null,null,{"$f":"IF('CENTRAL ANALYSIS'!$F$99=\"yes\",1,0)","v":0}]
[null,null,null,null,null,null,"Date of Update",null,null,null,null,null,null,null,null,null,null,null,0]
[null,null,null,null,null,null,"Objective Progress Summary",null,null,null,null,null,null,null,null,null,null,null,0]
[null,null,null,null,null,null,null,null,null,null,null,null,null,null,null,null,null,null,0]
[null,null,null,null,null,null,null,null,null,null,null,null,null,null,null,null,null,null,0]
[null,null,null,null,null,null,null,null,null,null,null,null,null,null,null,null,null,null,0]
[null,null,null,null,null,null,null,null,null,null,null,null,null,null,null,null,null,null,0]
[null,null,null,null,null,null,null,null,null,null,null,null,null,null,null,null,null,null,0]
[null,null,null,null,null,null,"Date of Update",null,null,null,null,null,null,null,null,null,null,null,{"$f":"IF('CENTRAL ANALYSIS'!$F$99=\"yes\",1,0)","v":0}]
[null,null,null,null,null,null,"Objective Progress Summary",null,null,null,null,null,null,null,null,null,null,null,{"$f":"IF('CENTRAL ANALYSIS'!$F$99=\"yes\",1,0)","v":0}]
[null,null,null,null,null,null,null,null,null,null,null,null,null,null,null,null,null,null,{"$f":"IF('CENTRAL ANALYSIS'!$F$99=\"yes\",1,0)","v":0}]
[null,null,null,null,null,null,null,null,null,null,null,null,null,null,null,null,null,null,{"$f":"IF('CENTRAL ANALYSIS'!$F$99=\"yes\",1,0)","v":0}]
[null,null,null,null,null,null,null,null,null,null,null,null,null,null,null,null,null,null,{"$f":"IF('CENTRAL ANALYSIS'!$F$99=\"yes\",1,0)","v":0}]
[null,null,null,null,null,null,null,null,null,null,null,null,null,null,null,null,null,null,{"$f":"IF('CENTRAL ANALYSIS'!$F$99=\"yes\",1,0)","v":0}]
[null,null,null,null,null,null,null,null,null,null,null,null,null,null,null,null,null,null,{"$f":"IF('CENTRAL ANALYSIS'!$F$99=\"yes\",1,0)","v":0}]
[null,null,null,null,null,null,null,null,null,null,null,null,null,null,null,null,null,null,{"$f":"IF('CENTRAL ANALYSIS'!$F$99=\"yes\",1,0)","v":0}]
[null,null,null,null,null,null,null,null,null,null,null,null,null,null,null,null,null,null,{"$f":"IF('CENTRAL ANALYSIS'!$F$99=\"yes\",1,0)","v":0}]
[null,null,null,null,null,null,null,null,null,null,null,null,null,null,null,null,null,null,{"$f":"IF('CENTRAL ANALYSIS'!$F$99=\"yes\",1,0)","v":0}]
[null,null,null,null,null,null,null,null,null,null,null,null,null,null,null,null,null,null,{"$f":"IF('CENTRAL ANALYSIS'!$B$90>=3,1,0)","v":0}]
[null,null,"Objective",null,null,null,null,null,null,null,null,null,null,{"$f":"IF(S246<>1,\"\",IF(AND('CENTRAL ANALYSIS'!$D$107='CENTRAL ANALYSIS'!B113+1,D253<>\"◄NEW►\",H281<>\"\",H282<>\"\"),\"Complete\",IF(AND('CENTRAL ANALYSIS'!$D$107='CENTRAL ANALYSIS'!B113+1,D253=\"◄NEW►\"),\"Complete\",\"Incomplete\")))","v":""},null,null,null,null,{"$f":"IF('CENTRAL ANALYSIS'!$B$90>=3,1,0)","v":0}]
[null,null,null,null,null,null,null,null,null,null,null,null,null,null,null,null,null,null,{"$f":"IF('CENTRAL ANALYSIS'!$B$90>=3,1,0)","v":0}]
[null,null,"Please enter the item objective statement and corresponding action items. Action items can be added by clicking the \"Add Action Item\" button, or existing actions can be modified, for a total of 5 action items per each objective. Action items should describe what the action is and how it will be measured. A brief summary of progress can be provided by clicking the \"Add Progress Update\" button for existing objectives. ",null,null,null,null,null,null,null,null,null,null,null,null,null,null,null,{"$f":"IF('CENTRAL ANALYSIS'!$B$90>=3,1,0)","v":0}]
[null,null,null,null,null,null,null,null,null,null,null,null,null,null,null,null,null,null,{"$f":"IF('CENTRAL ANALYSIS'!$B$90>=3,1,0)","v":0}]
[null,null,null,null,null,null,null,null,null,null,null,null,null,null,null,null,null,null,{"$f":"IF('CENTRAL ANALYSIS'!$B$90>=3,1,0)","v":0}]
[null,null,null,null,null,null,null,null,null,null,null,null,null,null,null,null,null,null,{"$f":"IF('CENTRAL ANALYSIS'!$B$90>=3,1,0)","v":0}]
[null,null,null,null,"Overall Objective Statement",null,null,null,null,null,null,null,null,null,null,null,null,null,{"$f":"IF('CENTRAL ANALYSIS'!$B$90>=3,1,0)","v":0}]
[null,null,null,{"$f":"IF(F252='IMPORTED DATA'!$O$83,\"\",IF(AND('IMPORTED DATA'!$O$83=0,'AGENCY STRATEGY'!F252<>\"\"),'CENTRAL DATA'!$M$15,IF(AND('IMPORTED DATA'!$O$83<>0,'IMPORTED DATA'!$O$83<>'AGENCY STRATEGY'!F252),'CENTRAL DATA'!$M$14,\"\")))","v":""},null,null,null,null,null,null,null,null,null,null,null,null,null,null,{"$f":"IF('CENTRAL ANALYSIS'!$B$90>=3,1,0)","v":0}]
[null,null,null,null,null,null,null,null,null,null,null,null,null,null,null,null,null,null,{"$f":"IF('CENTRAL ANALYSIS'!$B$90>=3,1,0)","v":0}]
[null,null,null,null,null,null,null,null,null,null,null,null,null,null,null,null,null,null,{"$f":"IF('CENTRAL ANALYSIS'!$B$90>=3,1,0)","v":0}]
[null,null,null,null,null,null,null,null,null,null,null,null,null,null,null,null,null,null,{"$f":"IF('CENTRAL ANALYSIS'!$B$90>=3,1,0)","v":0}]
[null,null,null,null,null,null,null,null,null,null,null,null,null,null,null,null,null,null,{"$f":"IF('CENTRAL ANALYSIS'!$B$90>=3,1,0)","v":0}]
[null,null,null,null,null,null,"Action Item",null,null,null,null,null,null,null,null,null,null,null,{"$f":"IF('CENTRAL ANALYSIS'!$B$113>=1,1,0)","v":0}]
[null,null,null,null,null,{"$f":"IF(H258='IMPORTED DATA'!$O$84,\"\",IF(AND('IMPORTED DATA'!$O$84=0,'AGENCY STRATEGY'!H258<>\"\"),'CENTRAL DATA'!$M$15,IF(AND('IMPORTED DATA'!$O$84<>0,'IMPORTED DATA'!$O$84<>'AGENCY STRATEGY'!H258),'CENTRAL DATA'!$M$14,\"\")))","v":""},null,null,null,null,null,null,null,null,null,null,null,null,{"$f":"IF('CENTRAL ANALYSIS'!$B$113>=1,1,0)","v":0}]
[null,null,null,null,null,null,null,null,null,null,null,null,null,null,null,null,null,null,{"$f":"IF('CENTRAL ANALYSIS'!$B$113>=1,1,0)","v":0}]
[null,null,null,null,null,null,"Action Item","",null,null,null,null,null,null,null,null,null,null,{"$f":"IF('CENTRAL ANALYSIS'!$B$113>=2,1,0)","v":0}]
[null,null,null,null,null,{"$f":"IF(H261='IMPORTED DATA'!$O$85,\"\",IF(AND('IMPORTED DATA'!$O$85=0,'AGENCY STRATEGY'!H261<>\"\"),'CENTRAL DATA'!$M$15,IF(AND('IMPORTED DATA'!$O$85<>0,'IMPORTED DATA'!$O$85<>'AGENCY STRATEGY'!H261),'CENTRAL DATA'!$M$14,\"\")))","v":""},null,null,null,null,null,null,null,null,null,null,null,null,{"$f":"IF('CENTRAL ANALYSIS'!$B$113>=2,1,0)","v":0}]
[null,null,null,null,null,null,null,null,null,null,null,null,null,null,null,null,null,null,{"$f":"IF('CENTRAL ANALYSIS'!$B$113>=2,1,0)","v":0}]
[null,null,null,null,null,null,"Action Item","",null,null,null,null,null,null,null,null,null,null,{"$f":"IF('CENTRAL ANALYSIS'!$B$113>=3,1,0)","v":0}]
[null,null,null,null,null,{"$f":"IF(H264='IMPORTED DATA'!$O$86,\"\",IF(AND('IMPORTED DATA'!$O$86=0,'AGENCY STRATEGY'!H264<>\"\"),'CENTRAL DATA'!$M$15,IF(AND('IMPORTED DATA'!$O$86<>0,'IMPORTED DATA'!$O$86<>'AGENCY STRATEGY'!H264),'CENTRAL DATA'!$M$14,\"\")))","v":""},null,null,null,null,null,null,null,null,null,null,null,null,{"$f":"IF('CENTRAL ANALYSIS'!$B$113>=3,1,0)","v":0}]
[null,null,null,null,null,null,null,null,null,null,null,null,null,null,null,null,null,null,{"$f":"IF('CENTRAL ANALYSIS'!$B$113>=3,1,0)","v":0}]
[null,null,null,null,null,null,"Action Item","",null,null,null,null,null,null,null,null,null,null,{"$f":"IF('CENTRAL ANALYSIS'!$B$113>=4,1,0)","v":0}]
[null,null,null,null,null,{"$f":"IF(H267='IMPORTED DATA'!$O$87,\"\",IF(AND('IMPORTED DATA'!$O$87=0,'AGENCY STRATEGY'!H267<>\"\"),'CENTRAL DATA'!$M$15,IF(AND('IMPORTED DATA'!$O$87<>0,'IMPORTED DATA'!$O$87<>'AGENCY STRATEGY'!H267),'CENTRAL DATA'!$M$14,\"\")))","v":""},null,null,null,null,null,null,null,null,null,null,null,null,{"$f":"IF('CENTRAL ANALYSIS'!$B$113>=4,1,0)","v":0}]
[null,null,null,null,null,null,null,null,null,null,null,null,null,null,null,null,null,null,{"$f":"IF('CENTRAL ANALYSIS'!$B$113>=4,1,0)","v":0}]
[null,null,null,null,null,null,"Action Item","",null,null,null,null,null,null,null,null,null,null,{"$f":"IF('CENTRAL ANALYSIS'!$B$113>=5,1,0)","v":0}]
[null,null,null,null,null,{"$f":"IF(H270='IMPORTED DATA'!$O$88,\"\",IF(AND('IMPORTED DATA'!$O$88=0,'AGENCY STRATEGY'!H270<>\"\"),'CENTRAL DATA'!$M$15,IF(AND('IMPORTED DATA'!$O$88<>0,'IMPORTED DATA'!$O$88<>'AGENCY STRATEGY'!H270),'CENTRAL DATA'!$M$14,\"\")))","v":""},null,null,null,null,null,null,null,null,null,null,null,null,{"$f":"IF('CENTRAL ANALYSIS'!$B$113>=5,1,0)","v":0}]
[null,null,null,null,null,null,null,null,null,null,null,null,null,null,null,null,null,null,{"$f":"IF('CENTRAL ANALYSIS'!$B$113>=5,1,0)","v":0}]
[null,null,null,null,null,null,null,null,null,null,null,null,null,null,null,null,null,null,{"$f":"IF('CENTRAL ANALYSIS'!$F$107=\"yes\",1,0)","v":0}]
[null,null,null,null,null,null,"Date of Update",null,null,null,null,null,null,null,null,null,null,null,0]
[null,null,null,null,null,null,"Objective Progress Summary",null,null,null,null,null,null,null,null,null,null,null,0]
[null,null,null,null,null,null,null,null,null,null,null,null,null,null,null,null,null,null,0]
[null,null,null,null,null,null,null,null,null,null,null,null,null,null,null,null,null,null,0]
[null,null,null,null,null,null,null,null,null,null,null,null,null,null,null,null,null,null,0]
[null,null,null,null,null,null,null,null,null,null,null,null,null,null,null,null,null,null,0]
[null,null,null,null,null,null,null,null,null,null,null,null,null,null,null,null,null,null,0]
[null,null,null,null,null,null,"Date of Update",null,null,null,null,null,null,null,null,null,null,null,{"$f":"IF('CENTRAL ANALYSIS'!$F$107=\"yes\",1,0)","v":0}]
[null,null,null,null,null,null,"Objective Progress Summary",null,null,null,null,null,null,null,null,null,null,null,{"$f":"IF('CENTRAL ANALYSIS'!$F$107=\"yes\",1,0)","v":0}]
[null,null,null,null,null,null,null,null,null,null,null,null,null,null,null,null,null,null,{"$f":"IF('CENTRAL ANALYSIS'!$F$107=\"yes\",1,0)","v":0}]
[null,null,null,null,null,null,null,null,null,null,null,null,null,null,null,null,null,null,{"$f":"IF('CENTRAL ANALYSIS'!$F$107=\"yes\",1,0)","v":0}]
[null,null,null,null,null,null,null,null,null,null,null,null,null,null,null,null,null,null,{"$f":"IF('CENTRAL ANALYSIS'!$F$107=\"yes\",1,0)","v":0}]
[null,null,null,null,null,null,null,null,null,null,null,null,null,null,null,null,null,null,{"$f":"IF('CENTRAL ANALYSIS'!$F$107=\"yes\",1,0)","v":0}]
[null,null,null,null,null,null,null,null,null,null,null,null,null,null,null,null,null,null,{"$f":"IF('CENTRAL ANALYSIS'!$F$107=\"yes\",1,0)","v":0}]
[null,null,null,null,null,null,null,null,null,null,null,null,null,null,null,null,null,null,{"$f":"IF('CENTRAL ANALYSIS'!$F$107=\"yes\",1,0)","v":0}]
[null,null,null,null,null,null,null,null,null,null,null,null,null,null,null,null,null,null,{"$f":"IF('CENTRAL ANALYSIS'!$F$107=\"yes\",1,0)","v":0}]
[null,null,null,null,null,null,null,null,null,null,null,null,null,null,null,null,null,null,{"$f":"IF('CENTRAL ANALYSIS'!$F$107=\"yes\",1,0)","v":0}]
[null,null,null,null,null,null,null,null,null,null,null,null,null,null,null,null,null,null,{"$f":"IF('CENTRAL ANALYSIS'!$B$90>=4,1,0)","v":0}]
[null,null,"Objective",null,null,null,null,null,null,null,null,null,null,{"$f":"IF(S292<>1,\"\",IF(AND('CENTRAL ANALYSIS'!$D$115='CENTRAL ANALYSIS'!B121+1,D299<>\"◄NEW►\",H327<>\"\",H328<>\"\"),\"Complete\",IF(AND('CENTRAL ANALYSIS'!$D$115='CENTRAL ANALYSIS'!B121+1,D299=\"◄NEW►\"),\"Complete\",\"Incomplete\")))","v":""},null,null,null,null,{"$f":"IF('CENTRAL ANALYSIS'!$B$90>=4,1,0)","v":0}]
[null,null,null,null,null,null,null,null,null,null,null,null,null,null,null,null,null,null,{"$f":"IF('CENTRAL ANALYSIS'!$B$90>=4,1,0)","v":0}]
[null,null,"Please enter the item objective statement and corresponding action items. Action items can be added by clicking the \"Add Action Item\" button, or existing actions can be modified, for a total of 5 action items per each objective. Action items should describe what the action is and how it will be measured. A brief summary of progress can be provided by clicking the \"Add Progress Update\" button for existing objectives. ",null,null,null,null,null,null,null,null,null,null,null,null,null,null,null,{"$f":"IF('CENTRAL ANALYSIS'!$B$90>=4,1,0)","v":0}]
[null,null,null,null,null,null,null,null,null,null,null,null,null,null,null,null,null,null,{"$f":"IF('CENTRAL ANALYSIS'!$B$90>=4,1,0)","v":0}]
[null,null,null,null,null,null,null,null,null,null,null,null,null,null,null,null,null,null,{"$f":"IF('CENTRAL ANALYSIS'!$B$90>=4,1,0)","v":0}]
[null,null,null,null,null,null,null,null,null,null,null,null,null,null,null,null,null,null,{"$f":"IF('CENTRAL ANALYSIS'!$B$90>=4,1,0)","v":0}]
[null,null,null,null,"Overall Objective Statement",null,null,null,null,null,null,null,null,null,null,null,null,null,{"$f":"IF('CENTRAL ANALYSIS'!$B$90>=4,1,0)","v":0}]
[null,null,null,{"$f":"IF(F298='IMPORTED DATA'!$O$89,\"\",IF(AND('IMPORTED DATA'!$O$89=0,'AGENCY STRATEGY'!F298<>\"\"),'CENTRAL DATA'!$M$15,IF(AND('IMPORTED DATA'!$O$89<>0,'IMPORTED DATA'!$O$89<>'AGENCY STRATEGY'!F298),'CENTRAL DATA'!$M$14,\"\")))","v":""},null,null,null,null,null,null,null,null,null,null,null,null,null,null,{"$f":"IF('CENTRAL ANALYSIS'!$B$90>=4,1,0)","v":0}]
[null,null,null,null,null,null,null,null,null,null,null,null,null,null,null,null,null,null,{"$f":"IF('CENTRAL ANALYSIS'!$B$90>=4,1,0)","v":0}]
[null,null,null,null,null,null,null,null,null,null,null,null,null,null,null,null,null,null,{"$f":"IF('CENTRAL ANALYSIS'!$B$90>=4,1,0)","v":0}]
[null,null,null,null,null,null,null,null,null,null,null,null,null,null,null,null,null,null,{"$f":"IF('CENTRAL ANALYSIS'!$B$90>=4,1,0)","v":0}]
[null,null,null,null,null,null,null,null,null,null,null,null,null,null,null,null,null,null,{"$f":"IF('CENTRAL ANALYSIS'!$B$90>=4,1,0)","v":0}]
[null,null,null,null,null,null,"Action Item",null,null,null,null,null,null,null,null,null,null,null,{"$f":"IF('CENTRAL ANALYSIS'!$B$121>=1,1,0)","v":0}]
[null,null,null,null,null,{"$f":"IF(H304='IMPORTED DATA'!$O$90,\"\",IF(AND('IMPORTED DATA'!$O$90=0,'AGENCY STRATEGY'!H304<>\"\"),'CENTRAL DATA'!$M$15,IF(AND('IMPORTED DATA'!$O$90<>0,'IMPORTED DATA'!$O$90<>'AGENCY STRATEGY'!H304),'CENTRAL DATA'!$M$14,\"\")))","v":""},null,null,null,null,null,null,null,null,null,null,null,null,{"$f":"IF('CENTRAL ANALYSIS'!$B$121>=1,1,0)","v":0}]
[null,null,null,null,null,null,null,null,null,null,null,null,null,null,null,null,null,null,{"$f":"IF('CENTRAL ANALYSIS'!$B$121>=1,1,0)","v":0}]
[null,null,null,null,null,null,"Action Item","",null,null,null,null,null,null,null,null,null,null,{"$f":"IF('CENTRAL ANALYSIS'!$B$121>=2,1,0)","v":0}]
[null,null,null,null,null,{"$f":"IF(H307='IMPORTED DATA'!$O$91,\"\",IF(AND('IMPORTED DATA'!$O$91=0,'AGENCY STRATEGY'!H307<>\"\"),'CENTRAL DATA'!$M$15,IF(AND('IMPORTED DATA'!$O$91<>0,'IMPORTED DATA'!$O$79<>'AGENCY STRATEGY'!H307),'CENTRAL DATA'!$M$91,\"\")))","v":""},null,null,null,null,null,null,null,null,null,null,null,null,{"$f":"IF('CENTRAL ANALYSIS'!$B$121>=2,1,0)","v":0}]
[null,null,null,null,null,null,null,null,null,null,null,null,null,null,null,null,null,null,{"$f":"IF('CENTRAL ANALYSIS'!$B$121>=2,1,0)","v":0}]
[null,null,null,null,null,null,"Action Item","",null,null,null,null,null,null,null,null,null,null,{"$f":"IF('CENTRAL ANALYSIS'!$B$121>=3,1,0)","v":0}]
[null,null,null,null,null,{"$f":"IF(H310='IMPORTED DATA'!$O$92,\"\",IF(AND('IMPORTED DATA'!$O$92=0,'AGENCY STRATEGY'!H310<>\"\"),'CENTRAL DATA'!$M$15,IF(AND('IMPORTED DATA'!$O$92<>0,'IMPORTED DATA'!$O$92<>'AGENCY STRATEGY'!H310),'CENTRAL DATA'!$M$14,\"\")))","v":""},null,null,null,null,null,null,null,null,null,null,null,null,{"$f":"IF('CENTRAL ANALYSIS'!$B$121>=3,1,0)","v":0}]
[null,null,null,null,null,null,null,null,null,null,null,null,null,null,null,null,null,null,{"$f":"IF('CENTRAL ANALYSIS'!$B$121>=3,1,0)","v":0}]
[null,null,null,null,null,null,"Action Item","",null,null,null,null,null,null,null,null,null,null,{"$f":"IF('CENTRAL ANALYSIS'!$B$121>=4,1,0)","v":0}]
[null,null,null,null,null,{"$f":"IF(H313='IMPORTED DATA'!$O$93,\"\",IF(AND('IMPORTED DATA'!$O$93=0,'AGENCY STRATEGY'!H313<>\"\"),'CENTRAL DATA'!$M$15,IF(AND('IMPORTED DATA'!$O$93<>0,'IMPORTED DATA'!$O$93<>'AGENCY STRATEGY'!H313),'CENTRAL DATA'!$M$14,\"\")))","v":""},null,null,null,null,null,null,null,null,null,null,null,null,{"$f":"IF('CENTRAL ANALYSIS'!$B$121>=4,1,0)","v":0}]
[null,null,null,null,null,null,null,null,null,null,null,null,null,null,null,null,null,null,{"$f":"IF('CENTRAL ANALYSIS'!$B$121>=4,1,0)","v":0}]
[null,null,null,null,null,null,"Action Item","",null,null,null,null,null,null,null,null,null,null,{"$f":"IF('CENTRAL ANALYSIS'!$B$121>=5,1,0)","v":0}]
[null,null,null,null,null,{"$f":"IF(H316='IMPORTED DATA'!$O$94,\"\",IF(AND('IMPORTED DATA'!$O$94=0,'AGENCY STRATEGY'!H316<>\"\"),'CENTRAL DATA'!$M$15,IF(AND('IMPORTED DATA'!$O$94<>0,'IMPORTED DATA'!$O$94<>'AGENCY STRATEGY'!H316),'CENTRAL DATA'!$M$14,\"\")))","v":""},null,null,null,null,null,null,null,null,null,null,null,null,{"$f":"IF('CENTRAL ANALYSIS'!$B$121>=5,1,0)","v":0}]
[null,null,null,null,null,null,null,null,null,null,null,null,null,null,null,null,null,null,{"$f":"IF('CENTRAL ANALYSIS'!$B$121>=5,1,0)","v":0}]
[null,null,null,null,null,null,null,null,null,null,null,null,null,null,null,null,null,null,{"$f":"IF('CENTRAL ANALYSIS'!$F$115=\"yes\",1,0)","v":0}]
[null,null,null,null,null,null,"Date of Update",null,null,null,null,null,null,null,null,null,null,null,0]
[null,null,null,null,null,null,"Objective Progress Summary",null,null,null,null,null,null,null,null,null,null,null,0]
[null,null,null,null,null,null,null,null,null,null,null,null,null,null,null,null,null,null,0]
[null,null,null,null,null,null,null,null,null,null,null,null,null,null,null,null,null,null,0]
[null,null,null,null,null,null,null,null,null,null,null,null,null,null,null,null,null,null,0]
[null,null,null,null,null,null,null,null,null,null,null,null,null,null,null,null,null,null,0]
[null,null,null,null,null,null,null,null,null,null,null,null,null,null,null,null,null,null,0]
[null,null,null,null,null,null,"Date of Update",null,null,null,null,null,null,null,null,null,null,null,{"$f":"IF('CENTRAL ANALYSIS'!$F$115=\"yes\",1,0)","v":0}]
[null,null,null,null,null,null,"Objective Progress Summary",null,null,null,null,null,null,null,null,null,null,null,{"$f":"IF('CENTRAL ANALYSIS'!$F$115=\"yes\",1,0)","v":0}]
[null,null,null,null,null,null,null,null,null,null,null,null,null,null,null,null,null,null,{"$f":"IF('CENTRAL ANALYSIS'!$F$115=\"yes\",1,0)","v":0}]
[null,null,null,null,null,null,null,null,null,null,null,null,null,null,null,null,null,null,{"$f":"IF('CENTRAL ANALYSIS'!$F$115=\"yes\",1,0)","v":0}]
[null,null,null,null,null,null,null,null,null,null,null,null,null,null,null,null,null,null,{"$f":"IF('CENTRAL ANALYSIS'!$F$115=\"yes\",1,0)","v":0}]
[null,null,null,null,null,null,null,null,null,null,null,null,null,null,null,null,null,null,{"$f":"IF('CENTRAL ANALYSIS'!$F$115=\"yes\",1,0)","v":0}]
[null,null,null,null,null,null,null,null,null,null,null,null,null,null,null,null,null,null,{"$f":"IF('CENTRAL ANALYSIS'!$F$115=\"yes\",1,0)","v":0}]
[null,null,null,null,null,null,null,null,null,null,null,null,null,null,null,null,null,null,{"$f":"IF('CENTRAL ANALYSIS'!$F$115=\"yes\",1,0)","v":0}]
[null,null,null,null,null,null,null,null,null,null,null,null,null,null,null,null,null,null,{"$f":"IF('CENTRAL ANALYSIS'!$F$115=\"yes\",1,0)","v":0}]
[null,null,null,null,null,null,null,null,null,null,null,null,null,null,null,null,null,null,{"$f":"IF('CENTRAL ANALYSIS'!$F$115=\"yes\",1,0)","v":0}]
[null,null,null,null,null,null,null,null,null,null,null,null,null,null,null,null,null,null,{"$f":"IF('CENTRAL ANALYSIS'!$B$90>=5,1,0)","v":0}]
[null,null,"Objective",null,null,null,null,null,null,null,null,null,null,{"$f":"IF(S338<>1,\"\",IF(AND('CENTRAL ANALYSIS'!$D$123='CENTRAL ANALYSIS'!B129+1,D345<>\"◄NEW►\",H373<>\"\",H374<>\"\"),\"Complete\",IF(AND('CENTRAL ANALYSIS'!$D$123='CENTRAL ANALYSIS'!B129+1,D345=\"◄NEW►\"),\"Complete\",\"Incomplete\")))","v":""},null,null,null,null,{"$f":"IF('CENTRAL ANALYSIS'!$B$90>=5,1,0)","v":0}]
[null,null,null,null,null,null,null,null,null,null,null,null,null,null,null,null,null,null,{"$f":"IF('CENTRAL ANALYSIS'!$B$90>=5,1,0)","v":0}]
[null,null,"Please enter the item objective statement and corresponding action items. Action items can be added by clicking the \"Add Action Item\" button, or existing actions can be modified, for a total of 5 action items per each objective. Action items should describe what the action is and how it will be measured. A brief summary of progress can be provided by clicking the \"Add Progress Update\" button for existing objectives. ",null,null,null,null,null,null,null,null,null,null,null,null,null,null,null,{"$f":"IF('CENTRAL ANALYSIS'!$B$90>=5,1,0)","v":0}]
[null,null,null,null,null,null,null,null,null,null,null,null,null,null,null,null,null,null,{"$f":"IF('CENTRAL ANALYSIS'!$B$90>=5,1,0)","v":0}]
[null,null,null,null,null,null,null,null,null,null,null,null,null,null,null,null,null,null,{"$f":"IF('CENTRAL ANALYSIS'!$B$90>=5,1,0)","v":0}]
[null,null,null,null,null,null,null,null,null,null,null,null,null,null,null,null,null,null,{"$f":"IF('CENTRAL ANALYSIS'!$B$90>=5,1,0)","v":0}]
[null,null,null,null,"Overall Objective Statement",null,null,null,null,null,null,null,null,null,null,null,null,null,{"$f":"IF('CENTRAL ANALYSIS'!$B$90>=5,1,0)","v":0}]
[null,null,null,{"$f":"IF(F344='IMPORTED DATA'!$O$95,\"\",IF(AND('IMPORTED DATA'!$O$95=0,'AGENCY STRATEGY'!F344<>\"\"),'CENTRAL DATA'!$M$15,IF(AND('IMPORTED DATA'!$O$95<>0,'IMPORTED DATA'!$O$95<>'AGENCY STRATEGY'!F344),'CENTRAL DATA'!$M$14,\"\")))","v":""},null,null,null,null,null,null,null,null,null,null,null,null,null,null,{"$f":"IF('CENTRAL ANALYSIS'!$B$90>=5,1,0)","v":0}]
[null,null,null,null,null,null,null,null,null,null,null,null,null,null,null,null,null,null,{"$f":"IF('CENTRAL ANALYSIS'!$B$90>=5,1,0)","v":0}]
[null,null,null,null,null,null,null,null,null,null,null,null,null,null,null,null,null,null,{"$f":"IF('CENTRAL ANALYSIS'!$B$90=5,1,0)","v":0}]
[null,null,null,null,null,null,null,null,null,null,null,null,null,null,null,null,null,null,{"$f":"IF('CENTRAL ANALYSIS'!$B$90=5,1,0)","v":0}]
[null,null,null,null,null,null,null,null,null,null,null,null,null,null,null,null,null,null,{"$f":"IF('CENTRAL ANALYSIS'!$B$90=5,1,0)","v":0}]
[null,null,null,null,null,null,"Action Item",null,null,null,null,null,null,null,null,null,null,null,{"$f":"IF('CENTRAL ANALYSIS'!$B$129>=1,1,0)","v":0}]
[null,null,null,null,null,{"$f":"IF(H350='IMPORTED DATA'!$O$96,\"\",IF(AND('IMPORTED DATA'!$O$96=0,'AGENCY STRATEGY'!H350<>\"\"),'CENTRAL DATA'!$M$15,IF(AND('IMPORTED DATA'!$O$96<>0,'IMPORTED DATA'!$O$96<>'AGENCY STRATEGY'!H350),'CENTRAL DATA'!$M$14,\"\")))","v":""},null,null,null,null,null,null,null,null,null,null,null,null,{"$f":"IF('CENTRAL ANALYSIS'!$B$129>=1,1,0)","v":0}]
[null,null,null,null,null,null,null,null,null,null,null,null,null,null,null,null,null,null,{"$f":"IF('CENTRAL ANALYSIS'!$B$129>=1,1,0)","v":0}]
[null,null,null,null,null,null,"Action Item","",null,null,null,null,null,null,null,null,null,null,{"$f":"IF('CENTRAL ANALYSIS'!$B$129>=2,1,0)","v":0}]
[null,null,null,null,null,{"$f":"IF(H353='IMPORTED DATA'!$O$97,\"\",IF(AND('IMPORTED DATA'!$O$97=0,'AGENCY STRATEGY'!H353<>\"\"),'CENTRAL DATA'!$M$15,IF(AND('IMPORTED DATA'!$O$97<>0,'IMPORTED DATA'!$O$97<>'AGENCY STRATEGY'!H353),'CENTRAL DATA'!$M$14,\"\")))","v":""},null,null,null,null,null,null,null,null,null,null,null,null,{"$f":"IF('CENTRAL ANALYSIS'!$B$129>=2,1,0)","v":0}]
[null,null,null,null,null,null,null,null,null,null,null,null,null,null,null,null,null,null,{"$f":"IF('CENTRAL ANALYSIS'!$B$129>=2,1,0)","v":0}]
[null,null,null,null,null,null,"Action Item","",null,null,null,null,null,null,null,null,null,null,{"$f":"IF('CENTRAL ANALYSIS'!$B$129>=3,1,0)","v":0}]
[null,null,null,null,null,{"$f":"IF(H356='IMPORTED DATA'!$O$98,\"\",IF(AND('IMPORTED DATA'!$O$98=0,'AGENCY STRATEGY'!H356<>\"\"),'CENTRAL DATA'!$M$15,IF(AND('IMPORTED DATA'!$O$98<>0,'IMPORTED DATA'!$O$98<>'AGENCY STRATEGY'!H356),'CENTRAL DATA'!$M$14,\"\")))","v":""},null,null,null,null,null,null,null,null,null,null,null,null,{"$f":"IF('CENTRAL ANALYSIS'!$B$129>=3,1,0)","v":0}]
[null,null,null,null,null,null,null,null,null,null,null,null,null,null,null,null,null,null,{"$f":"IF('CENTRAL ANALYSIS'!$B$129>=3,1,0)","v":0}]
[null,null,null,null,null,null,"Action Item","",null,null,null,null,null,null,null,null,null,null,{"$f":"IF('CENTRAL ANALYSIS'!$B$129>=4,1,0)","v":0}]
[null,null,null,null,null,{"$f":"IF(H359='IMPORTED DATA'!$O$99,\"\",IF(AND('IMPORTED DATA'!$O$99=0,'AGENCY STRATEGY'!H359<>\"\"),'CENTRAL DATA'!$M$15,IF(AND('IMPORTED DATA'!$O$99<>0,'IMPORTED DATA'!$O$99<>'AGENCY STRATEGY'!H359),'CENTRAL DATA'!$M$14,\"\")))","v":""},null,null,null,null,null,null,null,null,null,null,null,null,{"$f":"IF('CENTRAL ANALYSIS'!$B$129>=4,1,0)","v":0}]
[null,null,null,null,null,null,null,null,null,null,null,null,null,null,null,null,null,null,{"$f":"IF('CENTRAL ANALYSIS'!$B$129>=4,1,0)","v":0}]
[null,null,null,null,null,null,"Action Item","",null,null,null,null,null,null,null,null,null,null,{"$f":"IF('CENTRAL ANALYSIS'!$B$129>=5,1,0)","v":0}]
[null,null,null,null,null,{"$f":"IF(H362='IMPORTED DATA'!$O$100,\"\",IF(AND('IMPORTED DATA'!$O$100=0,'AGENCY STRATEGY'!H362<>\"\"),'CENTRAL DATA'!$M$15,IF(AND('IMPORTED DATA'!$O$100<>0,'IMPORTED DATA'!$O$100<>'AGENCY STRATEGY'!H362),'CENTRAL DATA'!$M$14,\"\")))","v":""},null,null,null,null,null,null,null,null,null,null,null,null,{"$f":"IF('CENTRAL ANALYSIS'!$B$129>=5,1,0)","v":0}]
[null,null,null,null,null,null,null,null,null,null,null,null,null,null,null,null,null,null,{"$f":"IF('CENTRAL ANALYSIS'!$B$129>=5,1,0)","v":0}]
[null,null,null,null,null,null,null,null,null,null,null,null,null,null,null,null,null,null,{"$f":"IF('CENTRAL ANALYSIS'!$F$123=\"yes\",1,0)","v":0}]
[null,null,null,null,null,null,"Date of Update",null,null,null,null,null,null,null,null,null,null,null,0]
[null,null,null,null,null,null,"Objective Progress Summary",null,null,null,null,null,null,null,null,null,null,null,0]
[null,null,null,null,null,null,null,null,null,null,null,null,null,null,null,null,null,null,0]
[null,null,null,null,null,null,null,null,null,null,null,null,null,null,null,null,null,null,0]
[null,null,null,null,null,null,null,null,null,null,null,null,null,null,null,null,null,null,0]
[null,null,null,null,null,null,null,null,null,null,null,null,null,null,null,null,null,null,0]
[null,null,null,null,null,null,null,null,null,null,null,null,null,null,null,null,null,null,0]
[null,null,null,null,null,null,"Date of Update",null,null,null,null,null,null,null,null,null,null,null,{"$f":"IF('CENTRAL ANALYSIS'!$F$123=\"yes\",1,0)","v":0}]
[null,null,null,null,null,null,"Objective Progress Summary",null,null,null,null,null,null,null,null,null,null,null,{"$f":"IF('CENTRAL ANALYSIS'!$F$123=\"yes\",1,0)","v":0}]
[null,null,null,null,null,null,null,null,null,null,null,null,null,null,null,null,null,null,{"$f":"IF('CENTRAL ANALYSIS'!$F$123=\"yes\",1,0)","v":0}]
[null,null,null,null,null,null,null,null,null,null,null,null,null,null,null,null,null,null,{"$f":"IF('CENTRAL ANALYSIS'!$F$123=\"yes\",1,0)","v":0}]
[null,null,null,null,null,null,null,null,null,null,null,null,null,null,null,null,null,null,{"$f":"IF('CENTRAL ANALYSIS'!$F$123=\"yes\",1,0)","v":0}]
[null,null,null,null,null,null,null,null,null,null,null,null,null,null,null,null,null,null,{"$f":"IF('CENTRAL ANALYSIS'!$F$123=\"yes\",1,0)","v":0}]
[null,null,null,null,null,null,null,null,null,null,null,null,null,null,null,null,null,null,{"$f":"IF('CENTRAL ANALYSIS'!$F$123=\"yes\",1,0)","v":0}]
[null,null,null,null,null,null,null,null,null,null,null,null,null,null,null,null,null,null,{"$f":"IF('CENTRAL ANALYSIS'!$F$123=\"yes\",1,0)","v":0}]
[null,null,null,null,null,null,null,null,null,null,null,null,null,null,null,null,null,null,{"$f":"IF('CENTRAL ANALYSIS'!$F$123=\"yes\",1,0)","v":0}]
[null,null,null,null,null,null,null,null,null,null,null,null,null,null,null,null,null,null,{"$f":"IF('CENTRAL ANALYSIS'!$F$123=\"yes\",1,0)","v":0}]
[null,null,null,null,null,null,null,null,null,null,null,null,null,null,null,null,null,null,1]
[null,"******************************************************************************************************************************************",null,null,null,null,null,null,null,null,null,null,null,null,null,null,null,null,1]
[null,null,null,null,null,null,null,null,null,null,null,null,null,null,null,null,null,null,1]
[null,null,null,null,null,null,null,null,null,null,null,null,null,null,null,null,null,null,1]
[null,null,null,null,null,null,null,null,null,null,null,null,null,null,null,null,null,null,1]
[null,null,null,null,null,null,null,null,null,null,null,null,null,null,null,null,null,null,1]
[null,null,null,null,null,null,null,null,null,null,null,null,null,null,null,null,null,null,1]
[null,null,"(Optional) Step 2(a): Enter Objectives & Action Items if Not Using Macros",null,null,null,null,null,null,null,null,null,null,null,null,null,null,null,1]
[null,null,null,null,null,null,null,null,null,null,null,null,null,null,null,null,null,null,1]
[null,null,"If chosen not to use Macros, please enter the total number of objectivesm action items, and whether a progress update should be included for each objective below. The worksheet will then need to be filtered manually by going to cell \"W1\" and clicking the Filter Icon. This will display a menu where the checkbox next to \"0\" should be empty. If it is, click the \"OK\" button to display the objective and action item entry cells above. Enter the objectives action item, and progress update information in the respective cells above.",null,null,null,null,null,null,null,null,null,null,null,null,null,null,null,1]
[null,null,null,null,null,null,null,null,null,null,null,null,null,null,null,null,null,null,1]
[null,null,null,null,null,null,null,null,null,null,null,null,null,null,null,null,null,null,1]
[null,null,null,null,null,null,null,null,null,null,null,null,null,null,null,null,null,null,1]
[null,null,null,null,null,null,null,null,null,null,null,null,null,null,"Total Objectives",null,null,null,1]
[null,null,null,null,null,null,null,null,null,null,null,null,null,null,"Total Objective 1 Action Items",null,null,null,1]
[null,null,null,null,null,null,null,null,null,null,null,null,null,null,"Total Objective 2 Action Items",null,null,null,1]
[null,null,null,null,null,null,null,null,null,null,null,null,null,null,"Total Objective 3 Action Items",null,null,null,1]
[null,null,null,null,null,null,null,null,null,null,null,null,null,null,"Total Objective 4 Action Items",null,null,null,1]
[null,null,null,null,null,null,null,null,null,null,null,null,null,null,"Total Objective 5 Action Items",null,null,null,1]
[null,null,null,null,null,null,null,null,null,null,null,null,null,null,"Provide Update for Objective 1",null,null,null,1]
[null,null,null,null,null,null,null,null,null,null,null,null,null,null,"Provide Update for Objective 2",null,null,null,1]
[null,null,null,null,null,null,null,null,null,null,null,null,null,null,"Provide Update for Objective 3",null,null,null,1]
[null,null,null,null,null,null,null,null,null,null,null,null,null,null,"Provide Update for Objective 4",null,null,null,1]
[null,null,null,null,null,null,null,null,null,null,null,null,null,null,"Provide Update for Objective 5",null,null,null,1]
[null,null,null,null,null,null,null,null,null,null,null,null,null,null,null,null,null,null,1]
[null,null,null,null,null,null,null,null,null,null,null,null,null,null,null,null,null,null,1]
[null,"(Optional) Step 3: Check Spelling (Macros must be enabled to use. See \"Getting Started\" for more information.)",null,null,null,null,null,null,null,null,null,null,null,null,null,null,null,null,1]
[null,null,null,null,null,null,null,null,null,null,null,null,null,null,null,null,null,null,1]
[null,"INSTRUCTIONS: To check the spelling of items on this tab, please click the purple \"Spell Check This Tab\" button below. Correcting the spelling on this tab will ensure the report is correct as well. ",null,null,null,null,null,null,null,null,null,null,null,null,null,null,null,null,1]
[null,null,null,null,null,null,null,null,null,null,null,null,null,null,null,null,null,null,1]
[null,null,null,null,null,null,null,null,null,null,null,null,null,null,null,null,null,null,1]
[null,null,null,null,null,null,null,null,null,null,null,null,null,null,null,null,null,null,1]
[null,null,null,null,null,null,null,null,null,null,null,null,null,null,null,null,null,null,1]
[null,null,null,null,null,null,null,null,null,null,null,null,null,null,null,null,null,null,0]

{"sheet":" EOP SUMMARY","index":5,"n_rows":345,"n_cols":22,"rows_kept":345,"cut":false,"hidden":false,"merged":[[320,1,321,17],[322,1,324,17],[288,5,288,16],[289,8,294,16],[340,1,342,17],[331,1,332,17],[329,1,330,17],[338,1,339,17],[268,1,269,3],[268,5,269,16],[270,1,271,3],[270,5,272,16],[273,8,275,16],[276,8,278,16],[279,8,281,16],[282,8,284,16],[285,8,287,16],[296,4,297,17],[298,5,300,16],[314,5,316,10],[308,1,309,17],[310,1,312,17],[274,6,275,7],[277,6,278,7],[280,6,281,7],[283,6,284,7],[286,6,287,7],[254,8,256,16],[257,8,259,16],[242,1,243,3],[242,5,244,16],[245,8,247,16],[248,8,250,16],[251,8,253,16],[249,6,250,7],[252,6,253,7],[255,6,256,7],[258,6,259,7],[260,5,260,16],[261,8,266,16],[223,8,225,16],[226,8,228,16],[229,8,231,16],[240,1,241,3],[240,5,241,16],[224,6,225,7],[227,6,228,7],[230,6,231,7],[246,6,247,7],[232,5,232,16],[233,8,238,16],[24,2,25,13],[24,14,25,17],[26,2,27,17],[5,2,7,15],[8,2,11,15],[18,1,19,13],[18,14,19,17],[20,1,22,17],[29,2,30,13],[29,14,30,17],[31,2,32,17],[13,5,15,10],[35,4,37,10],[38,4,38,10],[40,1,41,3],[40,12,41,17],[40,4,41,11],[158,1,159,3],[36,1,37,3],[57,9,60,11],[53,4,55,17],[66,1,66,3],[90,1,91,3],[153,4,154,17],[109,5,113,9],[109,12,113,16],[146,5,150,9],[146,12,150,16],[97,4,98,17],[99,5,104,16],[95,4,96,17],[92,9,94,10],[80,5,81,6],[92,14,94,16],[92,11,94,13],[89,5,94,8],[80,7,81,8],[90,16,91,16],[60,1,60,3],[218,6,219,7],[221,6,222,7],[204,5,204,16],[205,8,210,16],[161,8,163,16],[164,8,166,16],[167,8,169,16],[170,8,172,16],[217,8,219,16],[220,8,222,16],[173,8,175,16],[184,5,185,16],[186,5,188,16],[189,8,191,16],[192,8,194,16],[195,8,197,16],[198,8,200,16],[201,8,203,16],[212,5,213,16],[177,8,182,16],[212,1,213,3],[162,6,163,7],[165,6,166,7],[168,6,169,7],[171,6,172,7],[174,6,175,7],[190,6,191,7],[193,6,194,7],[196,6,197,7],[199,6,200,7],[202,6,203,7],[176,5,176,16],[186,1,187,3],[64,1,64,3],[68,1,68,3],[67,1,67,3],[42,4,43,17],[87,5,88,6],[87,7,88,8],[73,5,74,6],[73,7,74,8],[85,7,86,7],[85,5,86,5],[78,7,79,7],[78,5,79,5],[71,7,72,7],[71,5,72,5],[71,6,72,6],[71,8,72,8],[78,6,79,6],[78,8,79,8],[85,6,86,6],[85,8,86,8],[44,5,51,16],[64,12,66,13],[64,10,66,11],[335,1,337,17],[63,1,63,3],[56,1,59,3],[64,14,66,15],[90,9,91,9],[90,10,91,10],[90,13,91,13],[90,12,91,12],[90,15,91,15],[61,15,63,15],[72,1,73,3],[57,16,60,16],[57,12,60,15],[61,10,63,10],[61,11,63,11],[61,14,63,14],[61,12,63,12],[61,13,63,13],[214,1,215,3],[214,5,216,16],[184,1,185,3],[156,5,157,16],[156,1,157,3],[158,5,160,16]]}
[null,null,null,null,null,null,null,null,null,null,null,null,null,null,null,null,null,null,null,null,null,1]
[null,null,null,null,null,null,null,null,null,null,null,null,null,null,null,null,null,null,null,null,null,1]
[null,null,null,null,null,null,null,null,null,null,null,null,null,null,null,null,null,null,null,null,null,1]
[null,null,null,null,null,null,null,null,null,null,null,null,null,null,null,null,null,null,null,null,null,1]
[null,null,null,null,null,null,null,null,null,null,null,null,null,null,null,null,null,null,null,null,null,1]
[null,null,"EOP SUMMARY",null,null,null,null,null,null,null,null,null,null,null,null,null,null,null,null,null,null,1]
[null,null,null,null,null,null,null,null,null,null,null,null,null,null,null,null,null,null,null,null,null,1]
[null,null,null,null,null,null,null,null,null,null,null,null,null,null,null,null,null,null,null,null,null,1]
[null,null,"The Employment Opportunity Summary compiles the information from the previous tabs into a single report. It begins with an overall summary and then displays graphics for key workforce metrics, the SWOT analysis graphic (which can be omitted) and presents the agency strategy objectives and action items. After the report is completed, it can be exported as a PDF to be signed either electronically or by hand. Procedures to submit the report are detailed at the bottom of this tab.",null,null,null,null,null,null,null,null,null,null,null,null,null,null,null,null,null,null,1]
[null,null,null,null,null,null,null,null,null,null,null,null,null,null,null,null,null,null,null,null,null,1]
[null,null,null,null,null,null,null,null,null,null,null,null,null,null,null,null,null,null,null,null,null,1]
[null,null,null,null,null,null,null,null,null,null,null,null,null,null,null,null,null,null,null,null,null,1]
[null,null,null,null,null,null,null,null,null,null,null,null,null,null,null,null,null,null,null,null,null,1]
[null,null,null,null,null,{"$f":"IF(AND($C$93=\"yes\",SUBTOTAL(103,$V$97)<>1),\"REPORT NEEDS TO BE REFRESHED. CLICK THE REFRESH BUTTON TO THE RIGHT.\",IF(SUMIF($V$1:$V$344,1)<>SUBTOTAL(103,$V$1:$V$344),\"REPORT NEEDS TO BE REFRESHED. CLICK THE REFRESH BUTTON TO THE RIGHT.\",\"REPORT IS UP TO DATE.\"))","v":"REPORT IS UP TO DATE."},null,null,null,null,null,null,null,null,null,null,null,null,null,null,null,1]
[null,null,null,null,null,null,null,null,null,null,null,null,null,null,null,null,null,null,null,null,null,1]
[null,null,null,null,null,null,null,null,null,null,null,null,null,null,null,null,null,null,null,null,null,1]
[null,null,null,null,null,null,null,null,null,null,null,null,null,null,null,null,null,null,null,null,null,1]
[null,null,null,null,null,null,null,null,null,null,null,null,null,null,null,null,null,null,null,null,null,1]
[null,"Step 1: Complete EOP Summary Report",null,null,null,null,null,null,null,null,null,null,null,null,{"$f":"IF(AND(O25=\"Complete\",O30=\"Complete\"),\"Complete\",\"Incomplete\")","v":"Incomplete"},null,null,null,null,null,null,1]
[null,null,null,null,null,null,null,null,null,null,null,null,null,null,null,null,null,null,null,null,null,1]
[null,"INSTRUCTIONS: Before the report is exported, a few additional notes will need to be entered. These include an overall summary and notes for the SWOT Analysis, indicated by the yellow boxes. The notes on the SWOT analysis can be skipped if the SWOT Analysis is omitted from the report (indicated in the optional settings blue column). Some optional settings may be adjusted as needed, noted in the blue column on the left.",null,null,null,null,null,null,null,null,null,null,null,null,null,null,null,null,null,null,null,1]
[null,null,null,null,null,null,null,null,null,null,null,null,null,null,null,null,null,null,null,null,null,1]
[null,null,null,null,null,null,null,null,null,null,null,null,null,null,null,null,null,null,null,null,null,1]
[null,null,null,null,null,null,null,null,null,null,null,null,null,null,null,null,null,null,null,null,null,1]
[null,null,"Step 1(a): Enter Report Summary",null,null,null,null,null,null,null,null,null,null,null,{"$f":"IF(F45<>\"\",\"Complete\",\"Incomplete\")","v":"Incomplete"},null,null,null,null,null,null,1]
[null,null,null,null,null,null,null,null,null,null,null,null,null,null,null,null,null,null,null,null,null,1]
[null,null,"In the first section of the report, enter a summary in the yellow box of key findings, prior actions to promote the employment of individuals with disabilities and their impacts, and a brief discussion of the future actions that will be taken.",null,null,null,null,null,null,null,null,null,null,null,null,null,null,null,null,null,null,1]
[null,null,null,null,null,null,null,null,null,null,null,null,null,null,null,null,null,null,null,null,null,1]
[null,null,null,null,null,null,null,null,null,null,null,null,null,null,null,null,null,null,null,null,null,1]
[null,null,"Step 1(b): Enter Brief Overview and Notes for SWOT Analysis",null,null,null,null,null,null,null,null,null,null,null,{"$f":"IF(C93=\"No\",\"Complete\",IF(AND(F100<>\"\",F110<>\"\",M110<>\"\",F147<>\"\",M147<>\"\"),\"Complete\",\"Incomplete\"))","v":"Incomplete"},null,null,null,null,null,null,1]
[null,null,null,null,null,null,null,null,null,null,null,null,null,null,null,null,null,null,null,null,null,1]
[null,null,"If chosen to include in the report, please enter an overall summary of the SWOT Analysis as well as notes for each of the four areas (Strengths, Weaknesses, Opportunities, and Threats) in the yellow boxes on the SWOT Analysis to give additional context to those outlined in the graphic.",null,null,null,null,null,null,null,null,null,null,null,null,null,null,null,null,null,null,1]
[null,null,null,null,null,null,null,null,null,null,null,null,null,null,null,null,null,null,null,null,null,1]
[null,null,null,null,null,null,null,null,null,null,null,null,null,null,null,null,null,null,null,null,null,1]
[null,null,null,null,null,null,null,null,null,null,null,null,null,null,null,null,null,null,null,null,null,1]
[null,null,null,null,{"$f":"'AGENCY PROFILE'!J29","v":0},null,null,null,null,null,null,null,null,null,null,null,null,null,null,null,null,1]
[null,"See Below for Optional Settings for this Report",null,null,null,null,null,null,null,null,null,null,null,null,null,null,null,null,null,null,null,1]
[null,null,null,null,null,null,null,null,null,null,null,null,null,null,null,null,null,null,null,null,null,1]
[null,null,null,null,{"$f":"CONCATENATE(\"Agency Number: \",'AGENCY PROFILE'!P31)","v":"Agency Number: "},null,null,null,null,null,null,null,null,null,null,null,null,null,null,null,null,1]
[null,null,null,null,null,null,null,null,null,null,null,null,null,null,null,null,null,null,null,null,null,1]
[null,"Optional: Include Indicators for Changes to Prior Year: ",null,null,"  Employment Opportunities Plan ",null,null,null,null,null,null,null,{"$f":"IF(AND('AGENCY PROFILE'!L45=\"Fiscal Year EOP\",'CENTRAL ANALYSIS'!L14=1),\"Invalid Date of Report Entered\",IF('AGENCY PROFILE'!L45=\"Fiscal Year EOP\",CONCATENATE(\"Fiscal Year \",'DHRM ADMIN'!P15),IF('AGENCY PROFILE'!L45=\"Snapshot\",CONCATENATE(\"As of: \",TEXT('AGENCY PROFILE'!N46,\"mm/dd/yyyy\")),\"\")))","v":""},null,null,null,null,null,null,null,null,1]
[null,null,null,null,null,null,null,null,null,null,null,null,null,null,null,null,null,null,null,null,null,1]
[null,"Select: ","Yes",null,"Summary of Efforts to Increase Employment of Individuals with Disabilities",null,null,null,null,null,null,null,null,null,null,null,null,null,null,null,null,1]
[null,null,null,null,null,null,null,null,null,null,null,null,null,null,null,null,null,null,null,null,null,1]
[null,null,null,null,null,null,null,null,null,null,null,null,null,null,null,null,null,null,null,null,null,1]
[null,null,null,null,null,null,null,null,null,null,null,null,null,null,null,null,null,null,null,null,null,1]
[null,null,null,null,null,null,null,null,null,null,null,null,null,null,null,null,null,null,null,null,null,1]
[null,null,null,null,null,null,null,null,null,null,null,null,null,null,null,null,null,null,null,null,null,1]
[null,null,null,null,null,null,null,null,null,null,null,null,null,null,null,null,null,null,null,null,null,1]
[null,null,null,null,null,null,null,null,null,null,null,null,null,null,null,null,null,null,null,null,null,1]
[null,null,null,null,null,null,null,null,null,null,null,null,null,null,null,null,null,null,null,null,null,1]
[null,null,null,null,null,null,null,null,null,null,null,null,null,null,null,null,null,null,null,null,null,1]
[null,null,null,null,null,null,null,null,null,null,null,null,null,null,null,null,null,null,null,null,null,1]
[null,null,null,null,"  Fiscal Year Workforce Breakdown and Metrics - Employees with Disabilities \n(Metrics Reflect Classified Employees Only)",null,null,null,null,null,null,null,null,null,null,null,null,null,null,null,null,1]
[null,null,null,null,null,null,null,null,null,null,null,null,null,null,null,null,null,null,null,null,null,1]
[null,null,null,null,null,null,null,null,null,null,null,null,null,null,null,null,null,null,null,null,null,1]
[null,"Optional: Change Speedometer Goal Colors NOTE: Speedometer represents 10% of Classified Employees",null,null,null,null,null,null,null,null,null,null,null,null,null,null,null,null,null,null,null,1]
[null,null,null,null,null,null,null,null,null,{"$f":"'CENTRAL ANALYSIS'!B211","v":0},null,null,"Total Classified Employees with Disabilities",null,null,null,{"$f":"'CENTRAL ANALYSIS'!Q211","v":"◄►0"},null,null,null,null,1]
[null,null,null,null,null,null,null,null,null,null,null,null,null,null,null,null,null,null,null,null,null,1]
[null,null,null,null,null,null,null,null,null,null,null,null,null,null,null,null,null,null,null,null,null,1]
[null,"Red (High Priority Area)",null,null,null,null,null,null,null,null,null,null,null,null,null,null,null,null,null,null,null,1]
[null,"Enter %:",3.5000000000000003E-2,null,null,null,null,null,null,null,{"$f":"'CENTRAL ANALYSIS'!B213","v":0},{"$f":"'CENTRAL ANALYSIS'!Q213","v":"◄►0"},{"$f":"'CENTRAL ANALYSIS'!B214","v":0},{"$f":"'CENTRAL ANALYSIS'!Q214","v":"◄►0"},{"$f":"'CENTRAL ANALYSIS'!B215","v":0},{"$f":"'CENTRAL ANALYSIS'!Q215","v":"◄►0"},null,null,null,null,null,1]
[null,null,null,null,null,null,null,null,null,null,null,null,null,null,null,null,null,null,null,null,null,1]
[null,null,null,null,null,null,null,null,null,null,null,null,null,null,null,null,null,null,null,null,null,1]
[null,"Yellow (Priority Area)",null,null,null,null,null,null,null,null,"Are in a Leader or Supervisory Role",null,"Are in an\nExecutive Role",null,"Employees with Disabilities are Veterans",null,null,null,null,null,null,1]
[null,"Enter %:",0.05,null,null,null,null,null,null,null,null,null,null,null,null,null,null,null,null,null,null,1]
[null,"Cannot be less than 5%",null,null,null,null,null,null,null,null,null,null,null,null,null,null,null,null,null,null,null,1]
[null,null,null,null,null,null,null,null,null,null,null,null,null,null,null,null,null,null,null,null,null,1]
[null,"Green (Goal Achieved)",null,null,null,null,null,null,null,null,null,null,null,null,null,null,null,null,null,null,null,1]
[null,"Enter %:",{"$f":"C66","v":0.05},null,null,null,null,null,null,null,null,null,null,null,null,null,null,null,null,null,null,1]
[null,null,null,null,null,null,null,null,null,null,null,null,null,null,null,null,null,null,null,null,null,1]
[null,null,null,null,null,{"$f":"'CENTRAL ANALYSIS'!B222","v":0},{"$f":"'CENTRAL ANALYSIS'!I222","v":"◄►0"},{"$f":"'CENTRAL ANALYSIS'!B220","v":0},{"$f":"'CENTRAL ANALYSIS'!I220","v":"◄►0"},null,null,null,null,null,null,null,null,null,null,null,null,1]
[null,"Optional: Change Colors to Identify Key Metrics",null,null,null,null,null,null,null,null,null,null,null,null,null,null,null,null,null,null,null,1]
[null,null,null,null,null,"Employees with Disabilities Applicants",null,"Employee with Disabilities Hires",null,null,null,null,null,null,null,null,null,null,null,null,null,1]
[null,null,"Metric","Change",null,null,null,null,null,null,null,null,null,null,null,null,null,null,null,null,null,1]
[null,"Total",null,null,null,null,null,null,null,null,null,null,null,null,null,null,null,null,null,null,null,1]
[null,"Leader",null,null,null,null,null,null,null,null,null,null,null,null,null,null,null,null,null,null,null,1]
[null,"Executive",null,null,null,null,null,null,null,null,null,null,null,null,null,null,null,null,null,null,null,1]
[null,"Veteran",null,null,null,{"$f":"'CENTRAL ANALYSIS'!B226","v":0},{"$f":"'CENTRAL ANALYSIS'!I226","v":"◄►0"},{"$f":"'CENTRAL ANALYSIS'!B228","v":0},{"$f":"'CENTRAL ANALYSIS'!I228","v":"◄►0"},null,null,null,null,null,null,null,null,null,null,null,null,1]
[null,"Applicants",null,null,null,null,null,null,null,null,null,null,null,null,null,null,null,null,null,null,null,1]
[null,"Hires",null,null,null,"Employees with Disabilities Transfers",null,"Employee with Disabilities Promotions",null,null,null,null,null,null,null,null,null,null,null,null,null,1]
[null,"Transfers",null,null,null,null,null,null,null,null,null,null,null,null,null,null,null,null,null,null,null,1]
[null,null,null,null,null,null,null,null,null,null,null,null,null,null,null,null,null,null,null,null,null,1]
[null,"Promotions",null,null,null,null,null,null,null,null,null,null,null,null,null,null,null,null,null,null,null,1]
[null,"Separations",null,null,null,null,null,null,null,null,null,null,null,null,null,null,null,null,null,null,null,1]
[null,"Ex. Transfer",null,null,null,{"$f":"'CENTRAL ANALYSIS'!B232","v":0},{"$f":"'CENTRAL ANALYSIS'!I232","v":"◄►0"},{"$f":"'CENTRAL ANALYSIS'!B234","v":0},{"$f":"'CENTRAL ANALYSIS'!I234","v":"◄►0"},null,null,null,null,null,null,null,null,null,null,null,null,1]
[null,"AHP App",null,null,null,null,null,null,null,null,null,null,null,null,null,null,null,null,null,null,null,1]
[null,"AHP Hire",null,null,null,"Employees with Disabilities",null,"Employee with Disabilities Transfers",null,null,null,null,null,null,null,null,null,null,null,null,null,1]
[null,"AHP Class",null,null,null,null,null,null,null,null,null,null,null,null,null,null,null,null,null,null,null,1]
[null,null,null,null,null,"Alternative Hiring Process Metrics:",null,null,null,null,null,null,null,null,null,null,null,null,null,null,null,1]
[null,"Optional: Include SWOT Analysis In Report?",null,null,null,null,null,null,null,{"$f":"'CENTRAL ANALYSIS'!B296","v":0},{"$f":"'CENTRAL ANALYSIS'!G296","v":"◄►0"},null,{"$f":"'CENTRAL ANALYSIS'!B297","v":0},{"$f":"'CENTRAL ANALYSIS'!G297","v":"◄►0"},null,{"$f":"'CENTRAL ANALYSIS'!B298","v":0},{"$f":"'CENTRAL ANALYSIS'!G298","v":"◄►0"},null,null,null,null,1]
[null,null,null,null,null,null,null,null,null,null,null,null,null,null,null,null,null,null,null,null,null,1]
[null,"Select: ","Yes",null,null,null,null,null,null,"Applications Received through the Process",null,"Individuals Hired \nThrough the Process",null,null,"Hired Individuals \nTransitioned to Classified ",null,null,null,null,null,null,1]
[null,null,null,null,null,null,null,null,null,null,null,null,null,null,null,null,null,null,null,null,null,1]
[null,null,null,null,null,null,null,null,null,null,null,null,null,null,null,null,null,null,null,null,null,1]
[null,null,null,null,"Agency SWOT Analysis for Employment of Individuals with Disabilities",null,null,null,null,null,null,null,null,null,null,null,null,null,null,null,null,{"$f":"IF($C$93<>\"yes\",0,1)","v":1}]
[null,null,null,null,null,null,null,null,null,null,null,null,null,null,null,null,null,null,null,null,null,{"$f":"IF($C$93<>\"yes\",0,1)","v":1}]
[null,null,null,null,"Brief Overview of SWOT Analysis",null,null,null,null,null,null,null,null,null,null,null,null,null,null,null,null,1]
[null,null,null,null,null,null,null,null,null,null,null,null,null,null,null,null,null,null,null,null,null,1]
[null,null,null,null,null,null,null,null,null,null,null,null,null,null,null,null,null,null,null,null,null,1]
[null,null,null,null,null,null,null,null,null,null,null,null,null,null,null,null,null,null,null,null,null,1]
[null,null,null,null,null,null,null,null,null,null,null,null,null,null,null,null,null,null,null,null,null,1]
[null,null,null,null,null,null,null,null,null,null,null,null,null,null,null,null,null,null,null,null,null,1]
[null,null,null,null,null,null,null,null,null,null,null,null,null,null,null,null,null,null,null,null,null,1]
[null,null,null,null,null,null,null,null,null,null,null,null,null,null,null,null,null,null,null,null,null,1]
[null,null,null,null,null,null,null,null,null,null,null,null,null,null,null,null,null,null,null,null,null,1]
[null,null,null,null,null,null,null,null,null,null,null,null,null,null,null,null,null,null,null,null,null,1]
[null,null,null,null,null,null,null,null,null,null,null,null,null,null,null,null,null,null,null,null,null,1]
[null,null,null,null,null,null,null,null,null,null,null,null,null,null,null,null,null,null,null,null,null,1]
[null,null,null,null,null,null,null,null,null,null,null,null,null,null,null,null,null,null,null,null,null,1]
[null,null,null,null,null,null,null,null,null,null,null,null,null,null,null,null,null,null,null,null,null,1]
[null,null,null,null,null,null,null,null,null,null,null,null,null,null,null,null,null,null,null,null,null,1]
[null,null,null,null,null,null,null,null,null,null,null,null,null,null,null,null,null,null,null,null,null,1]
[null,null,null,null,null,null,null,null,null,null,null,null,null,null,null,null,null,null,null,null,null,1]
[null,null,null,null,null,null,null,null,null,null,null,null,null,null,null,null,null,null,null,null,null,1]
[null,null,null,null,null,null,null,null,null,null,null,null,null,null,null,null,null,null,null,null,null,1]
[null,null,null,null,null,null,null,null,null,null,null,null,null,null,null,null,null,null,null,null,null,1]
[null,null,null,null,null,null,null,null,null,null,null,null,null,null,null,null,null,null,null,null,null,1]
[null,null,null,null,null,null,null,null,null,null,null,null,null,null,null,null,null,null,null,null,null,1]
[null,null,null,null,null,null,null,null,null,null,null,null,null,null,null,null,null,null,null,null,null,1]
[null,null,null,null,null,null,null,null,null,null,null,null,null,null,null,null,null,null,null,null,null,1]
[null,null,null,null,null,null,null,null,null,null,null,null,null,null,null,null,null,null,null,null,null,1]
[null,null,null,null,null,null,null,null,null,null,null,null,null,null,null,null,null,null,null,null,null,1]
[null,null,null,null,null,null,null,null,null,null,null,null,null,null,null,null,null,null,null,null,null,1]
[null,null,null,null,null,null,null,null,null,null,null,null,null,null,null,null,null,null,null,null,null,1]
[null,null,null,null,null,null,null,null,null,null,null,null,null,null,null,null,null,null,null,null,null,1]
[null,null,null,null,null,null,null,null,null,null,null,null,null,null,null,null,null,null,null,null,null,1]
[null,null,null,null,null,null,null,null,null,null,null,null,null,null,null,null,null,null,null,null,null,1]
[null,null,null,null,null,null,null,null,null,null,null,null,null,null,null,null,null,null,null,null,null,1]
[null,null,null,null,null,null,null,null,null,null,null,null,null,null,null,null,null,null,null,null,null,1]
[null,null,null,null,null,null,null,null,null,null,null,null,null,null,null,null,null,null,null,null,null,1]
[null,null,null,null,null,null,null,null,null,null,null,null,null,null,null,null,null,null,null,null,null,1]
[null,null,null,null,null,null,null,null,null,null,null,null,null,null,null,null,null,null,null,null,null,1]
[null,null,null,null,null,null,null,null,null,null,null,null,null,null,null,null,null,null,null,null,null,1]
[null,null,null,null,null,null,null,null,null,null,null,null,null,null,null,null,null,null,null,null,null,1]
[null,null,null,null,null,null,null,null,null,null,null,null,null,null,null,null,null,null,null,null,null,1]
[null,null,null,null,null,null,null,null,null,null,null,null,null,null,null,null,null,null,null,null,null,1]
[null,null,null,null,null,null,null,null,null,null,null,null,null,null,null,null,null,null,null,null,null,1]
[null,null,null,null,null,null,null,null,null,null,null,null,null,null,null,null,null,null,null,null,null,1]
[null,null,null,null,null,null,null,null,null,null,null,null,null,null,null,null,null,null,null,null,null,1]
[null,null,null,null,null,null,null,null,null,null,null,null,null,null,null,null,null,null,null,null,null,1]
[null,null,null,null,null,null,null,null,null,null,null,null,null,null,null,null,null,null,null,null,null,1]
[null,null,null,null,null,null,null,null,null,null,null,null,null,null,null,null,null,null,null,null,null,1]
[null,null,null,null,null,null,null,null,null,null,null,null,null,null,null,null,null,null,null,null,null,1]
[null,null,null,null,null,null,null,null,null,null,null,null,null,null,null,null,null,null,null,null,null,1]
[null,null,null,null,null,null,null,null,null,null,null,null,null,null,null,null,null,null,null,null,null,1]
[null,null,null,null,null,null,null,null,null,null,null,null,null,null,null,null,null,null,null,null,null,1]
[null,null,null,null,null,null,null,null,null,null,null,null,null,null,null,null,null,null,null,null,null,1]
[null,null,null,null,null,null,null,null,null,null,null,null,null,null,null,null,null,null,null,null,null,1]
[null,null,null,null,null,null,null,null,null,null,null,null,null,null,null,null,null,null,null,null,null,1]
[null,null,null,null,null,null,null,null,null,null,null,null,null,null,null,null,null,null,null,null,null,1]
[null,null,null,null,null,null,null,null,null,null,null,null,null,null,null,null,null,null,null,null,null,1]
[null,null,null,null,null,null,null,null,null,null,null,null,null,null,null,null,null,null,null,null,null,1]
[null,null,null,null,"Upcoming Fiscal Year Action Plan ",null,null,null,null,null,null,null,null,null,null,null,null,null,null,null,null,1]
[null,null,null,null,null,null,null,null,null,null,null,null,null,null,null,null,null,null,null,null,null,1]
[null,null,null,null,null,null,null,null,null,null,null,null,null,null,null,null,null,null,null,null,null,1]
[null,"Optional: Add Title to Objective 1",null,null,null,{"$f":"IF(AND('AGENCY STRATEGY'!D161=\"\",B159=\"\"),\"Objective\",IF(AND('AGENCY STRATEGY'!D161<>\"\",B159=\"\"),CONCATENATE('AGENCY STRATEGY'!D161,\" Objective\"),IF(AND('AGENCY STRATEGY'!D161=\"\",B159<>\"\"),CONCATENATE(\"Objective: \",B159),IF(AND('AGENCY STRATEGY'!D161<>\"\",B159<>\"\"),CONCATENATE('AGENCY STRATEGY'!D161,\" Objective: \",B159)))))","v":"Objective"},null,null,null,null,null,null,null,null,null,null,null,null,null,null,null,{"$f":"IF($F159<>\"\",1,0)","v":0}]
[null,null,null,null,null,null,null,null,null,null,null,null,null,null,null,null,null,null,null,null,null,{"$f":"IF($F159<>\"\",1,0)","v":0}]
[null,null,null,null,null,{"$f":"IF('AGENCY STRATEGY'!F160=\"\",\"\",'AGENCY STRATEGY'!F160)","v":""},null,null,null,null,null,null,null,null,null,null,null,null,null,null,null,{"$f":"IF($F159<>\"\",1,0)","v":0}]
[null,null,null,null,null,null,null,null,null,null,null,null,null,null,null,null,null,null,null,null,null,{"$f":"IF($F159<>\"\",1,0)","v":0}]
[null,null,null,null,null,null,null,null,null,null,null,null,null,null,null,null,null,null,null,null,null,{"$f":"IF($F159<>\"\",1,0)","v":0}]
[null,null,null,null,null,null,null,"Action Item:",{"$f":"IF('AGENCY STRATEGY'!H166=\"\",\"\",'AGENCY STRATEGY'!H166)","v":""},null,null,null,null,null,null,null,null,null,null,null,null,{"$f":"IF($I162<>\"\",1,0)","v":0}]
[null,null,null,null,null,null,{"$f":"'AGENCY STRATEGY'!F167","v":""},null,null,null,null,null,null,null,null,null,null,null,null,null,null,{"$f":"IF($I162<>\"\",1,0)","v":0}]
[null,null,null,null,null,null,null,null,null,null,null,null,null,null,null,null,null,null,null,null,null,{"$f":"IF($I162<>\"\",1,0)","v":0}]
[null,null,null,null,null,null,null,"Action Item:",{"$f":"IF('AGENCY STRATEGY'!H169=\"\",\"\",'AGENCY STRATEGY'!H169)","v":""},null,null,null,null,null,null,null,null,null,null,null,null,{"$f":"IF($I165<>\"\",1,0)","v":0}]
[null,null,null,null,null,null,{"$f":"'AGENCY STRATEGY'!F170","v":""},null,null,null,null,null,null,null,null,null,null,null,null,null,null,{"$f":"IF($I165<>\"\",1,0)","v":0}]
[null,null,null,null,null,null,null,null,null,null,null,null,null,null,null,null,null,null,null,null,null,{"$f":"IF($I165<>\"\",1,0)","v":0}]
[null,null,null,null,null,null,null,"Action Item:",{"$f":"IF('AGENCY STRATEGY'!H172=\"\",\"\",'AGENCY STRATEGY'!H172)","v":""},null,null,null,null,null,null,null,null,null,null,null,null,{"$f":"IF($I168<>\"\",1,0)","v":0}]
[null,null,null,null,null,null,{"$f":"'AGENCY STRATEGY'!F173","v":""},null,null,null,null,null,null,null,null,null,null,null,null,null,null,{"$f":"IF($I168<>\"\",1,0)","v":0}]
[null,null,null,null,null,null,null,null,null,null,null,null,null,null,null,null,null,null,null,null,null,{"$f":"IF($I168<>\"\",1,0)","v":0}]
[null,null,null,null,null,null,null,"Action Item:",{"$f":"IF('AGENCY STRATEGY'!H175=\"\",\"\",'AGENCY STRATEGY'!H175)","v":""},null,null,null,null,null,null,null,null,null,null,null,null,{"$f":"IF($I171<>\"\",1,0)","v":0}]
[null,null,null,null,null,null,{"$f":"'AGENCY STRATEGY'!F176","v":""},null,null,null,null,null,null,null,null,null,null,null,null,null,null,{"$f":"IF($I171<>\"\",1,0)","v":0}]
[null,null,null,null,null,null,null,null,null,null,null,null,null,null,null,null,null,null,null,null,null,{"$f":"IF($I171<>\"\",1,0)","v":0}]
[null,null,null,null,null,null,null,"Action Item:",{"$f":"IF('AGENCY STRATEGY'!H178=\"\",\"\",'AGENCY STRATEGY'!H178)","v":""},null,null,null,null,null,null,null,null,null,null,null,null,{"$f":"IF($I174<>\"\",1,0)","v":0}]
[null,null,null,null,null,null,{"$f":"'AGENCY STRATEGY'!F179","v":""},null,null,null,null,null,null,null,null,null,null,null,null,null,null,{"$f":"IF($I174<>\"\",1,0)","v":0}]
[null,null,null,null,null,null,null,null,null,null,null,null,null,null,null,null,null,null,null,null,null,{"$f":"IF($I174<>\"\",1,0)","v":0}]
[null,null,null,null,null,"*********************************************************************************************************",null,null,null,null,null,null,null,null,null,null,null,null,null,null,null,{"$f":"IF(AND($F159<>\"\",COUNTIF($F157,\"*new*\")=0),1,0)","v":0}]
[null,null,null,null,null,null,null,"Objective Progress Summary:",{"$f":"IF(AND('CENTRAL ANALYSIS'!G89=1,'AGENCY STRATEGY'!H190=\"\"),\"No Update Provided at this Time.\",IF('AGENCY STRATEGY'!H190=\"\",\"\",'AGENCY STRATEGY'!H190))","v":"No Update Provided at this Time."},null,null,null,null,null,null,null,null,null,null,null,null,{"$f":"IF(AND($F159<>\"\",COUNTIF($F157,\"*new*\")=0),1,0)","v":0}]
[null,null,null,null,null,null,null,null,null,null,null,null,null,null,null,null,null,null,null,null,null,{"$f":"IF(AND($F159<>\"\",COUNTIF($F157,\"*new*\")=0),1,0)","v":0}]
[null,null,null,null,null,null,null,null,null,null,null,null,null,null,null,null,null,null,null,null,null,{"$f":"IF(AND($F159<>\"\",COUNTIF($F157,\"*new*\")=0),1,0)","v":0}]
[null,null,null,null,null,null,null,null,null,null,null,null,null,null,null,null,null,null,null,null,null,{"$f":"IF(AND($F159<>\"\",COUNTIF($F157,\"*new*\")=0),1,0)","v":0}]
[null,null,null,null,null,null,null,null,null,null,null,null,null,null,null,null,null,null,null,null,null,{"$f":"IF(AND($F159<>\"\",COUNTIF($F157,\"*new*\")=0),1,0)","v":0}]
[null,null,null,null,null,null,null,null,null,null,null,null,null,null,null,null,null,null,null,null,null,{"$f":"IF(AND($F159<>\"\",COUNTIF($F157,\"*new*\")=0),1,0)","v":0}]
[null,null,null,null,null,null,null,null,null,null,null,null,null,null,null,null,null,null,null,null,null,{"$f":"IF($F187<>\"\",1,0)","v":0}]
[null,"Optional: Add Title to Objective 2",null,null,null,{"$f":"IF(AND('AGENCY STRATEGY'!D207=\"\",B187=\"\"),\"Objective\",IF(AND('AGENCY STRATEGY'!D207<>\"\",B187=\"\"),CONCATENATE('AGENCY STRATEGY'!D207,\" Objective\"),IF(AND('AGENCY STRATEGY'!D207=\"\",B187<>\"\"),CONCATENATE(\"Objective: \",B187),IF(AND('AGENCY STRATEGY'!D207<>\"\",B187<>\"\"),CONCATENATE('AGENCY STRATEGY'!D207,\" Objective: \",B187)))))","v":"Objective"},null,null,null,null,null,null,null,null,null,null,null,null,null,null,null,{"$f":"IF($F187<>\"\",1,0)","v":0}]
[null,null,null,null,null,null,null,null,null,null,null,null,null,null,null,null,null,null,null,null,null,{"$f":"IF($F187<>\"\",1,0)","v":0}]
[null,null,null,null,null,{"$f":"IF('AGENCY STRATEGY'!F206=\"\",\"\",'AGENCY STRATEGY'!F206)","v":""},null,null,null,null,null,null,null,null,null,null,null,null,null,null,null,{"$f":"IF($F187<>\"\",1,0)","v":0}]
[null,null,null,null,null,null,null,null,null,null,null,null,null,null,null,null,null,null,null,null,null,{"$f":"IF($F187<>\"\",1,0)","v":0}]
[null,null,null,null,null,null,null,null,null,null,null,null,null,null,null,null,null,null,null,null,null,{"$f":"IF($F$187<>\"\",1,0)","v":0}]
[null,null,null,null,null,null,null,"Action Item:",{"$f":"IF('AGENCY STRATEGY'!H212=\"\",\"\",'AGENCY STRATEGY'!H212)","v":""},null,null,null,null,null,null,null,null,null,null,null,null,{"$f":"IF($I190<>\"\",1,0)","v":0}]
[null,null,null,null,null,null,{"$f":"'AGENCY STRATEGY'!F213","v":""},null,null,null,null,null,null,null,null,null,null,null,null,null,null,{"$f":"IF($I190<>\"\",1,0)","v":0}]
[null,null,null,null,null,null,null,null,null,null,null,null,null,null,null,null,null,null,null,null,null,{"$f":"IF($I190<>\"\",1,0)","v":0}]
[null,null,null,null,null,null,null,"Action Item:",{"$f":"IF('AGENCY STRATEGY'!H215=\"\",\"\",'AGENCY STRATEGY'!H215)","v":""},null,null,null,null,null,null,null,null,null,null,null,null,{"$f":"IF($I193<>\"\",1,0)","v":0}]
[null,null,null,null,null,null,{"$f":"'AGENCY STRATEGY'!F216","v":""},null,null,null,null,null,null,null,null,null,null,null,null,null,null,{"$f":"IF($I193<>\"\",1,0)","v":0}]
[null,null,null,null,null,null,null,null,null,null,null,null,null,null,null,null,null,null,null,null,null,{"$f":"IF($I193<>\"\",1,0)","v":0}]
[null,null,null,null,null,null,null,"Action Item:",{"$f":"IF('AGENCY STRATEGY'!H218=\"\",\"\",'AGENCY STRATEGY'!H218)","v":""},null,null,null,null,null,null,null,null,null,null,null,null,{"$f":"IF($I196<>\"\",1,0)","v":0}]
[null,null,null,null,null,null,{"$f":"'AGENCY STRATEGY'!F219","v":""},null,null,null,null,null,null,null,null,null,null,null,null,null,null,{"$f":"IF($I196<>\"\",1,0)","v":0}]
[null,null,null,null,null,null,null,null,null,null,null,null,null,null,null,null,null,null,null,null,null,{"$f":"IF($I196<>\"\",1,0)","v":0}]
[null,null,null,null,null,null,null,"Action Item:",{"$f":"IF('AGENCY STRATEGY'!H221=\"\",\"\",'AGENCY STRATEGY'!H221)","v":""},null,null,null,null,null,null,null,null,null,null,null,null,{"$f":"IF($I199<>\"\",1,0)","v":0}]
[null,null,null,null,null,null,{"$f":"'AGENCY STRATEGY'!F222","v":""},null,null,null,null,null,null,null,null,null,null,null,null,null,null,{"$f":"IF($I199<>\"\",1,0)","v":0}]
[null,null,null,null,null,null,null,null,null,null,null,null,null,null,null,null,null,null,null,null,null,{"$f":"IF($I199<>\"\",1,0)","v":0}]
[null,null,null,null,null,null,null,"Action Item:",{"$f":"IF('AGENCY STRATEGY'!H224=\"\",\"\",'AGENCY STRATEGY'!H224)","v":""},null,null,null,null,null,null,null,null,null,null,null,null,{"$f":"IF($I202<>\"\",1,0)","v":0}]
[null,null,null,null,null,null,{"$f":"'AGENCY STRATEGY'!F225","v":""},null,null,null,null,null,null,null,null,null,null,null,null,null,null,{"$f":"IF($I202<>\"\",1,0)","v":0}]
[null,null,null,null,null,null,null,null,null,null,null,null,null,null,null,null,null,null,null,null,null,{"$f":"IF($I202<>\"\",1,0)","v":0}]
[null,null,null,null,null,"*********************************************************************************************************",null,null,null,null,null,null,null,null,null,null,null,null,null,null,null,{"$f":"IF(AND($F187<>\"\",COUNTIF($F185,\"*new*\")=0),1,0)","v":0}]
[null,null,null,null,null,null,null,"Objective Progress Summary:",{"$f":"IF(AND('CENTRAL ANALYSIS'!G97=1,'AGENCY STRATEGY'!H236=\"\"),\"No Update Provided at this Time.\",IF('AGENCY STRATEGY'!H236=\"\",\"\",'AGENCY STRATEGY'!H236))","v":"No Update Provided at this Time."},null,null,null,null,null,null,null,null,null,null,null,null,{"$f":"IF(AND($F187<>\"\",COUNTIF($F185,\"*new*\")=0),1,0)","v":0}]
[null,null,null,null,null,null,null,null,null,null,null,null,null,null,null,null,null,null,null,null,null,{"$f":"IF(AND($F187<>\"\",COUNTIF($F185,\"*new*\")=0),1,0)","v":0}]
[null,null,null,null,null,null,null,null,null,null,null,null,null,null,null,null,null,null,null,null,null,{"$f":"IF(AND($F187<>\"\",COUNTIF($F185,\"*new*\")=0),1,0)","v":0}]
[null,null,null,null,null,null,null,null,null,null,null,null,null,null,null,null,null,null,null,null,null,{"$f":"IF(AND($F187<>\"\",COUNTIF($F185,\"*new*\")=0),1,0)","v":0}]
[null,null,null,null,null,null,null,null,null,null,null,null,null,null,null,null,null,null,null,null,null,{"$f":"IF(AND($F187<>\"\",COUNTIF($F185,\"*new*\")=0),1,0)","v":0}]
[null,null,null,null,null,null,null,null,null,null,null,null,null,null,null,null,null,null,null,null,null,{"$f":"IF(AND($F187<>\"\",COUNTIF($F185,\"*new*\")=0),1,0)","v":0}]
[null,null,null,null,null,null,null,null,null,null,null,null,null,null,null,null,null,null,null,null,null,{"$f":"IF($F215<>\"\",1,0)","v":0}]
[null,"Optional: Add Title to Objective 3",null,null,null,{"$f":"IF(AND('AGENCY STRATEGY'!D253=\"\",B215=\"\"),\"Objective\",IF(AND('AGENCY STRATEGY'!D253<>\"\",B215=\"\"),CONCATENATE('AGENCY STRATEGY'!D253,\" Objective\"),IF(AND('AGENCY STRATEGY'!D253=\"\",B215<>\"\"),CONCATENATE(\"Objective: \",B215),IF(AND('AGENCY STRATEGY'!D253<>\"\",B215<>\"\"),CONCATENATE('AGENCY STRATEGY'!D253,\" Objective: \",B215)))))","v":"Objective"},null,null,null,null,null,null,null,null,null,null,null,null,null,null,null,{"$f":"IF($F215<>\"\",1,0)","v":0}]
[null,null,null,null,null,null,null,null,null,null,null,null,null,null,null,null,null,null,null,null,null,{"$f":"IF($F215<>\"\",1,0)","v":0}]
[null,null,null,null,null,{"$f":"IF('AGENCY STRATEGY'!F252=\"\",\"\",'AGENCY STRATEGY'!F252)","v":""},null,null,null,null,null,null,null,null,null,null,null,null,null,null,null,{"$f":"IF($F215<>\"\",1,0)","v":0}]
[null,null,null,null,null,null,null,null,null,null,null,null,null,null,null,null,null,null,null,null,null,{"$f":"IF($F215<>\"\",1,0)","v":0}]
[null,null,null,null,null,null,null,null,null,null,null,null,null,null,null,null,null,null,null,null,null,{"$f":"IF($F$215<>\"\",1,0)","v":0}]
[null,null,null,null,null,null,null,"Action Item:",{"$f":"IF('AGENCY STRATEGY'!H258=\"\",\"\",'AGENCY STRATEGY'!H258)","v":""},null,null,null,null,null,null,null,null,null,null,null,null,{"$f":"IF($I218<>\"\",1,0)","v":0}]
[null,null,null,null,null,null,{"$f":"'AGENCY STRATEGY'!F259","v":""},null,null,null,null,null,null,null,null,null,null,null,null,null,null,{"$f":"IF($I218<>\"\",1,0)","v":0}]
[null,null,null,null,null,null,null,null,null,null,null,null,null,null,null,null,null,null,null,null,null,{"$f":"IF($I218<>\"\",1,0)","v":0}]
[null,null,null,null,null,null,null,"Action Item:",{"$f":"IF('AGENCY STRATEGY'!H261=\"\",\"\",'AGENCY STRATEGY'!H261)","v":""},null,null,null,null,null,null,null,null,null,null,null,null,{"$f":"IF($I221<>\"\",1,0)","v":0}]
[null,null,null,null,null,null,{"$f":"'AGENCY STRATEGY'!F262","v":""},null,null,null,null,null,null,null,null,null,null,null,null,null,null,{"$f":"IF($I221<>\"\",1,0)","v":0}]
[null,null,null,null,null,null,null,null,null,null,null,null,null,null,null,null,null,null,null,null,null,{"$f":"IF($I221<>\"\",1,0)","v":0}]
[null,null,null,null,null,null,null,"Action Item:",{"$f":"IF('AGENCY STRATEGY'!H264=\"\",\"\",'AGENCY STRATEGY'!H264)","v":""},null,null,null,null,null,null,null,null,null,null,null,null,{"$f":"IF($I224<>\"\",1,0)","v":0}]
[null,null,null,null,null,null,{"$f":"'AGENCY STRATEGY'!F265","v":""},null,null,null,null,null,null,null,null,null,null,null,null,null,null,{"$f":"IF($I224<>\"\",1,0)","v":0}]
[null,null,null,null,null,null,null,null,null,null,null,null,null,null,null,null,null,null,null,null,null,{"$f":"IF($I224<>\"\",1,0)","v":0}]
[null,null,null,null,null,null,null,"Action Item:",{"$f":"IF('AGENCY STRATEGY'!H267=\"\",\"\",'AGENCY STRATEGY'!H267)","v":""},null,null,null,null,null,null,null,null,null,null,null,null,{"$f":"IF($I227<>\"\",1,0)","v":0}]
[null,null,null,null,null,null,{"$f":"'AGENCY STRATEGY'!F268","v":""},null,null,null,null,null,null,null,null,null,null,null,null,null,null,{"$f":"IF($I227<>\"\",1,0)","v":0}]
[null,null,null,null,null,null,null,null,null,null,null,null,null,null,null,null,null,null,null,null,null,{"$f":"IF($I227<>\"\",1,0)","v":0}]
[null,null,null,null,null,null,null,"Action Item:",{"$f":"IF('AGENCY STRATEGY'!H270=\"\",\"\",'AGENCY STRATEGY'!H270)","v":""},null,null,null,null,null,null,null,null,null,null,null,null,{"$f":"IF($I230<>\"\",1,0)","v":0}]
[null,null,null,null,null,null,{"$f":"'AGENCY STRATEGY'!F271","v":""},null,null,null,null,null,null,null,null,null,null,null,null,null,null,{"$f":"IF($I230<>\"\",1,0)","v":0}]
[null,null,null,null,null,null,null,null,null,null,null,null,null,null,null,null,null,null,null,null,null,{"$f":"IF($I230<>\"\",1,0)","v":0}]
[null,null,null,null,null,"*********************************************************************************************************",null,null,null,null,null,null,null,null,null,null,null,null,null,null,null,{"$f":"IF(AND($F215<>\"\",COUNTIF($F213,\"*new*\")=0),1,0)","v":0}]
[null,null,null,null,null,null,null,"Objective Progress Summary:",{"$f":"IF(AND('CENTRAL ANALYSIS'!G105=1,'AGENCY STRATEGY'!H282=\"\"),\"No Update Provided at this Time.\",IF('AGENCY STRATEGY'!H282=\"\",\"\",'AGENCY STRATEGY'!H282))","v":"No Update Provided at this Time."},null,null,null,null,null,null,null,null,null,null,null,null,{"$f":"IF(AND($F215<>\"\",COUNTIF($F213,\"*new*\")=0),1,0)","v":0}]
[null,null,null,null,null,null,null,null,null,null,null,null,null,null,null,null,null,null,null,null,null,{"$f":"IF(AND($F215<>\"\",COUNTIF($F213,\"*new*\")=0),1,0)","v":0}]
[null,null,null,null,null,null,null,null,null,null,null,null,null,null,null,null,null,null,null,null,null,{"$f":"IF(AND($F215<>\"\",COUNTIF($F213,\"*new*\")=0),1,0)","v":0}]
[null,null,null,null,null,null,null,null,null,null,null,null,null,null,null,null,null,null,null,null,null,{"$f":"IF(AND($F215<>\"\",COUNTIF($F213,\"*new*\")=0),1,0)","v":0}]
[null,null,null,null,null,null,null,null,null,null,null,null,null,null,null,null,null,null,null,null,null,{"$f":"IF(AND($F215<>\"\",COUNTIF($F213,\"*new*\")=0),1,0)","v":0}]
[null,null,null,null,null,null,null,null,null,null,null,null,null,null,null,null,null,null,null,null,null,{"$f":"IF(AND($F215<>\"\",COUNTIF($F213,\"*new*\")=0),1,0)","v":0}]
[null,null,null,null,null,null,null,null,null,null,null,null,null,null,null,null,null,null,null,null,null,{"$f":"IF($F243<>\"\",1,0)","v":0}]
[null,"Optional: Add Title to Objective 4",null,null,null,{"$f":"IF(AND('AGENCY STRATEGY'!D299=\"\",B243=\"\"),\"Objective\",IF(AND('AGENCY STRATEGY'!D299<>\"\",B243=\"\"),CONCATENATE('AGENCY STRATEGY'!D299,\" Objective\"),IF(AND('AGENCY STRATEGY'!D299=\"\",B243<>\"\"),CONCATENATE(\"Objective: \",B243),IF(AND('AGENCY STRATEGY'!D299<>\"\",B243<>\"\"),CONCATENATE('AGENCY STRATEGY'!D299,\" Objective: \",B243)))))","v":"Objective"},null,null,null,null,null,null,null,null,null,null,null,null,null,null,null,{"$f":"IF($F243<>\"\",1,0)","v":0}]
[null,null,null,null,null,null,null,null,null,null,null,null,null,null,null,null,null,null,null,null,null,{"$f":"IF($F243<>\"\",1,0)","v":0}]
[null,null,null,null,null,{"$f":"IF('AGENCY STRATEGY'!F298=\"\",\"\",'AGENCY STRATEGY'!F298)","v":""},null,null,null,null,null,null,null,null,null,null,null,null,null,null,null,{"$f":"IF($F243<>\"\",1,0)","v":0}]
[null,null,null,null,null,null,null,null,null,null,null,null,null,null,null,null,null,null,null,null,null,{"$f":"IF($F243<>\"\",1,0)","v":0}]
[null,null,null,null,null,null,null,null,null,null,null,null,null,null,null,null,null,null,null,null,null,{"$f":"IF($F243<>\"\",1,0)","v":0}]
[null,null,null,null,null,null,null,"Action Item:",{"$f":"IF('AGENCY STRATEGY'!H304=\"\",\"\",'AGENCY STRATEGY'!H304)","v":""},null,null,null,null,null,null,null,null,null,null,null,null,{"$f":"IF($I246<>\"\",1,0)","v":0}]
[null,null,null,null,null,null,{"$f":"'AGENCY STRATEGY'!F305","v":""},null,null,null,null,null,null,null,null,null,null,null,null,null,null,{"$f":"IF($I246<>\"\",1,0)","v":0}]
[null,null,null,null,null,null,null,null,null,null,null,null,null,null,null,null,null,null,null,null,null,{"$f":"IF($I246<>\"\",1,0)","v":0}]
[null,null,null,null,null,null,null,"Action Item:",{"$f":"IF('AGENCY STRATEGY'!H307=\"\",\"\",'AGENCY STRATEGY'!H307)","v":""},null,null,null,null,null,null,null,null,null,null,null,null,{"$f":"IF($I249<>\"\",1,0)","v":0}]
[null,null,null,null,null,null,{"$f":"'AGENCY STRATEGY'!F308","v":""},null,null,null,null,null,null,null,null,null,null,null,null,null,null,{"$f":"IF($I249<>\"\",1,0)","v":0}]
[null,null,null,null,null,null,null,null,null,null,null,null,null,null,null,null,null,null,null,null,null,{"$f":"IF($I249<>\"\",1,0)","v":0}]
[null,null,null,null,null,null,null,"Action Item:",{"$f":"IF('AGENCY STRATEGY'!H310=\"\",\"\",'AGENCY STRATEGY'!H310)","v":""},null,null,null,null,null,null,null,null,null,null,null,null,{"$f":"IF($I252<>\"\",1,0)","v":0}]
[null,null,null,null,null,null,{"$f":"'AGENCY STRATEGY'!F311","v":""},null,null,null,null,null,null,null,null,null,null,null,null,null,null,{"$f":"IF($I252<>\"\",1,0)","v":0}]
[null,null,null,null,null,null,null,null,null,null,null,null,null,null,null,null,null,null,null,null,null,{"$f":"IF($I252<>\"\",1,0)","v":0}]
[null,null,null,null,null,null,null,"Action Item:",{"$f":"IF('AGENCY STRATEGY'!H313=\"\",\"\",'AGENCY STRATEGY'!H313)","v":""},null,null,null,null,null,null,null,null,null,null,null,null,{"$f":"IF($I255<>\"\",1,0)","v":0}]
[null,null,null,null,null,null,{"$f":"'AGENCY STRATEGY'!F314","v":""},null,null,null,null,null,null,null,null,null,null,null,null,null,null,{"$f":"IF($I255<>\"\",1,0)","v":0}]
[null,null,null,null,null,null,null,null,null,null,null,null,null,null,null,null,null,null,null,null,null,{"$f":"IF($I255<>\"\",1,0)","v":0}]
[null,null,null,null,null,null,null,"Action Item:",{"$f":"IF('AGENCY STRATEGY'!H316=\"\",\"\",'AGENCY STRATEGY'!H316)","v":""},null,null,null,null,null,null,null,null,null,null,null,null,{"$f":"IF($I258<>\"\",1,0)","v":0}]
[null,null,null,null,null,null,{"$f":"'AGENCY STRATEGY'!F317","v":""},null,null,null,null,null,null,null,null,null,null,null,null,null,null,{"$f":"IF($I258<>\"\",1,0)","v":0}]
[null,null,null,null,null,null,null,null,null,null,null,null,null,null,null,null,null,null,null,null,null,{"$f":"IF($I258<>\"\",1,0)","v":0}]
[null,null,null,null,null,"*********************************************************************************************************",null,null,null,null,null,null,null,null,null,null,null,null,null,null,null,{"$f":"IF(AND($F243<>\"\",COUNTIF($F241,\"*new*\")=0),1,0)","v":0}]
[null,null,null,null,null,null,null,"Objective Progress Summary:",{"$f":"IF(AND('CENTRAL ANALYSIS'!G113=1,'AGENCY STRATEGY'!H328=\"\"),\"No Update Provided at this Time.\",IF('AGENCY STRATEGY'!H328=\"\",\"\",'AGENCY STRATEGY'!H328))","v":"No Update Provided at this Time."},null,null,null,null,null,null,null,null,null,null,null,null,{"$f":"IF(AND($F243<>\"\",COUNTIF($F241,\"*new*\")=0),1,0)","v":0}]
[null,null,null,null,null,null,null,null,null,null,null,null,null,null,null,null,null,null,null,null,null,{"$f":"IF(AND($F243<>\"\",COUNTIF($F241,\"*new*\")=0),1,0)","v":0}]
[null,null,null,null,null,null,null,null,null,null,null,null,null,null,null,null,null,null,null,null,null,{"$f":"IF(AND($F243<>\"\",COUNTIF($F241,\"*new*\")=0),1,0)","v":0}]
[null,null,null,null,null,null,null,null,null,null,null,null,null,null,null,null,null,null,null,null,null,{"$f":"IF(AND($F243<>\"\",COUNTIF($F241,\"*new*\")=0),1,0)","v":0}]
[null,null,null,null,null,null,null,null,null,null,null,null,null,null,null,null,null,null,null,null,null,{"$f":"IF(AND($F243<>\"\",COUNTIF($F241,\"*new*\")=0),1,0)","v":0}]
[null,null,null,null,null,null,null,null,null,null,null,null,null,null,null,null,null,null,null,null,null,{"$f":"IF(AND($F243<>\"\",COUNTIF($F241,\"*new*\")=0),1,0)","v":0}]
[null,null,null,null,null,null,null,null,null,null,null,null,null,null,null,null,null,null,null,null,null,{"$f":"IF($F271<>\"\",1,0)","v":0}]
[null,"Optional: Add Title to Objective 5",null,null,null,{"$f":"IF(AND('AGENCY STRATEGY'!D345=\"\",B271=\"\"),\"Objective\",IF(AND('AGENCY STRATEGY'!D345<>\"\",B271=\"\"),CONCATENATE('AGENCY STRATEGY'!D345,\" Objective\"),IF(AND('AGENCY STRATEGY'!D345=\"\",B271<>\"\"),CONCATENATE(\"Objective: \",B271),IF(AND('AGENCY STRATEGY'!D345<>\"\",B271<>\"\"),CONCATENATE('AGENCY STRATEGY'!D345,\" Objective: \",B271)))))","v":"Objective"},null,null,null,null,null,null,null,null,null,null,null,null,null,null,null,{"$f":"IF($F271<>\"\",1,0)","v":0}]
[null,null,null,null,null,null,null,null,null,null,null,null,null,null,null,null,null,null,null,null,null,{"$f":"IF($F271<>\"\",1,0)","v":0}]
[null,null,null,null,null,{"$f":"IF('AGENCY STRATEGY'!F344=\"\",\"\",'AGENCY STRATEGY'!F344)","v":""},null,null,null,null,null,null,null,null,null,null,null,null,null,null,null,{"$f":"IF($F271<>\"\",1,0)","v":0}]
[null,null,null,null,null,null,null,null,null,null,null,null,null,null,null,null,null,null,null,null,null,{"$f":"IF($F271<>\"\",1,0)","v":0}]
[null,null,null,null,null,null,null,null,null,null,null,null,null,null,null,null,null,null,null,null,null,{"$f":"IF($F$271<>\"\",1,0)","v":0}]
[null,null,null,null,null,null,null,"Action Item:",{"$f":"IF('AGENCY STRATEGY'!H350=\"\",\"\",'AGENCY STRATEGY'!H350)","v":""},null,null,null,null,null,null,null,null,null,null,null,null,{"$f":"IF($I274<>\"\",1,0)","v":0}]
[null,null,null,null,null,null,{"$f":"'AGENCY STRATEGY'!F351","v":""},null,null,null,null,null,null,null,null,null,null,null,null,null,null,{"$f":"IF($I274<>\"\",1,0)","v":0}]
[null,null,null,null,null,null,null,null,null,null,null,null,null,null,null,null,null,null,null,null,null,{"$f":"IF($I274<>\"\",1,0)","v":0}]
[null,null,null,null,null,null,null,"Action Item:",{"$f":"IF('AGENCY STRATEGY'!H353=\"\",\"\",'AGENCY STRATEGY'!H353)","v":""},null,null,null,null,null,null,null,null,null,null,null,null,{"$f":"IF($I277<>\"\",1,0)","v":0}]
[null,null,null,null,null,null,{"$f":"'AGENCY STRATEGY'!F354","v":""},null,null,null,null,null,null,null,null,null,null,null,null,null,null,{"$f":"IF($I277<>\"\",1,0)","v":0}]
[null,null,null,null,null,null,null,null,null,null,null,null,null,null,null,null,null,null,null,null,null,{"$f":"IF($I277<>\"\",1,0)","v":0}]
[null,null,null,null,null,null,null,"Action Item:",{"$f":"IF('AGENCY STRATEGY'!H356=\"\",\"\",'AGENCY STRATEGY'!H356)","v":""},null,null,null,null,null,null,null,null,null,null,null,null,{"$f":"IF($I280<>\"\",1,0)","v":0}]
[null,null,null,null,null,null,{"$f":"'AGENCY STRATEGY'!F357","v":""},null,null,null,null,null,null,null,null,null,null,null,null,null,null,{"$f":"IF($I280<>\"\",1,0)","v":0}]
[null,null,null,null,null,null,null,null,null,null,null,null,null,null,null,null,null,null,null,null,null,{"$f":"IF($I280<>\"\",1,0)","v":0}]
[null,null,null,null,null,null,null,"Action Item:",{"$f":"IF('AGENCY STRATEGY'!H359=\"\",\"\",'AGENCY STRATEGY'!H359)","v":""},null,null,null,null,null,null,null,null,null,null,null,null,{"$f":"IF($I283<>\"\",1,0)","v":0}]
[null,null,null,null,null,null,{"$f":"'AGENCY STRATEGY'!F360","v":""},null,null,null,null,null,null,null,null,null,null,null,null,null,null,{"$f":"IF($I283<>\"\",1,0)","v":0}]
[null,null,null,null,null,null,null,null,null,null,null,null,null,null,null,null,null,null,null,null,null,{"$f":"IF($I283<>\"\",1,0)","v":0}]
[null,null,null,null,null,null,null,"Action Item:",{"$f":"IF('AGENCY STRATEGY'!H362=\"\",\"\",'AGENCY STRATEGY'!H362)","v":""},null,null,null,null,null,null,null,null,null,null,null,null,{"$f":"IF($I286<>\"\",1,0)","v":0}]
[null,null,null,null,null,null,{"$f":"'AGENCY STRATEGY'!F363","v":""},null,null,null,null,null,null,null,null,null,null,null,null,null,null,{"$f":"IF($I286<>\"\",1,0)","v":0}]
[null,null,null,null,null,null,null,null,null,null,null,null,null,null,null,null,null,null,null,null,null,{"$f":"IF($I286<>\"\",1,0)","v":0}]
[null,null,null,null,null,"*********************************************************************************************************",null,null,null,null,null,null,null,null,null,null,null,null,null,null,null,{"$f":"IF(AND($F271<>\"\",COUNTIF($F269,\"*new*\")=0),1,0)","v":0}]
[null,null,null,null,null,null,null,"Objective Progress Summary:",{"$f":"IF(AND('CENTRAL ANALYSIS'!G121=1,'AGENCY STRATEGY'!H374=\"\"),\"No Update Provided at this Time.\",IF('AGENCY STRATEGY'!H374=\"\",\"\",'AGENCY STRATEGY'!H374))","v":"No Update Provided at this Time."},null,null,null,null,null,null,null,null,null,null,null,null,{"$f":"IF(AND($F271<>\"\",COUNTIF($F269,\"*new*\")=0),1,0)","v":0}]
[null,null,null,null,null,null,null,null,null,null,null,null,null,null,null,null,null,null,null,null,null,{"$f":"IF(AND($F271<>\"\",COUNTIF($F269,\"*new*\")=0),1,0)","v":0}]
[null,null,null,null,null,null,null,null,null,null,null,null,null,null,null,null,null,null,null,null,null,{"$f":"IF(AND($F271<>\"\",COUNTIF($F269,\"*new*\")=0),1,0)","v":0}]
[null,null,null,null,null,null,null,null,null,null,null,null,null,null,null,null,null,null,null,null,null,{"$f":"IF(AND($F271<>\"\",COUNTIF($F269,\"*new*\")=0),1,0)","v":0}]
[null,null,null,null,null,null,null,null,null,null,null,null,null,null,null,null,null,null,null,null,null,{"$f":"IF(AND($F271<>\"\",COUNTIF($F269,\"*new*\")=0),1,0)","v":0}]
[null,null,null,null,null,null,null,null,null,null,null,null,null,null,null,null,null,null,null,null,null,{"$f":"IF(AND($F271<>\"\",COUNTIF($F269,\"*new*\")=0),1,0)","v":0}]
[null,null,null,null,null,null,null,null,null,null,null,null,null,null,null,null,null,null,null,null,null,1]
[null,null,null,null,"Statement of Commitment",null,null,null,null,null,null,null,null,null,null,null,null,null,null,null,null,1]
[null,null,null,null,null,null,null,null,null,null,null,null,null,null,null,null,null,null,null,null,null,1]
[null,null,null,null,null,{"$f":"CONCATENATE('AGENCY PROFILE'!J29,\" is committed to the Commonwealth's policy and its efforts to increase employment opportunities for individuals with disabilities.\")","v":" is committed to the Commonwealth's policy and its efforts to increase employment opportunities for individuals with disabilities."},null,null,null,null,null,null,null,null,null,null,null,null,null,null,null,1]
[null,null,null,null,null,null,null,null,null,null,null,null,null,null,null,null,null,null,null,null,null,1]
[null,null,null,null,null,null,null,null,null,null,null,null,null,null,null,null,null,null,null,null,null,1]
[null,null,null,null,null,null,null,null,null,null,null,null,null,null,null,null,null,null,null,null,null,1]
[null,null,null,null,null,"Agency Head Signature",null,null,null,null,null,null,null,"Human Resource Director",null,null,null,null,null,null,null,1]
[null,null,null,null,null,null,null,null,null,null,null,null,null,null,null,null,null,null,null,null,null,1]
[null,null,null,null,null,null,null,null,null,"Employment Lead, Individuals with Disabilities",null,null,null,null,null,null,null,null,null,null,null,1]
[null,null,null,null,null,null,null,null,null,null,null,null,null,null,null,null,null,null,null,null,null,1]
[null,null,null,null,null,null,null,null,null,null,null,null,null,null,null,null,null,null,null,null,null,1]
[null,null,null,null,null,null,null,null,null,null,null,null,null,null,null,null,null,null,null,null,null,1]
[null,"Step 2: Ensure the Report is Up to Date",null,null,null,null,null,null,null,null,null,null,null,null,null,null,null,null,null,null,null,1]
[null,null,null,null,null,null,null,null,null,null,null,null,null,null,null,null,null,null,null,null,null,1]
[null,"INSTRUCTIONS: If the report needs to be refreshed, indicated below, click the \"Refresh Report\" purple button. This will adjust the report to remove any empty objectives or action items from the Upcoming Fiscal Year Action plan or remove the SWOT Analysis if chosen to be omitted. The report should be up to date BEFORE exporting it to a PDF.",null,null,null,null,null,null,null,null,null,null,null,null,null,null,null,null,null,null,null,1]
[null,null,null,null,null,null,null,null,null,null,null,null,null,null,null,null,null,null,null,null,null,1]
[null,null,null,null,null,null,null,null,null,null,null,null,null,null,null,null,null,null,null,null,null,1]
[null,null,null,null,null,null,null,null,null,null,null,null,null,null,null,null,null,null,null,null,null,1]
[null,null,null,null,null,{"$f":"IF(AND($C$93=\"yes\",SUBTOTAL(103,$V$97)<>1),\"REPORT NEEDS TO BE REFRESHED. CLICK THE REFRESH BUTTON TO THE RIGHT.\",IF(SUMIF($V$1:$V$344,1)<>SUBTOTAL(103,$V$1:$V$344),\"REPORT NEEDS TO BE REFRESHED. CLICK THE REFRESH BUTTON TO THE RIGHT.\",\"REPORT IS UP TO DATE.\"))","v":"REPORT IS UP TO DATE."},null,null,null,null,null,null,null,null,null,null,null,null,null,null,null,1]
[null,null,null,null,null,null,null,null,null,null,null,null,null,null,null,null,null,null,null,null,null,1]
[null,null,null,null,null,null,null,null,null,null,null,null,null,null,null,null,null,null,null,null,null,1]
[null,null,null,null,null,null,null,null,null,null,null,null,null,null,null,null,null,null,null,null,null,1]
[null,null,null,null,null,null,null,null,null,null,null,null,null,null,null,null,null,null,null,null,null,1]
[null,null,null,null,null,null,null,null,null,null,null,null,null,null,null,null,null,null,null,null,null,1]
[null,"(Optional)Step 2a: Add Custom Page break for the Agency Strategy Section",null,null,null,null,null,null,null,null,null,null,null,null,null,null,null,null,null,null,null,1]
[null,null,null,null,null,null,null,null,null,null,null,null,null,null,null,null,null,null,null,null,null,1]
[null,"INSTRUCTIONS: If the agency strategy section is split on to multiple pages in the middle of an objective or action item, a custom page break can be added by clicking the \"Add Page Break\" button and entering the row number to insert the page break. It can also be removed by clicking the \"Remove Page Break\" button. ",null,null,null,null,null,null,null,null,null,null,null,null,null,null,null,null,null,null,null,1]
[null,null,null,null,null,null,null,null,null,null,null,null,null,null,null,null,null,null,null,null,null,1]
[null,null,null,null,null,null,null,null,null,null,null,null,null,null,null,null,null,null,null,null,null,1]
[null,null,null,null,null,null,null,null,null,null,null,null,null,null,null,null,null,null,null,null,null,1]
[null,null,null,null,null,null,null,null,null,null,null,null,null,null,null,null,null,null,null,null,null,1]
[null,null,null,null,null,null,null,null,null,null,null,null,null,null,null,null,null,null,null,null,null,1]
[null,null,null,null,null,null,null,null,null,null,null,null,null,null,null,null,null,null,null,null,null,1]
[null,"Step 3: Export the Report to PDF",null,null,null,null,null,null,null,null,null,null,null,null,null,null,null,null,null,null,null,1]
[null,null,null,null,null,null,null,null,null,null,null,null,null,null,null,null,null,null,null,null,null,1]
[null,"INSTRUCTIONS: Click the purple button below to Export the report to a PDF. The PDF can then be used to collect electronic signatures or printed as a hard copy to be signed.",null,null,null,null,null,null,null,null,null,null,null,null,null,null,null,null,null,null,null,1]
[null,null,null,null,null,null,null,null,null,null,null,null,null,null,null,null,null,null,null,null,null,1]
[null,null,null,null,null,null,null,null,null,null,null,null,null,null,null,null,null,null,null,null,null,1]
[null,null,null,null,null,null,null,null,null,null,null,null,null,null,null,null,null,null,null,null,null,1]
[null,"NOTE: If the \"Export Report to PDF to Sign\" button prints the report, it can be exported to PDF manually by going to File and Print. Select the \"Microsoft Print to PDF\" as the printer and then click the Print button. This will then open a Save As dialogue box for you to save the report as a PDF.  ",null,null,null,null,null,null,null,null,null,null,null,null,null,null,null,null,null,null,null,1]
[null,null,null,null,null,null,null,null,null,null,null,null,null,null,null,null,null,null,null,null,null,1]
[null,null,null,null,null,null,null,null,null,null,null,null,null,null,null,null,null,null,null,null,null,1]
[null,"Step 4: Submit the Report to DHRM Workforce Planning (New Email for FY23)",null,null,null,null,null,null,null,null,null,null,null,null,null,null,null,null,null,null,null,1]
[null,null,null,null,null,null,null,null,null,null,null,null,null,null,null,null,null,null,null,null,null,1]
[null,"INSTRUCTIONS: After the report is signed, please submit the signed PDF and this excel file to DHRM Workforce Planning at dhrm.wfp@dhrm.virginia.gov no later than June 30th of the reporting fiscal year. Please include the Agency Name and the term \"EOP\" in the subject line. ",null,null,null,null,null,null,null,null,null,null,null,null,null,null,null,null,null,null,null,1]
[null,null,null,null,null,null,null,null,null,null,null,null,null,null,null,null,null,null,null,null,null,1]
[null,null,null,null,null,null,null,null,null,null,null,null,null,null,null,null,null,null,null,null,null,1]
[null,null,null,null,null,null,null,null,null,null,null,null,null,null,null,null,null,null,null,null,null,1]
[null,null,null,null,null,null,null,null,null,null,null,null,null,null,null,null,null,null,null,null,null,0]

{"sheet":"CENTRAL DATA","index":6,"n_rows":143,"n_cols":17,"rows_kept":143,"cut":false,"hidden":true,"merged":[[5,2,7,14],[8,2,9,14]]}
[]
[]
[]
[]
[]
[null,null,"CENTRAL DATA"]
[]
[]
[null,null,"This tab serves as a central place for all data for drop down lists or look up formulas within the tool. "]
[]
[]
[]
["Agency Names","Secretary","Agency Number",null,"Fiscal Year","Demographic","PY","Yes/No",null,"Home Tab Pictures",null,null,"Agency Strategy Changes",null,"Summary Colors",null,"Summary Colors"]
["Assistive Technology Loan Fund Authority","Health and Human Resources",null,null,{"$f":"CONCATENATE(\"FY\",RIGHT('DHRM ADMIN'!$P$15,2)+0)","v":"FY0"},"ALL",{"$f":"E15","v":"FY-1"},"Yes",null,"LOCKED",null,null,"◄MODIFIED►",null,"Purple",null,"Fiscal Year EOP"]
["Blue Ridge Community College","Higher Education",291,null,{"$f":"IF('DHRM ADMIN'!$P$16>=1,CONCATENATE(\"FY\",RIGHT('DHRM ADMIN'!$P$15,2)-1),\"\")","v":"FY-1"},"Non-Leader",{"$f":"E16","v":"FY-2"},"No",null,"UNLOCKED",null,null,"◄NEW►",null,"Red",null,"Snapshot"]
["Board of Accountancy","Finance",226,null,{"$f":"IF('DHRM ADMIN'!$P$16>=2,CONCATENATE(\"FY\",RIGHT('DHRM ADMIN'!$P$15,2)-2),\"\")","v":"FY-2"},"Leader/Sup","",null,null,null,null,null,null,null,"Yellow"]
["Brightpoint Community College","Higher Education",290,null,{"$f":"IF('DHRM ADMIN'!$P$16>=3,CONCATENATE(\"FY\",RIGHT('DHRM ADMIN'!$P$15,2)-3),\"\")","v":""},"Executive","",null,null,null,null,null,null,null,"Green"]
["Center for Innovative Technology","Independent",null,null,{"$f":"IF('DHRM ADMIN'!$P$16>=4,CONCATENATE(\"FY\",RIGHT('DHRM ADMIN'!$P$15,2)-4),\"\")","v":""},null,""]
["Central Virginia Community College","Higher Education",292,null,{"$f":"IF('DHRM ADMIN'!$P$16=5,CONCATENATE(\"FY\",RIGHT('DHRM ADMIN'!$P$15,2)-5),\"\")","v":""}]
["Christopher Newport University","Higher Education",242]
["Commonwealth's Attorneys' Services Council","Public Safety and Homeland Security"]
["Compensation Board","Administration",157]
["Danville Community College ","Higher Education",279]
["Department for Aging and Rehabilitative Services","Health and Human Resources",262]
["Department for the Blind and Vision Impaired","Health and Human Resources",702]
["Department for the Deaf and Hard of Hearing","Health and Human Resources",751]
["Department of Accounts","Finance",151]
["Department of Aviation","Transportation",841]
["Department of Behavioral Health and Developmental Services","Health and Human Resources",720]
["Department of Corrections","Public Safety and Homeland Security",701]
["Department of Criminal Justice Services","Public Safety and Homeland Security",140]
["Department of Education","Education",201]
["Department of Elections","Administration",132]
["Department of Emergency Management","Public Safety and Homeland Security",127]
["Department of Energy","Commerce and Trade",409]
["Department of Environmental Quality","Natural Resources",440]
["Department of Forensic Science","Public Safety and Homeland Security",778]
["Department of Forestry","Agriculture and Forestry",411]
["Department of General Services","Administration",194]
["Department of Health Professions","Health and Human Resources",223]
["Department of Historic Resources","Natural Resources",423]
["Department of Housing & Community Development","Commerce and Trade",165]
["Department of Human Resources Management","Administration",129]
["Department of Juvenile Justice","Public Safety and Homeland Security",777]
["Department of Labor and Industry","Commerce and Trade",181]
["Department of Medical Assistance Services","Health and Human Resources",602]
["Department of Military Affairs","Veterans and Defense Affairs",123]
["Department of Motor Vehicles","Transportation",154]
["Department of Planning and Budget","Administration",122]
["Department of Professional and Occupational Regulation","Commerce and Trade",222]
["Department of Rail and Public Transportation","Transportation",505]
["Department of Small Business and Supplier Diversity","Commerce and Trade",350]
["Department of Social Services","Health and Human Resources",765]
["Department of State Police","Public Safety and Homeland Security",156]
["Department of Taxation","Finance",161]
["Department of the Treasury","Finance",152]
["Department of Transportation","Transportation",501]
["Department of Veterans Services","Veterans and Defense Affairs",912]
["Department of Wildlife Resources","Natural Resources",403]
["Department of Workforce Development and Advancement","Labor",327]
["Eastern Shore Community College","Higher Education",284]
["Foundation for Healthy Youth","Health and Human Resources",852]
["Frontier Culture Museum of Virginia","Education",239]
["George Mason University","Higher Education",247]
["Germanna Community College","Higher Education",297]
["Gunston Hall","Education",417]
["J. Sargeant Reynolds Community College","Higher Education",283]
["James Madison University","Higher Education",216]
["Jamestown-Yorktown Foundation","Education",425]
["Jones and Cabacoy Veterans Care Center ","Veterans and Defense Affairs",903]
["Laurel Ridge Community College","Higher Education",298]
["Library of Virginia","Education",202]
["Longwood University","Higher Education",214]
["Marine Resources Commission","Natural Resources",402]
["Motor Vehicle Dealer Board","Transportation",506]
["Mountain Empire Community College","Higher Education",299]
["Mountain Gateway Community College","Higher Education",287]
["New College Institute","Higher Education",938]
["New River Community College","Higher Education",275]
["Norfolk State University","Higher Education",213]
["Northern Virginia Community College","Higher Education",280]
["Northern Virginia Mental Health Institute","Health and Human Resources"]
["Office of the State Inspector General","Independent",147]
["Old Dominion University","Higher Education",221]
["Patrick & Henry Community College","Higher Education",285]
["Paul D. Camp Community College","Higher Education",277]
["Piedmont Virginia Community College","Higher Education",282]
["Radford University","Higher Education",217]
["Rappahannock Community College","Higher Education",278]
["Richard Bland College","Higher Education",241]
["Sitter and Barfoot Veterans Care Center","Veterans and Defense Affairs",922]
["Southern Virginia Higher Education Center","Higher Education",937]
["Southside Virginia Community College","Higher Education",276]
["Southwest Virginia Community College","Higher Education",294]
["Southwest Virginia Higher Education Center","Higher Education",948]
["State Corporation Commission","Independent",171]
["State Council for Higher Education for Virginia","Education",245]
["The College of William and Mary","Higher Education",204]
["The Science Museum of Virginia","Education",146]
["Tidewater Community College","Higher Education",295]
["University of Mary Washington","Higher Education",215]
["University of Virginia","Higher Education",207]
["University of Virginia at Wise","Higher Education",246]
["University of Virginia Medical Center","Higher Education",209]
["VCCS Shared Services Center","Higher Education",270]
["VCCS System Office","Higher Education",270]
["Virginia Alcoholic Beverage Control","Independent",999]
["Virginia Board for People with Disabilities","Health and Human Resources",606]
["Virginia Commercial Space Flight Authority","Transportation"]
["Virginia Commission for the Arts","Education",148]
["Virginia Commonwealth University","Higher Education",236]
["Virginia Commonwealth University Health Systems Authority","Independent"]
["Virginia Community College System","Higher Education",261]
["Virginia Department of Agriculture and Consumer Services","Agriculture and Forestry",301]
["Virginia Department of Conservation and Recreation","Natural Resources",199]
["Virginia Department of Fire Programs","Public Safety and Homeland Security",960]
["Virginia Department of Health","Health and Human Resources",601]
["Virginia Economic Development Partnership","Commerce and Trade",310]
["Virginia Employment Commission","Commerce and Trade",182]
["Virginia Highlands Community College","Higher Education",296]
["Virginia Housing Development Authority","Commerce and Trade"]
["Virginia Information Technologies Agency","Administration",136]
["Virginia Lottery","Independent",172]
["Virginia Military Institute","Higher Education",211]
["Virginia Museum of Fine Arts","Education",238]
["Virginia Museum of Natural History","Education",942]
["Virginia Parole Board","Public Safety and Homeland Security",766]
["Virginia Peninsula Community College","Higher Education",293]
["Virginia Polytechnic Institute and State University","Higher Education",208]
["Virginia Port Authority","Transportation",407]
["Virginia Racing Commission","Agriculture and Forestry",405]
["Virginia Resources Authority","Finance"]
["Virginia Retirement System","Independent",158]
["Virginia School for the Deaf and the Blind","Education",218]
["Virginia State University","Higher Education",212]
["Virginia Tobacco Region Revitalization Commission","Commerce and Trade",851]
["Virginia Tourism Corporation","Commerce and Trade",320]
["Virginia Veterans Care Center","Veterans and Defense Affairs",128]
["Virginia Western Community College","Higher Education",286]
["Virginia Workers' Compensation Commission","Independent",191]
["Virginia529 College Savings Plan","Independent",174]
["Wilson Workforce Rehabilitation Center","Health and Human Resources",203]
["Wytheville Community College","Higher Education",288]

{"sheet":"CENTRAL ANALYSIS","index":7,"n_rows":298,"n_cols":19,"rows_kept":298,"cut":false,"hidden":true,"merged":[[84,12,84,13],[85,12,86,13],[85,6,86,7],[84,6,84,7],[37,0,37,5],[43,0,43,5],[48,0,48,8],[51,0,51,2],[84,9,84,10],[73,0,73,4],[78,0,78,4],[85,9,86,10],[63,0,63,4],[68,0,68,4],[5,2,7,14],[12,0,12,2],[17,0,17,2],[8,2,9,14],[22,0,22,7],[12,4,12,6],[12,9,12,11],[25,0,25,7],[28,0,28,7],[31,0,31,7],[34,0,34,16],[57,0,57,1],[107,3,108,4],[115,3,116,4],[123,3,124,4],[84,0,84,4],[85,0,86,1],[85,3,86,4],[91,3,92,4],[88,0,88,4],[99,3,100,4],[244,0,244,2],[244,3,244,5],[131,10,131,11],[245,0,249,2],[245,3,249,5],[238,0,238,2],[238,3,238,5],[237,0,237,5],[208,0,208,1],[239,0,243,2],[239,3,243,5],[259,0,263,2],[259,3,263,5],[251,0,251,5],[265,0,265,5],[266,0,266,2],[266,3,266,5],[252,0,252,2],[252,3,252,5],[253,0,257,2],[253,3,257,5],[258,0,258,2],[258,3,258,5],[267,0,271,2],[267,3,271,5],[272,0,272,2],[272,3,272,5],[273,0,277,2],[273,3,277,5],[279,0,279,5],[287,0,291,2],[287,3,291,5],[280,0,280,2],[280,3,280,5],[281,0,285,2],[281,3,285,5],[286,0,286,2],[286,3,286,5]]}
[]
[]
[]
[]
[]
[null,null,"CENTRAL ANALYSIS"]
[]
[]
[null,null,"This tab serves as a central place for all calculations for charts and tables. The yellow highlighted cells identify what the information is corresponding to throughout the workbook."]
[]
[]
[]
["Agency Profile Progress Bar ",null,null,null,"EOP Summary",null,null,null,null,"FY Date Validation"]
["Total Steps",8,null,null,"Total Steps",2,null,null,null,"FY Year",{"$f":"'AGENCY PROFILE'!N46","v":"00:00:00"},{"$f":"IF(K17<L15,1,0)","v":1}]
["Steps Completed",{"$f":"COUNTA('AGENCY PROFILE'!$J$29,'AGENCY PROFILE'!$P$59:$P$65)","v":0},{"$f":"B15/B14","v":0},null,"Steps Completed",{"$f":"COUNTIF(' EOP SUMMARY'!O25,\"Complete\")+COUNTIF(' EOP SUMMARY'!O30,\"Complete\")","v":0},{"$f":"F15/F14","v":0},null,null,"Today",{"$f":"TODAY()","v":"2024-02-28"},{"$f":"IF(YEAR(K18)<YEAR(K15),YEAR(K15),YEAR(K18))","v":2024}]
["Steps Remaining",{"$f":"B14-B15","v":8},{"$f":"B16/B14","v":1},null,"Steps Remaining",{"$f":"F14-F15","v":2},{"$f":"F16/F14","v":1},null,null,"FY Year",{"$f":"L15","v":2024},{"$f":"L15-1","v":2023}]
[null,null,null,null,null,null,null,null,null,"RPT FY Year",{"$f":"IF(MONTH(K14)<7,YEAR(K14),YEAR(K14)+1)","v":1900}]
["Workforce Data & Strategy Progress Bar ",null,null,"SWOT Steps","Action Plan Setps",null,null,null,null,"90 Days Prior",{"$f":"K15-90","v":"2023-11-30"}]
["Total Steps",{"$f":"31+D19+E19","v":35},null,4,{"$f":"SUM(B90+B97+B105+B113+B121+B129)+COUNTIF(F91:F123,\"yes\")","v":0}]
["Steps Completed",{"$f":"COUNTA('WORKFORCE DATA'!P33:P36)+COUNTA('WORKFORCE DATA'!P41:P44)+COUNTA('WORKFORCE DATA'!P55:P57)+COUNTA('WORKFORCE DATA'!P70:P73)+COUNTA('WORKFORCE DATA'!P78:P81)+COUNTA('WORKFORCE DATA'!P86:P89)+COUNTA('WORKFORCE DATA'!P94:P97)+COUNTA('WORKFORCE DATA'!P102:P105)+D20+E20","v":0},{"$f":"B20/B19","v":0},{"$f":"COUNTIF('AGENCY STRATEGY'!N70,\"Complete\")+COUNTIF('AGENCY STRATEGY'!N89,\"Complete\")+COUNTIF('AGENCY STRATEGY'!N108,\"Complete\")+COUNTIF('AGENCY STRATEGY'!N127,\"Complete\")","v":0},{"$f":"SUM(D91,D99,D107,D115,D123,F92,F100,F108,F116,F124)","v":0}]
["Steps Remaining",{"$f":"B19-B20","v":35},{"$f":"B21/B19","v":1}]
[]
["Workforce Insights - Total Employees",null,null,null,null,null,null,null,null,"Hire Rate","Candiate Hire","Internal Mobility","Vol. Sep"]
["Fiscal Year","Total Classified Employees","Total Employee With Disabilities","Total Leader/Sups","Total Executives","Total Non Leaders","10% Total Employees",null,"Total Applicants",{"$f":"VLOOKUP('AGENCY STRATEGY'!$C$24,'CENTRAL ANALYSIS'!$A$40:$C$43,3,FALSE)/$B$25","v":{"$error":"#VALUE!"}},{"$f":"VLOOKUP('AGENCY STRATEGY'!$C$24,'CENTRAL ANALYSIS'!$A$40:$C$43,3,FALSE)/$F$37","v":{"$error":"#VALUE!"}},{"$f":"VLOOKUP('AGENCY STRATEGY'!$C$24,$A$54:$D$57,4,FALSE)/$B$25","v":{"$error":"#N/A"}},{"$f":"VLOOKUP('AGENCY STRATEGY'!$C$24,$A$40:$F$43,6,FALSE)/$B$25","v":{"$error":"#N/A"}}]
[{"$f":"'AGENCY STRATEGY'!$C$23","v":"FY23"},{"$f":"HLOOKUP($A$25,'AGENCY PROFILE'!$N$58:$P$65,2,FALSE)","v":{"$error":"#N/A"}},{"$f":"HLOOKUP($A$25,'AGENCY PROFILE'!$N$58:$P$65,3,FALSE)","v":{"$error":"#N/A"}},{"$f":"IF(OR('AGENCY STRATEGY'!$C$24=\"all\",'AGENCY STRATEGY'!$C$24=\"Leader/Sup\"),HLOOKUP($A$25,'AGENCY PROFILE'!$N$58:$P$65,4,FALSE),\"\")","v":{"$error":"#N/A"}},{"$f":"IF(OR('AGENCY STRATEGY'!$C$24=\"all\",'AGENCY STRATEGY'!$C$24=\"Executive\"),HLOOKUP($A$25,'AGENCY PROFILE'!$N$58:$P$65,5,FALSE),\"\")","v":{"$error":"#N/A"}},{"$f":"IF(OR('AGENCY STRATEGY'!$C$24=\"all\",'AGENCY STRATEGY'!$C$24=\"Non-Leader\"),(HLOOKUP($A$25,'AGENCY PROFILE'!$N$58:$P$65,3,FALSE))-(SUM(HLOOKUP($A$25,'AGENCY PROFILE'!$N$58:$P$65,4,FALSE)+HLOOKUP($A$25,'AGENCY PROFILE'!$N$58:$P$65,5,FALSE))),\"\")","v":{"$error":"#N/A"}},{"$f":"ROUNDUP(B25*0.1,0)","v":{"$error":"#N/A"}},null,{"$f":"HLOOKUP($A$25,'WORKFORCE DATA'!$N$40:$P$44,2,FALSE)","v":{"$error":"#N/A"}},{"$f":"VLOOKUP('AGENCY STRATEGY'!$C$24,'CENTRAL ANALYSIS'!$A$40:$C$43,3,FALSE)","v":""},{"$f":"VLOOKUP('AGENCY STRATEGY'!$C$24,'CENTRAL ANALYSIS'!$A$40:$C$43,2,FALSE)","v":""},{"$f":"VLOOKUP('AGENCY STRATEGY'!$C$24,$A$54:$D$57,2,FALSE)","v":{"$error":"#N/A"}},{"$f":"VLOOKUP('AGENCY STRATEGY'!$C$24,$A$40:$F$43,5,FALSE)","v":""}]
["Percentages",null,null,null,null,null,null,null,null,null,null,{"$f":"VLOOKUP('AGENCY STRATEGY'!$C$24,$A$54:$D$57,3,FALSE)","v":{"$error":"#N/A"}},{"$f":"VLOOKUP('AGENCY STRATEGY'!$C$24,$A$40:$F$43,4,FALSE)","v":""}]
[null,"Total Classified Employees","Total Employee With Disabilities","Total Leader/Sups","Total Executives","Total Non Leaders","10% Total Employees",null,null,"PY Hire Rate","PY Candiate Hire","PY Internal Mobility","PY Vol. Sep"]
[null,null,{"$f":"HLOOKUP($A$25,'AGENCY PROFILE'!$N$58:$P$65,3,FALSE)/B25","v":{"$error":"#N/A"}},{"$f":"D25/$B$25","v":{"$error":"#N/A"}},{"$f":"E25/$B$25","v":{"$error":"#N/A"}},{"$error":"#N/A"},{"$f":"10%-C28","v":{"$error":"#N/A"}},null,{"$f":"VLOOKUP($A$25,'CENTRAL DATA'!$E$13:$G$19,3,FALSE)","v":{"$error":"#N/A"}},{"$f":"HLOOKUP($I$28,'WORKFORCE DATA'!$N$32:$P$36,3,FALSE)/HLOOKUP($I$28,'AGENCY PROFILE'!$N$58:$P$65,2,FALSE)","v":{"$error":"#N/A"}},{"$f":"HLOOKUP($I$28,'WORKFORCE DATA'!$N$32:$P$36,3,FALSE)/HLOOKUP($I$28,'WORKFORCE DATA'!$N$40:$P$44,2,FALSE)","v":{"$error":"#N/A"}},{"$f":"(HLOOKUP($I$28,'WORKFORCE DATA'!$N$77:$P$81,3,FALSE)+HLOOKUP($I$28,'WORKFORCE DATA'!$N$85:$P$89,3,FALSE))/HLOOKUP($I$28,'AGENCY PROFILE'!$N$58:$P$65,2,FALSE)","v":{"$error":"#N/A"}},{"$f":"(HLOOKUP($I$28,'WORKFORCE DATA'!$N$93:$P$97,3,FALSE)+HLOOKUP($I$28,'WORKFORCE DATA'!$N$101:$P$105,3,FALSE))/HLOOKUP($I$28,'AGENCY PROFILE'!$N$58:$P$65,2,FALSE)","v":{"$error":"#N/A"}}]
["1st Graph Data for Total Numbers",null,null,null,null,null,null,null,"Change",{"$f":"IFERROR(J24-J28,\"\")","v":""},{"$f":"IFERROR(K24-K28,\"\")","v":""},"","",null,"▲"]
[null,null,"Total Employee With Disabilities","10% Total Employees",null,null,null,null,"Direction",{"$f":"IF(J29=\"\",\"\",IF(J29>0,$O$29,IF(J29=0,$O$30,IF(J29<0,$O$31))))","v":""},{"$f":"IF(K29=\"\",\"\",IF(K29>0,$O$29,IF(K29=0,$O$30,IF(K29<0,$O$31))))","v":""},"","",null,"◄►"]
[null,null,{"$f":"IFERROR(C28,0)","v":0},{"$f":"IFERROR(G28,5%)","v":0.05},null,null,null,null,"Combined",{"$f":"CONCATENATE(J30,TEXT(J29,\"0.0%\"))","v":""},{"$f":"CONCATENATE(K30,TEXT(K29,\"0.0%\"))","v":""},"","",null,"▼"]
["2nd Graph Data for Total Numbers"]
[null,null,null,"Total Leader/Sups","Total Executives","Total Non Leaders","10% Total Employees"]
[null,null,null,{"$f":"IF(OR('AGENCY STRATEGY'!$C$24=\"all\",'AGENCY STRATEGY'!$C$24=\"Leader/Sup\"),D28,\"\")","v":{"$error":"#N/A"}},{"$f":"IF(OR('AGENCY STRATEGY'!$C$24=\"all\",'AGENCY STRATEGY'!$C$24=\"Executive\"),E28,\"\")","v":{"$error":"#N/A"}},{"$f":"IF(OR('AGENCY STRATEGY'!$C$24=\"all\",'AGENCY STRATEGY'!$C$24=\"Non-Leader\"),F28,\"\")","v":{"$error":"#N/A"}},{"$f":"G28","v":{"$error":"#N/A"}}]
["Workforce Insights - Workforce Data (Employees with Disabilities)"]
["Fiscal Year","Total Hires","Total Hires Leader/Sups","Total Hires Executives","Hires Non Leaders","Total Applicants","Total Applicant Leader/Sups","Total Applicant Executives","Applicants Non Leaders","Total Separations","Total Separations Leader/Sups","Total Separations Executives","Separations Non Leaders","Total External Transfers","Total External Transfers Leader/Sups","Total External Transfers Executives","External Transfers Non Leaders"," "," "]
[{"$f":"'AGENCY STRATEGY'!$C$23","v":"FY23"},{"$f":"IFERROR(HLOOKUP($A$37,'WORKFORCE DATA'!$N$32:$P$36,3,FALSE),\"\")","v":""},{"$f":"IFERROR(HLOOKUP($A$37,'WORKFORCE DATA'!$N$32:$P$36,4,FALSE),\"\")","v":""},{"$f":"IFERROR(HLOOKUP($A$37,'WORKFORCE DATA'!$N$32:$P$36,5,FALSE),\"\")","v":""},{"$f":"IFERROR(B37-SUM(C37:D37),\"\")","v":""},{"$f":"IFERROR(HLOOKUP($A$37,'WORKFORCE DATA'!$N$40:$P$44,3,FALSE),\"\")","v":""},{"$f":"IFERROR(HLOOKUP($A$37,'WORKFORCE DATA'!$N$40:$P$44,4,FALSE),\"\")","v":""},{"$f":"IFERROR(HLOOKUP($A$37,'WORKFORCE DATA'!$N$40:$P$44,5,FALSE),\"\")","v":""},{"$f":"IFERROR(F37-SUM(G37:H37),\"\")","v":""},{"$f":"IFERROR(HLOOKUP($A$37,'WORKFORCE DATA'!$N$93:$P$97,3,FALSE),\"\")","v":""},{"$f":"IFERROR(HLOOKUP($A$37,'WORKFORCE DATA'!$N$93:$P$97,4,FALSE),\"\")","v":""},{"$f":"IFERROR(HLOOKUP($A$37,'WORKFORCE DATA'!$N$93:$P$97,5,FALSE),\"\")","v":""},{"$f":"IFERROR(J37-SUM(K37:L37),\"\")","v":""},{"$f":"IFERROR(HLOOKUP($A$37,'WORKFORCE DATA'!$N$101:$P$105,3,FALSE),\"\")","v":""},{"$f":"IFERROR(HLOOKUP($A$37,'WORKFORCE DATA'!$N$101:$P$105,4,FALSE),\"\")","v":""},{"$f":"IFERROR(HLOOKUP($A$37,'WORKFORCE DATA'!$N$101:$P$105,5,FALSE),\"\")","v":""},{"$f":"IFERROR(N37-SUM(O37:P37),\"\")","v":""}]
["Chart Information"]
[null,"Applicants","Hires","Separations","External Transfers","Sum (Sep)"]
["All",{"$f":"F37","v":""},{"$f":"B37","v":""},{"$f":"J37","v":""},{"$f":"N37","v":""},{"$f":"SUM(D40:E40)","v":0}]
["Leader/Sup",{"$f":"G37","v":""},{"$f":"C37","v":""},{"$f":"K37","v":""},{"$f":"O37","v":""},{"$f":"SUM(D41:E41)","v":0}]
["Executive",{"$f":"H37","v":""},{"$f":"D37","v":""},{"$f":"L37","v":""},{"$f":"P37","v":""},0]
["Non-Leader",{"$f":"I37","v":""},{"$f":"E37","v":""},{"$f":"M37","v":""},{"$f":"Q37","v":""},0]
["Chart Data"]
["Applicants",{"$f":"IFERROR(VLOOKUP('AGENCY STRATEGY'!$C$24,$A$39:$F$43,2,FALSE),\"\")","v":""}]
["Hires",{"$f":"IFERROR(VLOOKUP('AGENCY STRATEGY'!$C$24,$A$39:$F$43,3,FALSE),\"\")","v":""}]
["Separations",{"$f":"IFERROR(-VLOOKUP('AGENCY STRATEGY'!$C$24,$A$39:$F$43,4,FALSE),\"\")","v":""}]
["External Transfers",{"$f":"IFERROR(-VLOOKUP('AGENCY STRATEGY'!$C$24,$A$39:$F$43,5,FALSE),\"\")","v":""}]
["Workforce Insights (Internal Mobility)"]
["Fiscal Year","Total Promotions","Total Promotions Leader/Sups","Total Promotions Executives","Promotions Non Leaders","Total Internal Transfers","Total Internal Transfers Leader/Sups","Total Internal Transfers Executives","Internal Transfers Non Leaders"]
[{"$f":"'AGENCY STRATEGY'!$C$23","v":"FY23"},{"$f":"HLOOKUP($A$37,'WORKFORCE DATA'!$N$77:$P$81,3,FALSE)","v":{"$error":"#N/A"}},{"$f":"HLOOKUP($A$37,'WORKFORCE DATA'!$N$77:$P$81,4,FALSE)","v":{"$error":"#N/A"}},{"$f":"HLOOKUP($A$37,'WORKFORCE DATA'!$N$77:$P$81,5,FALSE)","v":{"$error":"#N/A"}},{"$f":"B51-SUM(C51:D51)","v":{"$error":"#N/A"}},{"$f":"HLOOKUP($A$37,'WORKFORCE DATA'!$N$85:$P$89,3,FALSE)","v":{"$error":"#N/A"}},{"$f":"HLOOKUP($A$37,'WORKFORCE DATA'!$N$85:$P$89,4,FALSE)","v":{"$error":"#N/A"}},{"$f":"HLOOKUP($A$37,'WORKFORCE DATA'!$N$85:$P$89,5,FALSE)","v":{"$error":"#N/A"}},{"$f":"F51-SUM(G51:H51)","v":{"$error":"#N/A"}}]
["Chart Information"]
[null,"Promotions","Internal Transfers","Sum"]
["All",{"$f":"B51","v":{"$error":"#N/A"}},{"$f":"F51","v":{"$error":"#N/A"}},{"$f":"SUM(B54:C54)","v":{"$error":"#N/A"}}]
["Leader/Sup",{"$f":"C51","v":{"$error":"#N/A"}},{"$f":"G51","v":{"$error":"#N/A"}},{"$f":"SUM(B55:C55)","v":{"$error":"#N/A"}}]
["Executive",{"$f":"D51","v":{"$error":"#N/A"}},{"$f":"H51","v":{"$error":"#N/A"}},{"$error":"#N/A"}]
["Non-Leader",{"$f":"E51","v":{"$error":"#N/A"}},{"$f":"I51","v":{"$error":"#N/A"}},{"$error":"#N/A"}]
["Chart Data"]
["Promotions",{"$f":"IFERROR(VLOOKUP('AGENCY STRATEGY'!$C$24,$A$54:$C$57,2,FALSE),\"\")","v":""}]
["Internal Transfers",{"$f":"IFERROR(VLOOKUP('AGENCY STRATEGY'!$C$24,$A$54:$C$57,3,FALSE),\"\")","v":""}]
[]
[]
[]
["SWOT Analysis Strengths Complete Check"]
["Strengths","Recruitment","Retention","Engagement","Learning/Development"]
["Entered",{"$f":"IF('AGENCY STRATEGY'!E81<>\"\",1,0)","v":0},{"$f":"IF('AGENCY STRATEGY'!H81<>\"\",1,0)","v":0},{"$f":"IF('AGENCY STRATEGY'!K81<>\"\",1,0)","v":0},{"$f":"IF('AGENCY STRATEGY'!N81<>\"\",1,0)","v":0}]
["Check Box ",false,false,false,false]
["Complete",{"$f":"IF(OR(B66=1,B67=TRUE),1,0)","v":0},{"$f":"IF(OR(C66=1,C67=TRUE),1,0)","v":0},0,0]
["SWOT Analysis Weaknesses Complete Check"]
["Strengths","Recruitment","Retention","Engagement","Learning/Development"]
["Entered",{"$f":"IF('AGENCY STRATEGY'!E100<>\"\",1,0)","v":0},{"$f":"IF('AGENCY STRATEGY'!H100<>\"\",1,0)","v":0},{"$f":"IF('AGENCY STRATEGY'!K100<>\"\",1,0)","v":0},{"$f":"IF('AGENCY STRATEGY'!N100<>\"\",1,0)","v":0}]
["Check Box ",false,false,false,false]
["Complete",{"$f":"IF(OR(B71=1,B72=TRUE),1,0)","v":0},{"$f":"IF(OR(C71=1,C72=TRUE),1,0)","v":0},{"$f":"IF(OR(D71=1,D72=TRUE),1,0)","v":0},{"$f":"IF(OR(E71=1,E72=TRUE),1,0)","v":0}]
["SWOT Analysis Opportunities Complete Check"]
["Strengths","Recruitment","Retention","Engagement","Learning/Development"]
["Entered",{"$f":"IF('AGENCY STRATEGY'!E119<>\"\",1,0)","v":0},{"$f":"IF('AGENCY STRATEGY'!H119<>\"\",1,0)","v":0},{"$f":"IF('AGENCY STRATEGY'!K119<>\"\",1,0)","v":0},{"$f":"IF('AGENCY STRATEGY'!N119<>\"\",1,0)","v":0}]
["Check Box ",false,false,false,false]
["Complete",{"$f":"IF(OR(B76=1,B77=TRUE),1,0)","v":0},{"$f":"IF(OR(C76=1,C77=TRUE),1,0)","v":0},{"$f":"IF(OR(D76=1,D77=TRUE),1,0)","v":0},{"$f":"IF(OR(E76=1,E77=TRUE),1,0)","v":0}]
["SWOT Analysis Threats Complete Check"]
["Strengths","Recruitment","Retention","Engagement","Learning/Development"]
["Entered",{"$f":"IF('AGENCY STRATEGY'!E138<>\"\",1,0)","v":0},{"$f":"IF('AGENCY STRATEGY'!H138<>\"\",1,0)","v":0},{"$f":"IF('AGENCY STRATEGY'!K138<>\"\",1,0)","v":0},{"$f":"IF('AGENCY STRATEGY'!N138<>\"\",1,0)","v":0}]
["Check Box ",false,false,false,false]
["Complete",{"$f":"IF(OR(B81=1,B82=TRUE),1,0)","v":0},{"$f":"IF(OR(C81=1,C82=TRUE),1,0)","v":0},{"$f":"IF(OR(D81=1,D82=TRUE),1,0)","v":0},{"$f":"IF(OR(E81=1,E82=TRUE),1,0)","v":0}]
[]
["Conditional Formatting for Action Plan Buttons",null,null,null,null,null,"Remove Objective",null,null,"Progress Update",null,null,"Remove Update"]
["Add Objective",null,null,"Remove Last Item",null,null,"Remove Last Objective",null,null,"Add Progress Update",null,null,"Remove Progress Update"]
[]
[]
["Agency Strategy Action Item Visisblity & Complete",null,null,null,null,"Progress Update",{"$f":"IF('AGENCY STRATEGY'!$F$160='IMPORTED DATA'!$O$71,1,0)","v":1}]
["Total Objectives",{"$f":"IF('AGENCY STRATEGY'!$P$396=\"\",C90,'AGENCY STRATEGY'!$P$396)","v":0},0]
["Objective 1",{"$f":"IF(AND($B$90>=1,'AGENCY STRATEGY'!F160<>\"\"),1,0)","v":0},"Total",{"$f":"B91+SUM(B92:B96)","v":0},{"$f":"IF(AND($B$90>=1,D91=B97+1),1,0)","v":0},{"$f":"IF('AGENCY STRATEGY'!$P$402=\"\",G91,'AGENCY STRATEGY'!$P$402)","v":0}]
["Action 1",{"$f":"IF('AGENCY STRATEGY'!$H$166<>\"\",1,0)","v":0},null,"Add Action Item",null,{"$f":"IF(AND('AGENCY STRATEGY'!H189<>\"\",'AGENCY STRATEGY'!H190<>\"\"),1,0)","v":0}]
["Action 2",{"$f":"IF('AGENCY STRATEGY'!$H$169<>\"\",1,0)","v":0}]
["Action 3",{"$f":"IF('AGENCY STRATEGY'!$H$172<>\"\",1,0)","v":0}]
["Action 4",{"$f":"IF('AGENCY STRATEGY'!$H$175<>\"\",1,0)","v":0}]
["Action 5",{"$f":"IF('AGENCY STRATEGY'!$H$178<>\"\",1,0)","v":0}]
["Total Action Items",{"$f":"IF('AGENCY STRATEGY'!$P$397=\"\",C97,'AGENCY STRATEGY'!$P$397)","v":0},0,null,null,"Progress Update",{"$f":"IF('AGENCY STRATEGY'!$F$206='IMPORTED DATA'!$O$77,1,0)","v":1}]
[]
["Objective 1",{"$f":"IF(AND($B$90>1,'AGENCY STRATEGY'!F206<>\"\"),1,0)","v":0},"Total",{"$f":"B99+SUM(B100:B104)","v":0},{"$f":"IF(AND($B$90>=1,D99=B105+1),1,0)","v":0},{"$f":"IF('AGENCY STRATEGY'!$P$403=\"\",G99,'AGENCY STRATEGY'!$P$403)","v":0}]
["Action 1",{"$f":"IF('AGENCY STRATEGY'!$H$212<>\"\",1,0)","v":0},null,"Add Action Item",null,{"$f":"IF(AND('AGENCY STRATEGY'!H235<>\"\",'AGENCY STRATEGY'!H236<>\"\"),1,0)","v":0}]
["Action 2",{"$f":"IF('AGENCY STRATEGY'!$H$215<>\"\",1,0)","v":0}]
["Action 3",{"$f":"IF('AGENCY STRATEGY'!$H$218<>\"\",1,0)","v":0}]
["Action 4",{"$f":"IF('AGENCY STRATEGY'!$H$221<>\"\",1,0)","v":0}]
["Action 5",{"$f":"IF('AGENCY STRATEGY'!$H$224<>\"\",1,0)","v":0}]
["Total Action Items",{"$f":"IF('AGENCY STRATEGY'!$P$398=\"\",C105,'AGENCY STRATEGY'!$P$398)","v":0},0,null,null,"Progress Update",{"$f":"IF('AGENCY STRATEGY'!$F$252='IMPORTED DATA'!$O$83,1,0)","v":1}]
[]
["Objective 1",{"$f":"IF(AND($B$90>1,'AGENCY STRATEGY'!F252<>\"\"),1,0)","v":0},"Total",{"$f":"B107+SUM(B108:B112)","v":0},{"$f":"IF(AND($B$90>=1,D107=B113+1),1,0)","v":0},{"$f":"IF('AGENCY STRATEGY'!$P$404=\"\",G107,'AGENCY STRATEGY'!$P$404)","v":0}]
["Action 1",{"$f":"IF('AGENCY STRATEGY'!$H$258<>\"\",1,0)","v":0},null,"Add Action Item",null,{"$f":"IF(AND('AGENCY STRATEGY'!H281<>\"\",'AGENCY STRATEGY'!H282<>\"\"),1,0)","v":0}]
["Action 2",{"$f":"IF('AGENCY STRATEGY'!$H$261<>\"\",1,0)","v":0}]
["Action 3",{"$f":"IF('AGENCY STRATEGY'!$H$264<>\"\",1,0)","v":0}]
["Action 4",{"$f":"IF('AGENCY STRATEGY'!$H$267<>\"\",1,0)","v":0}]
["Action 5",{"$f":"IF('AGENCY STRATEGY'!$H$270<>\"\",1,0)","v":0}]
["Total Action Items",{"$f":"IF('AGENCY STRATEGY'!$P$399=\"\",C113,'AGENCY STRATEGY'!$P$399)","v":0},0,null,null,"Progress Update",{"$f":"IF('AGENCY STRATEGY'!$F$298='IMPORTED DATA'!$O$89,1,0)","v":1}]
[]
["Objective 1",{"$f":"IF(AND($B$90>1,'AGENCY STRATEGY'!F298<>\"\"),1,0)","v":0},"Total",{"$f":"B115+SUM(B116:B120)","v":0},{"$f":"IF(AND($B$90>=1,D115=B121+1),1,0)","v":0},{"$f":"IF('AGENCY STRATEGY'!$P$405=\"\",G115,'AGENCY STRATEGY'!$P$405)","v":0}]
["Action 1",{"$f":"IF('AGENCY STRATEGY'!$H$304<>\"\",1,0)","v":0},null,"Add Action Item",null,{"$f":"IF(AND('AGENCY STRATEGY'!H327<>\"\",'AGENCY STRATEGY'!H328<>\"\"),1,0)","v":0}]
["Action 2",{"$f":"IF('AGENCY STRATEGY'!$H$307<>\"\",1,0)","v":0}]
["Action 3",{"$f":"IF('AGENCY STRATEGY'!$H$310<>\"\",1,0)","v":0}]
["Action 4",{"$f":"IF('AGENCY STRATEGY'!$H$313<>\"\",1,0)","v":0}]
["Action 5",{"$f":"IF('AGENCY STRATEGY'!$H$316<>\"\",1,0)","v":0}]
["Total Action Items",{"$f":"IF('AGENCY STRATEGY'!$P$400=\"\",C121,'AGENCY STRATEGY'!$P$400)","v":0},0,null,null,"Progress Update",{"$f":"IF('AGENCY STRATEGY'!$F$344='IMPORTED DATA'!$O$95,1,0)","v":1}]
[]
["Objective 1",{"$f":"IF(AND($B$90>1,'AGENCY STRATEGY'!F344<>\"\"),1,0)","v":0},"Total",{"$f":"B123+SUM(B124:B128)","v":0},{"$f":"IF(AND($B$90>=1,D123=B129+1),1,0)","v":0},{"$f":"IF('AGENCY STRATEGY'!$P$406=\"\",G123,'AGENCY STRATEGY'!$P$406)","v":0}]
["Action 1",{"$f":"IF('AGENCY STRATEGY'!$H$350<>\"\",1,0)","v":0},null,"Add Action Item",null,{"$f":"IF(AND('AGENCY STRATEGY'!H373<>\"\",'AGENCY STRATEGY'!H374<>\"\"),1,0)","v":0}]
["Action 2",{"$f":"IF('AGENCY STRATEGY'!$H$353<>\"\",1,0)","v":0}]
["Action 3",{"$f":"IF('AGENCY STRATEGY'!$H$356<>\"\",1,0)","v":0}]
["Action 4",{"$f":"IF('AGENCY STRATEGY'!$H$359<>\"\",1,0)","v":0}]
["Action 5",{"$f":"IF('AGENCY STRATEGY'!$H$362<>\"\",1,0)","v":0}]
["Total Action Items",{"$f":"IF('AGENCY STRATEGY'!$P$401=\"\",C129,'AGENCY STRATEGY'!$P$401)","v":0},0]
[]
[]
[null,null,null,null,null,null,null,null,null,null,"Color Counts"]
["Speedometere Grapch Outline",null,null,null,"% of Workforce","Red ","Yellow","Green",null,null,"Red",{"$f":"COUNTIF($C$133:$C$253,K133)","v":17}]
[1,1,{"$f":"IF(F134<>\"\",F134,IF(G134<>\"\",G134,C135))","v":"Red"},{"$f":"A134/50","v":0.02},{"$f":"D134*0.1","v":2E-3},{"$f":"IF(E134<=' EOP SUMMARY'!$C$62,\"Red\",\"\")","v":"Red"},{"$f":"IF(E134<=' EOP SUMMARY'!$C$66,\"Yellow\",\"\")","v":"Yellow"},{"$f":"IF(E134>=' EOP SUMMARY'!$C$70,\"Green\",\"\")","v":""},null,null,"Yellow",{"$f":"COUNTIF($C$133:$C$253,K134)","v":8}]
[2,1,"Red",{"$f":"A135/50","v":0.04},{"$f":"D135*0.1","v":4.0000000000000001E-3},{"$f":"IF(E135<=' EOP SUMMARY'!$C$62,\"Red\",\"\")","v":"Red"},{"$f":"IF(E135<=' EOP SUMMARY'!$C$66,\"Yellow\",\"\")","v":"Yellow"},{"$f":"IF(E135>=' EOP SUMMARY'!$C$70,\"Green\",\"\")","v":""},null,null,"Green",25]
[3,1,"Red",0.06,6.0000000000000001E-3,{"$f":"IF(E136<=' EOP SUMMARY'!$C$62,\"Red\",\"\")","v":"Red"},{"$f":"IF(E136<=' EOP SUMMARY'!$C$66,\"Yellow\",\"\")","v":"Yellow"},{"$f":"IF(E136>=' EOP SUMMARY'!$C$70,\"Green\",\"\")","v":""},null,null,"White",22]
[4,1,"Red",0.08,8.0000000000000002E-3,{"$f":"IF(E137<=' EOP SUMMARY'!$C$62,\"Red\",\"\")","v":"Red"},{"$f":"IF(E137<=' EOP SUMMARY'!$C$66,\"Yellow\",\"\")","v":"Yellow"},{"$f":"IF(E137>=' EOP SUMMARY'!$C$70,\"Green\",\"\")","v":""}]
[5,1,"Red",0.1,1.0000000000000002E-2,{"$f":"IF(E138<=' EOP SUMMARY'!$C$62,\"Red\",\"\")","v":"Red"},{"$f":"IF(E138<=' EOP SUMMARY'!$C$66,\"Yellow\",\"\")","v":"Yellow"},{"$f":"IF(E138>=' EOP SUMMARY'!$C$70,\"Green\",\"\")","v":""}]
[6,1,"Red",0.12,1.2E-2,{"$f":"IF(E139<=' EOP SUMMARY'!$C$62,\"Red\",\"\")","v":"Red"},{"$f":"IF(E139<=' EOP SUMMARY'!$C$66,\"Yellow\",\"\")","v":"Yellow"},{"$f":"IF(E139>=' EOP SUMMARY'!$C$70,\"Green\",\"\")","v":""}]
[7,1,"Red",0.14000000000000001,1.4000000000000002E-2,{"$f":"IF(E140<=' EOP SUMMARY'!$C$62,\"Red\",\"\")","v":"Red"},{"$f":"IF(E140<=' EOP SUMMARY'!$C$66,\"Yellow\",\"\")","v":"Yellow"},{"$f":"IF(E140>=' EOP SUMMARY'!$C$70,\"Green\",\"\")","v":""}]
[8,1,"Red",0.16,1.6E-2,{"$f":"IF(E141<=' EOP SUMMARY'!$C$62,\"Red\",\"\")","v":"Red"},{"$f":"IF(E141<=' EOP SUMMARY'!$C$66,\"Yellow\",\"\")","v":"Yellow"},{"$f":"IF(E141>=' EOP SUMMARY'!$C$70,\"Green\",\"\")","v":""}]
[9,1,"Red",0.18,1.7999999999999999E-2,{"$f":"IF(E142<=' EOP SUMMARY'!$C$62,\"Red\",\"\")","v":"Red"},{"$f":"IF(E142<=' EOP SUMMARY'!$C$66,\"Yellow\",\"\")","v":"Yellow"},{"$f":"IF(E142>=' EOP SUMMARY'!$C$70,\"Green\",\"\")","v":""}]
[10,1,"Red",0.2,2.0000000000000004E-2,{"$f":"IF(E143<=' EOP SUMMARY'!$C$62,\"Red\",\"\")","v":"Red"},{"$f":"IF(E143<=' EOP SUMMARY'!$C$66,\"Yellow\",\"\")","v":"Yellow"},{"$f":"IF(E143>=' EOP SUMMARY'!$C$70,\"Green\",\"\")","v":""}]
[11,1,"Red",0.22,2.2000000000000002E-2,{"$f":"IF(E144<=' EOP SUMMARY'!$C$62,\"Red\",\"\")","v":"Red"},{"$f":"IF(E144<=' EOP SUMMARY'!$C$66,\"Yellow\",\"\")","v":"Yellow"},{"$f":"IF(E144>=' EOP SUMMARY'!$C$70,\"Green\",\"\")","v":""}]
[12,1,"Red",0.24,2.4E-2,{"$f":"IF(E145<=' EOP SUMMARY'!$C$62,\"Red\",\"\")","v":"Red"},{"$f":"IF(E145<=' EOP SUMMARY'!$C$66,\"Yellow\",\"\")","v":"Yellow"},{"$f":"IF(E145>=' EOP SUMMARY'!$C$70,\"Green\",\"\")","v":""}]
[13,1,"Red",0.26,2.6000000000000002E-2,{"$f":"IF(E146<=' EOP SUMMARY'!$C$62,\"Red\",\"\")","v":"Red"},{"$f":"IF(E146<=' EOP SUMMARY'!$C$66,\"Yellow\",\"\")","v":"Yellow"},{"$f":"IF(E146>=' EOP SUMMARY'!$C$70,\"Green\",\"\")","v":""}]
[14,1,"Red",0.28000000000000003,2.8000000000000004E-2,{"$f":"IF(E147<=' EOP SUMMARY'!$C$62,\"Red\",\"\")","v":"Red"},{"$f":"IF(E147<=' EOP SUMMARY'!$C$66,\"Yellow\",\"\")","v":"Yellow"},{"$f":"IF(E147>=' EOP SUMMARY'!$C$70,\"Green\",\"\")","v":""}]
[15,1,"Red",0.3,0.03,{"$f":"IF(E148<=' EOP SUMMARY'!$C$62,\"Red\",\"\")","v":"Red"},{"$f":"IF(E148<=' EOP SUMMARY'!$C$66,\"Yellow\",\"\")","v":"Yellow"},{"$f":"IF(E148>=' EOP SUMMARY'!$C$70,\"Green\",\"\")","v":""}]
[16,1,"Red",0.32,3.2000000000000001E-2,{"$f":"IF(E149<=' EOP SUMMARY'!$C$62,\"Red\",\"\")","v":"Red"},{"$f":"IF(E149<=' EOP SUMMARY'!$C$66,\"Yellow\",\"\")","v":"Yellow"},{"$f":"IF(E149>=' EOP SUMMARY'!$C$70,\"Green\",\"\")","v":""}]
[17,1,"Red",0.34,3.4000000000000002E-2,{"$f":"IF(E150<=' EOP SUMMARY'!$C$62,\"Red\",\"\")","v":"Red"},{"$f":"IF(E150<=' EOP SUMMARY'!$C$66,\"Yellow\",\"\")","v":"Yellow"},{"$f":"IF(E150>=' EOP SUMMARY'!$C$70,\"Green\",\"\")","v":""}]
[18,1,"Yellow",0.36,3.5999999999999997E-2,{"$f":"IF(E151<=' EOP SUMMARY'!$C$62,\"Red\",\"\")","v":""},{"$f":"IF(E151<=' EOP SUMMARY'!$C$66,\"Yellow\",\"\")","v":"Yellow"},{"$f":"IF(E151>=' EOP SUMMARY'!$C$70,\"Green\",\"\")","v":""}]
[19,1,"Yellow",0.38,3.8000000000000006E-2,{"$f":"IF(E152<=' EOP SUMMARY'!$C$62,\"Red\",\"\")","v":""},{"$f":"IF(E152<=' EOP SUMMARY'!$C$66,\"Yellow\",\"\")","v":"Yellow"},{"$f":"IF(E152>=' EOP SUMMARY'!$C$70,\"Green\",\"\")","v":""}]
[20,1,"Yellow",0.4,4.0000000000000008E-2,{"$f":"IF(E153<=' EOP SUMMARY'!$C$62,\"Red\",\"\")","v":""},{"$f":"IF(E153<=' EOP SUMMARY'!$C$66,\"Yellow\",\"\")","v":"Yellow"},{"$f":"IF(E153>=' EOP SUMMARY'!$C$70,\"Green\",\"\")","v":""}]
[21,1,"Yellow",0.42,4.2000000000000003E-2,{"$f":"IF(E154<=' EOP SUMMARY'!$C$62,\"Red\",\"\")","v":""},{"$f":"IF(E154<=' EOP SUMMARY'!$C$66,\"Yellow\",\"\")","v":"Yellow"},{"$f":"IF(E154>=' EOP SUMMARY'!$C$70,\"Green\",\"\")","v":""}]
[22,1,"Yellow",0.44,4.4000000000000004E-2,{"$f":"IF(E155<=' EOP SUMMARY'!$C$62,\"Red\",\"\")","v":""},{"$f":"IF(E155<=' EOP SUMMARY'!$C$66,\"Yellow\",\"\")","v":"Yellow"},{"$f":"IF(E155>=' EOP SUMMARY'!$C$70,\"Green\",\"\")","v":""}]
[23,1,"Yellow",0.46,4.6000000000000006E-2,{"$f":"IF(E156<=' EOP SUMMARY'!$C$62,\"Red\",\"\")","v":""},{"$f":"IF(E156<=' EOP SUMMARY'!$C$66,\"Yellow\",\"\")","v":"Yellow"},{"$f":"IF(E156>=' EOP SUMMARY'!$C$70,\"Green\",\"\")","v":""}]
[24,1,"Yellow",0.48,4.8000000000000001E-2,{"$f":"IF(E157<=' EOP SUMMARY'!$C$62,\"Red\",\"\")","v":""},{"$f":"IF(E157<=' EOP SUMMARY'!$C$66,\"Yellow\",\"\")","v":"Yellow"},{"$f":"IF(E157>=' EOP SUMMARY'!$C$70,\"Green\",\"\")","v":""}]
[25,1,"Yellow",0.5,0.05,{"$f":"IF(E158<=' EOP SUMMARY'!$C$62,\"Red\",\"\")","v":""},{"$f":"IF(E158<=' EOP SUMMARY'!$C$66,\"Yellow\",\"\")","v":"Yellow"},{"$f":"IF(E158>=' EOP SUMMARY'!$C$70,\"Green\",\"\")","v":"Green"}]
[26,1,"Green",0.52,5.2000000000000005E-2,{"$f":"IF(E159<=' EOP SUMMARY'!$C$62,\"Red\",\"\")","v":""},{"$f":"IF(E159<=' EOP SUMMARY'!$C$66,\"Yellow\",\"\")","v":""},{"$f":"IF(E159>=' EOP SUMMARY'!$C$70,\"Green\",\"\")","v":"Green"}]
[27,1,"Green",0.54,5.4000000000000006E-2,{"$f":"IF(E160<=' EOP SUMMARY'!$C$62,\"Red\",\"\")","v":""},{"$f":"IF(E160<=' EOP SUMMARY'!$C$66,\"Yellow\",\"\")","v":""},{"$f":"IF(E160>=' EOP SUMMARY'!$C$70,\"Green\",\"\")","v":"Green"}]
[28,1,"Green",0.56000000000000005,5.6000000000000008E-2,{"$f":"IF(E161<=' EOP SUMMARY'!$C$62,\"Red\",\"\")","v":""},{"$f":"IF(E161<=' EOP SUMMARY'!$C$66,\"Yellow\",\"\")","v":""},{"$f":"IF(E161>=' EOP SUMMARY'!$C$70,\"Green\",\"\")","v":"Green"}]
[29,1,"Green",0.57999999999999996,5.7999999999999996E-2,{"$f":"IF(E162<=' EOP SUMMARY'!$C$62,\"Red\",\"\")","v":""},{"$f":"IF(E162<=' EOP SUMMARY'!$C$66,\"Yellow\",\"\")","v":""},{"$f":"IF(E162>=' EOP SUMMARY'!$C$70,\"Green\",\"\")","v":"Green"}]
[30,1,"Green",0.6,0.06,{"$f":"IF(E163<=' EOP SUMMARY'!$C$62,\"Red\",\"\")","v":""},{"$f":"IF(E163<=' EOP SUMMARY'!$C$66,\"Yellow\",\"\")","v":""},{"$f":"IF(E163>=' EOP SUMMARY'!$C$70,\"Green\",\"\")","v":"Green"}]
[31,1,"Green",0.62,6.2E-2,{"$f":"IF(E164<=' EOP SUMMARY'!$C$62,\"Red\",\"\")","v":""},{"$f":"IF(E164<=' EOP SUMMARY'!$C$66,\"Yellow\",\"\")","v":""},{"$f":"IF(E164>=' EOP SUMMARY'!$C$70,\"Green\",\"\")","v":"Green"}]
[32,1,"Green",0.64,6.4000000000000001E-2,{"$f":"IF(E165<=' EOP SUMMARY'!$C$62,\"Red\",\"\")","v":""},{"$f":"IF(E165<=' EOP SUMMARY'!$C$66,\"Yellow\",\"\")","v":""},{"$f":"IF(E165>=' EOP SUMMARY'!$C$70,\"Green\",\"\")","v":"Green"}]
[33,1,"Green",0.66,6.6000000000000003E-2,{"$f":"IF(E166<=' EOP SUMMARY'!$C$62,\"Red\",\"\")","v":""},{"$f":"IF(E166<=' EOP SUMMARY'!$C$66,\"Yellow\",\"\")","v":""},{"$f":"IF(E166>=' EOP SUMMARY'!$C$70,\"Green\",\"\")","v":"Green"}]
[34,1,"Green",0.68,6.8000000000000005E-2,{"$f":"IF(E167<=' EOP SUMMARY'!$C$62,\"Red\",\"\")","v":""},{"$f":"IF(E167<=' EOP SUMMARY'!$C$66,\"Yellow\",\"\")","v":""},{"$f":"IF(E167>=' EOP SUMMARY'!$C$70,\"Green\",\"\")","v":"Green"}]
[35,1,"Green",0.7,6.9999999999999993E-2,{"$f":"IF(E168<=' EOP SUMMARY'!$C$62,\"Red\",\"\")","v":""},{"$f":"IF(E168<=' EOP SUMMARY'!$C$66,\"Yellow\",\"\")","v":""},{"$f":"IF(E168>=' EOP SUMMARY'!$C$70,\"Green\",\"\")","v":"Green"}]
[36,1,"Green",0.72,7.1999999999999995E-2,{"$f":"IF(E169<=' EOP SUMMARY'!$C$62,\"Red\",\"\")","v":""},{"$f":"IF(E169<=' EOP SUMMARY'!$C$66,\"Yellow\",\"\")","v":""},{"$f":"IF(E169>=' EOP SUMMARY'!$C$70,\"Green\",\"\")","v":"Green"}]
[37,1,"Green",0.74,7.3999999999999996E-2,{"$f":"IF(E170<=' EOP SUMMARY'!$C$62,\"Red\",\"\")","v":""},{"$f":"IF(E170<=' EOP SUMMARY'!$C$66,\"Yellow\",\"\")","v":""},{"$f":"IF(E170>=' EOP SUMMARY'!$C$70,\"Green\",\"\")","v":"Green"}]
[38,1,"Green",0.76,7.6000000000000012E-2,{"$f":"IF(E171<=' EOP SUMMARY'!$C$62,\"Red\",\"\")","v":""},{"$f":"IF(E171<=' EOP SUMMARY'!$C$66,\"Yellow\",\"\")","v":""},{"$f":"IF(E171>=' EOP SUMMARY'!$C$70,\"Green\",\"\")","v":"Green"}]
[39,1,"Green",0.78,7.8000000000000014E-2,{"$f":"IF(E172<=' EOP SUMMARY'!$C$62,\"Red\",\"\")","v":""},{"$f":"IF(E172<=' EOP SUMMARY'!$C$66,\"Yellow\",\"\")","v":""},{"$f":"IF(E172>=' EOP SUMMARY'!$C$70,\"Green\",\"\")","v":"Green"}]
[40,1,"Green",0.8,8.0000000000000016E-2,{"$f":"IF(E173<=' EOP SUMMARY'!$C$62,\"Red\",\"\")","v":""},{"$f":"IF(E173<=' EOP SUMMARY'!$C$66,\"Yellow\",\"\")","v":""},{"$f":"IF(E173>=' EOP SUMMARY'!$C$70,\"Green\",\"\")","v":"Green"}]
[41,1,"Green",0.82,8.2000000000000003E-2,{"$f":"IF(E174<=' EOP SUMMARY'!$C$62,\"Red\",\"\")","v":""},{"$f":"IF(E174<=' EOP SUMMARY'!$C$66,\"Yellow\",\"\")","v":""},{"$f":"IF(E174>=' EOP SUMMARY'!$C$70,\"Green\",\"\")","v":"Green"}]
[42,1,"Green",0.84,8.4000000000000005E-2,{"$f":"IF(E175<=' EOP SUMMARY'!$C$62,\"Red\",\"\")","v":""},{"$f":"IF(E175<=' EOP SUMMARY'!$C$66,\"Yellow\",\"\")","v":""},{"$f":"IF(E175>=' EOP SUMMARY'!$C$70,\"Green\",\"\")","v":"Green"}]
[43,1,"Green",0.86,8.6000000000000007E-2,{"$f":"IF(E176<=' EOP SUMMARY'!$C$62,\"Red\",\"\")","v":""},{"$f":"IF(E176<=' EOP SUMMARY'!$C$66,\"Yellow\",\"\")","v":""},{"$f":"IF(E176>=' EOP SUMMARY'!$C$70,\"Green\",\"\")","v":"Green"}]
[44,1,"Green",0.88,8.8000000000000009E-2,{"$f":"IF(E177<=' EOP SUMMARY'!$C$62,\"Red\",\"\")","v":""},{"$f":"IF(E177<=' EOP SUMMARY'!$C$66,\"Yellow\",\"\")","v":""},{"$f":"IF(E177>=' EOP SUMMARY'!$C$70,\"Green\",\"\")","v":"Green"}]
[45,1,"Green",0.9,9.0000000000000011E-2,{"$f":"IF(E178<=' EOP SUMMARY'!$C$62,\"Red\",\"\")","v":""},{"$f":"IF(E178<=' EOP SUMMARY'!$C$66,\"Yellow\",\"\")","v":""},{"$f":"IF(E178>=' EOP SUMMARY'!$C$70,\"Green\",\"\")","v":"Green"}]
[46,1,"Green",0.92,9.2000000000000012E-2,{"$f":"IF(E179<=' EOP SUMMARY'!$C$62,\"Red\",\"\")","v":""},{"$f":"IF(E179<=' EOP SUMMARY'!$C$66,\"Yellow\",\"\")","v":""},{"$f":"IF(E179>=' EOP SUMMARY'!$C$70,\"Green\",\"\")","v":"Green"}]
[47,1,"Green",0.94,9.4E-2,{"$f":"IF(E180<=' EOP SUMMARY'!$C$62,\"Red\",\"\")","v":""},{"$f":"IF(E180<=' EOP SUMMARY'!$C$66,\"Yellow\",\"\")","v":""},{"$f":"IF(E180>=' EOP SUMMARY'!$C$70,\"Green\",\"\")","v":"Green"}]
[48,1,"Green",0.96,9.6000000000000002E-2,{"$f":"IF(E181<=' EOP SUMMARY'!$C$62,\"Red\",\"\")","v":""},{"$f":"IF(E181<=' EOP SUMMARY'!$C$66,\"Yellow\",\"\")","v":""},{"$f":"IF(E181>=' EOP SUMMARY'!$C$70,\"Green\",\"\")","v":"Green"}]
[49,1,"Green",0.98,9.8000000000000004E-2,{"$f":"IF(E182<=' EOP SUMMARY'!$C$62,\"Red\",\"\")","v":""},{"$f":"IF(E182<=' EOP SUMMARY'!$C$66,\"Yellow\",\"\")","v":""},{"$f":"IF(E182>=' EOP SUMMARY'!$C$70,\"Green\",\"\")","v":"Green"}]
[50,1,"Green",1,0.1,{"$f":"IF(E183<=' EOP SUMMARY'!$C$62,\"Red\",\"\")","v":""},{"$f":"IF(E183<=' EOP SUMMARY'!$C$66,\"Yellow\",\"\")","v":""},{"$f":"IF(E183>=' EOP SUMMARY'!$C$70,\"Green\",\"\")","v":"Green"}]
[51,1,"White",{"$f":"A184/50","v":1.02},0.10200000000000001,{"$f":"IF(E184<=' EOP SUMMARY'!$C$62,\"Red\",\"\")","v":""},{"$f":"IF(E184<=' EOP SUMMARY'!$C$66,\"Yellow\",\"\")","v":""},{"$f":"IF(E184>=' EOP SUMMARY'!$C$70,\"Green\",\"\")","v":"Green"}]
[52,1,"White",1.04,0.10400000000000001,{"$f":"IF(E185<=' EOP SUMMARY'!$C$62,\"Red\",\"\")","v":""},{"$f":"IF(E185<=' EOP SUMMARY'!$C$66,\"Yellow\",\"\")","v":""},{"$f":"IF(E185>=' EOP SUMMARY'!$C$70,\"Green\",\"\")","v":"Green"}]
[53,1,"White",1.06,0.10600000000000001,{"$f":"IF(E186<=' EOP SUMMARY'!$C$62,\"Red\",\"\")","v":""},{"$f":"IF(E186<=' EOP SUMMARY'!$C$66,\"Yellow\",\"\")","v":""},{"$f":"IF(E186>=' EOP SUMMARY'!$C$70,\"Green\",\"\")","v":"Green"}]
[54,1,"White",1.08,0.10800000000000001,{"$f":"IF(E187<=' EOP SUMMARY'!$C$62,\"Red\",\"\")","v":""},{"$f":"IF(E187<=' EOP SUMMARY'!$C$66,\"Yellow\",\"\")","v":""},{"$f":"IF(E187>=' EOP SUMMARY'!$C$70,\"Green\",\"\")","v":"Green"}]
[55,1,"White",1.1000000000000001,0.11000000000000001,{"$f":"IF(E188<=' EOP SUMMARY'!$C$62,\"Red\",\"\")","v":""},{"$f":"IF(E188<=' EOP SUMMARY'!$C$66,\"Yellow\",\"\")","v":""},{"$f":"IF(E188>=' EOP SUMMARY'!$C$70,\"Green\",\"\")","v":"Green"}]
[null,1,"White",null,null,null,null,{"$f":"IF(E189>=' EOP SUMMARY'!$C$70,\"Green\",\"\")","v":""}]
[null,1,"White"]
[null,1,"White"]
[null,1,"White"]
[null,1,"White"]
[null,1,"White"]
[null,1,"White"]
[null,1,"White"]
[null,1,"White"]
[null,1,"White"]
[null,1,"White"]
[null,1,"White"]
[null,1,"White"]
[null,1,"White"]
[null,1,"White"]
[null,1,"White"]
[null,1,"White",null,null,null,null,null,null,null,null,null,null,null,"▲"]
[null,null,null,null,null,null,null,null,null,null,null,null,null,null,"◄►"]
[null,null,null,null,null,null,null,null,null,null,null,null,null,null,"▼"]
[]
["Report Metrics",null,null,"Speedometer Line Chart",null,null,null,null,null,null,"Percent Labels",null,null,"Report Metrics","PY","Change","Statement"]
["Toteal Employees",{"$f":"'AGENCY PROFILE'!$P$59","v":0},null,"Total Employees","Total Employees with Disabilities","Percentage",null,null,null,null,"Less Than",{"$f":"' EOP SUMMARY'!$C$62","v":3.5000000000000003E-2}]
["Total Employees with Disabilities",{"$f":"'AGENCY PROFILE'!$P$60","v":0},null,{"$f":"B210","v":0},{"$f":"B211","v":0},{"$f":"E211/D211","v":{"$error":"#DIV/0!"}},{"$f":"IF(F211>=10%,10%,F211)","v":{"$error":"#DIV/0!"}},{"$f":"0.1-G211","v":{"$error":"#DIV/0!"}},0.11,null,"To",{"$f":"L212-0.001","v":4.9000000000000002E-2},{"$f":"L210+0.001","v":3.6000000000000004E-2},"Total Employees with Disabilities",{"$f":"'AGENCY PROFILE'!$O$60","v":0},{"$f":"B211-O211","v":0},{"$f":"IF(P211>0,CONCATENATE($O$205,ABS(P211)),IF(P211=0,CONCATENATE($O$206,ABS(P211)),IF(P211<0,CONCATENATE($O$207,ABS(P211)),\"\")))","v":"◄►0"}]
["Percent with Disabilities",{"$f":"B211/B210","v":{"$error":"#DIV/0!"}},null,"Chart Data",null,null,null,null,null,null,"Greater Than",{"$f":"' EOP SUMMARY'!$C$66","v":0.05}]
["Total In Leader/Sup Role",{"$f":"'AGENCY PROFILE'!P61","v":0},null,"Overall","% Employees with Disabilities","Line Percent","Remaining Percent",null,null,null,null,null,null,"Total In Leader/Sup Role",{"$f":"'AGENCY PROFILE'!O61","v":0},{"$f":"B213-O213","v":0},{"$f":"IF(P213>0,CONCATENATE($O$205,ABS(P213)),IF(P213=0,CONCATENATE($O$206,ABS(P213)),IF(P213<0,CONCATENATE($O$207,ABS(P213)),\"\")))","v":"◄►0"}]
["Total In Executive Role",{"$f":"'AGENCY PROFILE'!P62","v":0},null,4.4999999999999998E-2,{"$f":"G211","v":{"$error":"#DIV/0!"}},1E-4,{"$f":"H211","v":{"$error":"#DIV/0!"}},null,null,null,null,null,null,"Total In Executive Role",{"$f":"'AGENCY PROFILE'!O62","v":0},0,{"$f":"IF(P214>0,CONCATENATE($O$205,ABS(P214)),IF(P214=0,CONCATENATE($O$206,ABS(P214)),IF(P214<0,CONCATENATE($O$207,ABS(P214)),\"\")))","v":"◄►0"}]
["Total Veterans with Disabilities",{"$f":"'AGENCY PROFILE'!P63","v":0},null,null,null,null,null,null,null,null,null,null,null,"Total Veterans with Disabilities",{"$f":"'AGENCY PROFILE'!O63","v":0},0,{"$f":"IF(P215>0,CONCATENATE($O$205,ABS(P215)),IF(P215=0,CONCATENATE($O$206,ABS(P215)),IF(P215<0,CONCATENATE($O$207,ABS(P215)),\"\")))","v":"◄►0"}]
[]
[]
["Org Entry Metrics",null,"Percentages","Negative ",null,{"$f":"CONCATENATE(\"FY\",RIGHT('DHRM ADMIN'!$P$15,2)-1)","v":"FY-1"},{"$f":"CONCATENATE(\"FY\",RIGHT('DHRM ADMIN'!$P$15,2))","v":"FY00"},"Change","Label"]
["Total Hires",{"$f":"'WORKFORCE DATA'!P33","v":0},null,null,"Total Hires",{"$f":"'WORKFORCE DATA'!O33","v":0},{"$f":"B219","v":0},{"$f":"G219-F219","v":0},{"$f":"IF(H219>0,CONCATENATE($O$205,ABS(H219)),IF(H219=0,CONCATENATE($O$206,ABS(H219)),IF(H219<0,CONCATENATE($O$207,ABS(H219)),\"\")))","v":"◄►0"}]
["Hires with Disabilities",{"$f":"'WORKFORCE DATA'!P34","v":0},{"$f":"(B220/B219)","v":{"$error":"#DIV/0!"}},{"$f":"1-C220","v":{"$error":"#DIV/0!"}},"Hires with Disabilities",{"$f":"'WORKFORCE DATA'!O34","v":0},{"$f":"B220","v":0},{"$f":"G220-F220","v":0},{"$f":"IF(H220>0,CONCATENATE($O$205,ABS(H220)),IF(H220=0,CONCATENATE($O$206,ABS(H220)),IF(H220<0,CONCATENATE($O$207,ABS(H220)),\"\")))","v":"◄►0"}]
["Total Applicants",{"$f":"'WORKFORCE DATA'!P41","v":0},null,null,"Total Applicants",{"$f":"'WORKFORCE DATA'!O41","v":0},0,0,"◄►0"]
["Applicants with Disabilities",{"$f":"'WORKFORCE DATA'!P42","v":0},{"$f":"B222/B221","v":{"$error":"#DIV/0!"}},{"$f":"1-C222","v":{"$error":"#DIV/0!"}},"Applicants with Disabilities",{"$f":"'WORKFORCE DATA'!O42","v":0},0,0,"◄►0"]
[]
["Org Mobility Metrics",null,"Percentages","Negative ",null,{"$f":"CONCATENATE(\"FY\",RIGHT('DHRM ADMIN'!$P$15,2)-1)","v":"FY-1"},{"$f":"CONCATENATE(\"FY\",RIGHT('DHRM ADMIN'!$P$15,2))","v":"FY00"},"Change","Label"]
["Total Internal Transfers",{"$f":"'WORKFORCE DATA'!P86","v":0},null,null,"Internal Transfers",{"$f":"'WORKFORCE DATA'!O86","v":0},{"$f":"B225","v":0},{"$f":"G225-F225","v":0},{"$f":"IF(H225>0,CONCATENATE($O$205,ABS(H225)),IF(H225=0,CONCATENATE($O$206,ABS(H225)),IF(H225<0,CONCATENATE($O$207,ABS(H225)),\"\")))","v":"◄►0"}]
["Internal Transfers with Disabilities",{"$f":"'WORKFORCE DATA'!P87","v":0},{"$f":"(B226/B225)","v":{"$error":"#DIV/0!"}},{"$f":"1-C226","v":{"$error":"#DIV/0!"}},"Internal Transfers with Disabilities",{"$f":"'WORKFORCE DATA'!O87","v":0},{"$f":"B226","v":0},{"$f":"G226-F226","v":0},{"$f":"IF(H226>0,CONCATENATE($O$205,ABS(H226)),IF(H226=0,CONCATENATE($O$206,ABS(H226)),IF(H226<0,CONCATENATE($O$207,ABS(H226)),\"\")))","v":"◄►0"}]
["Total Promotions",{"$f":"'WORKFORCE DATA'!P78","v":0},null,null,"Promotions",{"$f":"'WORKFORCE DATA'!O78","v":0},0,0,"◄►0"]
["Promotions with Disabilities",{"$f":"'WORKFORCE DATA'!P79","v":0},{"$f":"B228/B227","v":{"$error":"#DIV/0!"}},{"$f":"1-C228","v":{"$error":"#DIV/0!"}},"Promotions with Disabilities",{"$f":"'WORKFORCE DATA'!O79","v":0},0,0,"◄►0"]
[]
["Org Exit Metrics",null,"Percentages","Negative ",null,{"$f":"CONCATENATE(\"FY\",RIGHT('DHRM ADMIN'!$P$15,2)-1)","v":"FY-1"},{"$f":"CONCATENATE(\"FY\",RIGHT('DHRM ADMIN'!$P$15,2))","v":"FY00"},"Change","Label"]
["Total Separations",{"$f":"'WORKFORCE DATA'!P94","v":0},null,null,"Separations",{"$f":"'WORKFORCE DATA'!O94","v":0},{"$f":"B231","v":0},{"$f":"G231-F231","v":0},{"$f":"IF(H231>0,CONCATENATE($O$205,ABS(H231)),IF(H231=0,CONCATENATE($O$206,ABS(H231)),IF(H231<0,CONCATENATE($O$207,ABS(H231)),\"\")))","v":"◄►0"}]
["Separations with Disabilities",{"$f":"'WORKFORCE DATA'!P95","v":0},{"$f":"(B232/B231)","v":{"$error":"#DIV/0!"}},{"$f":"1-C232","v":{"$error":"#DIV/0!"}},"Separations with Disabilities",{"$f":"'WORKFORCE DATA'!O95","v":0},{"$f":"B232","v":0},{"$f":"G232-F232","v":0},{"$f":"IF(H232>0,CONCATENATE($O$205,ABS(H232)),IF(H232=0,CONCATENATE($O$206,ABS(H232)),IF(H232<0,CONCATENATE($O$207,ABS(H232)),\"\")))","v":"◄►0"}]
["Total External Transfers",{"$f":"'WORKFORCE DATA'!P102","v":0},null,null,"External Transfers",{"$f":"'WORKFORCE DATA'!O102","v":0},0,0,"◄►0"]
["External Transfers with Disabilities",{"$f":"'WORKFORCE DATA'!P103","v":0},{"$f":"B234/B233","v":{"$error":"#DIV/0!"}},{"$f":"1-C234","v":{"$error":"#DIV/0!"}},"External Transfers with Disabilities",{"$f":"'WORKFORCE DATA'!O103","v":0},0,0,"◄►0"]
[]
["Pictures for Report SWOT Analysis"]
[]
["Strengths"]
["Recruitment",null,null,"Retention"]
[{"$f":"IF('AGENCY STRATEGY'!E81=\"\",\"\",'AGENCY STRATEGY'!E81)","v":""},null,null,{"$f":"IF('AGENCY STRATEGY'!H81=\"\",\"\",'AGENCY STRATEGY'!H81)","v":""}]
[]
[]
[]
[]
["Engagement",null,null,"Learning / Development"]
[{"$f":"IF('AGENCY STRATEGY'!K81=\"\",\"\",'AGENCY STRATEGY'!K81)","v":""},null,null,{"$f":"IF('AGENCY STRATEGY'!N81=\"\",\"\",'AGENCY STRATEGY'!N81)","v":""}]
[]
[]
[]
[]
[]
["Weaknesses"]
["Recruitment",null,null,"Retention"]
[{"$f":"IF('AGENCY STRATEGY'!E100=\"\",\"\",'AGENCY STRATEGY'!E100)","v":""},null,null,{"$f":"IF('AGENCY STRATEGY'!H100=\"\",\"\",'AGENCY STRATEGY'!H100)","v":""}]
[]
[]
[]
[]
["Engagement",null,null,"Learning / Development"]
[{"$f":"IF('AGENCY STRATEGY'!K100=\"\",\"\",'AGENCY STRATEGY'!K100)","v":""},null,null,{"$f":"IF('AGENCY STRATEGY'!N100=\"\",\"\",'AGENCY STRATEGY'!N100)","v":""}]
[]
[]
[]
[]
[]
["Opportunities"]
["Recruitment",null,null,"Retention"]
[{"$f":"IF('AGENCY STRATEGY'!E119=\"\",\"\",'AGENCY STRATEGY'!E119)","v":""},null,null,{"$f":"IF('AGENCY STRATEGY'!H119=\"\",\"\",'AGENCY STRATEGY'!H119)","v":""}]
[]
[]
[]
[]
["Engagement",null,null,"Learning / Development"]
[{"$f":"IF('AGENCY STRATEGY'!K119=\"\",\"\",'AGENCY STRATEGY'!K119)","v":""},null,null,{"$f":"IF('AGENCY STRATEGY'!N119=\"\",\"\",'AGENCY STRATEGY'!N119)","v":""}]
[]
[]
[]
[]
[]
["Threats"]
["Recruitment",null,null,"Retention"]
[{"$f":"IF('AGENCY STRATEGY'!E138=\"\",\"\",'AGENCY STRATEGY'!E138)","v":""},null,null,{"$f":"IF('AGENCY STRATEGY'!H138=\"\",\"\",'AGENCY STRATEGY'!H138)","v":""}]
[]
[]
[]
[]
["Engagement",null,null,"Learning / Development"]
[{"$f":"IF('AGENCY STRATEGY'!K138=\"\",\"\",'AGENCY STRATEGY'!K138)","v":""},null,null,{"$f":"IF('AGENCY STRATEGY'!N138=\"\",\"\",'AGENCY STRATEGY'!N138)","v":""}]
[]
[]
[]
[]
[]
[]
["Alternative Hiring Process Information",null,null,{"$f":"CONCATENATE(\"FY\",RIGHT('DHRM ADMIN'!$P$15,2)-1)","v":"FY-1"},{"$f":"CONCATENATE(\"FY\",RIGHT('DHRM ADMIN'!$P$15,2))","v":"FY00"},"Change","Label"]
["Total Applicants",{"$f":"'WORKFORCE DATA'!P55","v":0},"Separations",{"$f":"'WORKFORCE DATA'!O55","v":0},{"$f":"B296","v":0},{"$f":"E296-D296","v":0},{"$f":"IF(F296>0,CONCATENATE($O$205,ABS(F296)),IF(F296=0,CONCATENATE($O$206,ABS(F296)),IF(F296<0,CONCATENATE($O$207,ABS(F296)),\"\")))","v":"◄►0"}]
["Total Hires",{"$f":"'WORKFORCE DATA'!P56","v":0},"Separations with Disabilities",{"$f":"'WORKFORCE DATA'!O56","v":0},{"$f":"B297","v":0},{"$f":"E297-D297","v":0},{"$f":"IF(F297>0,CONCATENATE($O$205,ABS(F297)),IF(F297=0,CONCATENATE($O$206,ABS(F297)),IF(F297<0,CONCATENATE($O$207,ABS(F297)),\"\")))","v":"◄►0"}]
["Total Transitioned to Classified",{"$f":"'WORKFORCE DATA'!P57","v":0},"External Transfers",{"$f":"'WORKFORCE DATA'!O57","v":0},0,0,"◄►0"]

{"sheet":"DHRM ADMIN","index":8,"n_rows":26,"n_cols":16,"rows_kept":26,"cut":false,"hidden":true,"merged":[[25,14,25,15],[23,14,23,15],[5,2,7,14],[11,1,12,15],[8,2,9,14],[18,1,19,15],[21,3,21,13],[21,14,21,15]]}
[]
[]
[]
[]
[]
[null,null,"DHRM ADMIN"]
[]
[]
[null,null,"The DHRM Admin tab is for annual updates, such as changes to Fiscal Years, and tracks the maintenance of the template versions."]
[]
[]
[null,"File Maintenance"]
[]
[]
[null,null,null,null,null,null,null,null,null,null,null,null,null,null,"To update the Fiscal Year references throughout the workbook, enter the fiscal year of the reporting period:",{"$f":"'CENTRAL ANALYSIS'!K17","v":1900}]
[null,null,null,null,null,null,null,null,null,null,null,null,null,null,"To change the number of years in the workforce insights, how many prior years should this template include (MAX OF 5):",2]
[]
[]
[null,"Version Notes"]
[]
[]
[null,null,"Version Number","Version Notes",null,null,null,null,null,null,null,null,null,null,"Effective Date"]
[]
[null,null,"Version 1.0","Initial Release to Agencies in Feb. 2024",null,null,null,null,null,null,null,null,null,null,"2024-02-09"]
[]
[null,null,"Version 1.1","Added Data Validation to the FY Data, to only look at current FY and Future",null,null,null,null,null,null,null,null,null,null,"2024-02-13"]

{"sheet":"IMPORTED DATA","index":9,"n_rows":122,"n_cols":23,"rows_kept":122,"cut":false,"hidden":true,"merged":[[39,4,40,5],[47,4,48,5],[5,2,7,14],[5,19,7,31],[12,1,12,5],[15,4,16,5],[23,4,24,5],[31,4,32,5]]}
[]
[]
[]
[]
[]
[null,null,"IMPORTED DATA",null,null,null,null,null,null,null,null,null,null,null,null,null,null,null,null,"TRANSFORMED DATA TO COPY"]
[]
[]
[]
[]
[]
[null,null,null,null,null,null,null,null,null,null,null,null,"Prior Versions of this Template"]
[null,null,null,null,null,null,null,null,null,null,null,null,"Fiscal Year"]
[null,null,{"$f":"IF(D14=\"\",COUNTIF(O71,\"<>0\")+COUNTIF(O77,\"<>0\")+COUNTIF(O83,\"<>0\")+COUNTIF(O89,\"<>0\")+COUNTIF(O95,\"<>0\"),D14)","v":5},null,null,null,null,null,null,null,null,null," Agency Name"]
[null,null,null,null,null,null,{"$f":"IF($O$111<>0,1,0)","v":0},null,null,null,null,null," Secretariat"]
[null,null,null,null,null,null,null,null,null,null,null,null,"Agency Number",null,null,null,null,null,null,null,"Total Employees with Disabilities PFY",{"$f":"IF(O18<>\"\",O18,N18)","v":0}]
[null,null,null,null,null,null,null,null,null,null,null,null,"Total Classified Employees at the Agency",null,null,null,null,null,null,null,"Total Employees with Disabilities who are Leaders PFY",0]
[null,null,null,null,null,null,null,null,null,null,null,null,"Total Classified Employees with Disabilities at the Agency",null,null,null,null,null,null,null,"Total Employees with Disabilities who are Executives PFY",0]
[null,null,null,null,null,null,null,null,null,null,null,null,"Total Classified Employees with Disabilities who are Leaders/Supervisors (2 or more direct reports)",null,null,null,null,null,null,null,"Total Veterans with Disabilities PFY",0]
[null,null,null,null,null,null,null,null,null,null,null,null,"Total Classified Employees with Disabilities at the Agency who are Executives",null,null,null,null,null,null,null,"Total Veterans with Disabilities who are Leaders PFY",0]
[null,null,{"$f":"IF(D21=\"\",5-COUNTIF(O72:O76,\"\"),D21)","v":0},null,null,null,null,null,null,null,null,null,"Total Classified Veterans with Disabilities at the Agency",null,null,null,null,null,null,null,"Total Veterans with Disabilities who are Executives PFY",0]
[null,null,null,null,null,null,{"$f":"IF($O$112<>0,1,0)","v":0},null,null,null,null,null,"Total Classified Veterans with Disabilities who are Leaders/Supervisors (2 or more direct reports)"]
[null,null,null,null,null,null,null,null,null,null,null,null,"Total Classified Veterans with Disabilities at the Agency who are Executives",null,null,null,null,null,null,null,"Total Hires PFY",{"$f":"IF(O24<>\"\",O24,N24)","v":0}]
[null,null,null,null,null,null,null,null,null,null,null,null,"Total Classified Hires at the Agency",null,null,null,null,null,null,null,"Total Hires with Disabilities PFY",{"$f":"IF(O25<>\"\",O25,N25)","v":0}]
[null,null,null,null,null,null,null,null,null,null,null,null,"Total Classified Hires who were Employees with Disabilities",null,null,null,null,null,null,null,"Total Hires with Disabilities who are Leaders PFY",{"$f":"IF(O26<>\"\",O26,N26)","v":0}]
[null,null,null,null,null,null,null,null,null,null,null,null,"Total Classified Employees with Disabilities hired to Leader/Supervisor Role (2 or more direct reports)",null,null,null,null,null,null,null,"Total Hires with Disabilities who are Executives PFY",{"$f":"IF(O27<>\"\",O27,N27)","v":0}]
[null,null,null,null,null,null,null,null,null,null,null,null,"Total Classified Employees with Disabilities hired to Executive Role"]
[null,null,null,null,null,null,null,null,null,null,null,null,"Total Classified Applicants to Positions at the Agency",null,null,null,null,null,null,null,"Total Applicants PFY",{"$f":"IF(O28<>\"\",O28,N28)","v":0}]
[null,null,{"$f":"IF(D29=\"\",5-COUNTIF(O78:O82,\"\"),D29)","v":0},null,null,null,null,null,null,null,null,null,"Total Classified Applicants who were Employees with Disabilities",null,null,null,null,null,null,null,"Total Applicants with Disabilities PFY",{"$f":"IF(O29<>\"\",O29,N29)","v":0}]
[null,null,null,null,null,null,{"$f":"IF($O$113<>0,1,0)","v":0},null,null,null,null,null,"Total Classified Employees with Disabilities that applied for a Leader/Supervisor Role (2 or more direct reports)",null,null,null,null,null,null,null,"Total Applicants with Disabilities to Leader Roles PFY",{"$f":"IF(O30<>\"\",O30,N30)","v":0}]
[null,null,null,null,null,null,null,null,null,null,null,null,"Total Classified Employees with Disabilities that applied for an Executive Role",null,null,null,null,null,null,null,"Total Applicants with Disabilities to Executive Roles PFY",{"$f":"IF(O31<>\"\",O31,N31)","v":0}]
[null,null,null,null,null,null,null,null,null,null,null,null,"Total Applicants that used the Alternative Hiring Process"]
[null,null,null,null,null,null,null,null,null,null,null,null,"Total Individuals Hired from Alternative Hiring Process",null,null,null,null,null,null,null,"Total Applicants with Disabilities PFY",{"$f":"IF(O32<>\"\",O32,N32)","v":0}]
[null,null,null,null,null,null,null,null,null,null,null,null,"Total Employees Hired through Alternative Hiring Process that transitioned to a Classified Employee",null,null,null,null,null,null,null,"Total Applicants with Disabilities who are Leaders PFY",{"$f":"IF(O33<>\"\",O33,N33)","v":0}]
[null,null,null,null,null,null,null,null,null,null,null,null,"Average Years of Service at the Agency for Classified Employees",null,null,null,null,null,null,null,"Total Promotions with Disabilities who are Executives PFY",{"$f":"IF(O34<>\"\",O34,N34)","v":0}]
[null,null,null,null,null,null,null,null,null,null,null,null,"Average Years of Service for Classified Employees with Disabilities"]
[null,null,{"$f":"IF(D37=\"\",5-COUNTIF(O84:O88,\"\"),D37)","v":0},null,null,null,null,null,null,null,null,null,"Average Years of Service for Classified Employees with Disabilities in a Leader/Supervisor Role (2 or more direct reports)",null,null,null,null,null,null,null,"Average YOS PFY",{"$f":"IF(O35<>\"\",O35,N35)","v":0}]
[null,null,null,null,null,null,{"$f":"IF($O$114<>0,1,0)","v":0},null,null,null,null,null,"Average Years of Service for Classified Employees with Disabilities in an Executive Role",null,null,null,null,null,null,null,"Average YOS Employees with Disabilities PFY",{"$f":"IF(O36<>\"\",O36,N36)","v":0}]
[null,null,null,null,null,null,null,null,null,null,null,null,"Total Number of Internal Promotions of Classified Employees at the Agency",null,null,null,null,null,null,null,"Average YOS Employees with Disabiliies in Leader/Supervisor Role PFY",{"$f":"IF(O37<>\"\",O37,N37)","v":0}]
[null,null,null,null,null,null,null,null,null,null,null,null,"Total Classified Internal Promotions who were Employees with Disabilities",null,null,null,null,null,null,null,"Average YOS Employees with Disbailities in Executive Roles PFY",{"$f":"IF(O38<>\"\",O38,N38)","v":0}]
[null,null,null,null,null,null,null,null,null,null,null,null,"Total Classified Internal Promotions who were Employees with Disabilities to a Leader/Supervisor Role (2 or more direct reports)"]
[null,null,null,null,null,null,null,null,null,null,null,null,"Total Classified Internal Promotions who were Employees with Disabilities to an Executive Role",null,null,null,null,null,null,null,"Total Promotions PFY",{"$f":"IF(O39<>\"\",O39,N39)","v":0}]
[null,null,null,null,null,null,null,null,null,null,null,null,"Total Number of Internal Transfers of Classified Employees at the Agency",null,null,null,null,null,null,null,"Total Promotions with Disabilities PFY",{"$f":"IF(O40<>\"\",O40,N40)","v":0}]
[null,null,null,null,null,null,null,null,null,null,null,null,"Total Classified Internal Transfers who were Employees with Disabilities",null,null,null,null,null,null,null,"Total Promotions with Disabilities who are Leaders PFY",{"$f":"IF(O41<>\"\",O41,N41)","v":0}]
[null,null,{"$f":"IF(D45=\"\",5-COUNTIF(O90:O94,\"\"),D45)","v":0},null,null,null,null,null,null,null,null,null,"Total Classified Internal Transfers who were Employees with Disabilities to a Leader/Supervisor Role (2 or more direct reports)",null,null,null,null,null,null,null,"Total Promotions with Disabilities who are Executives PFY",{"$f":"IF(O42<>\"\",O42,N42)","v":0}]
[null,null,null,null,null,null,{"$f":"IF($O$115<>0,1,0)","v":0},null,null,null,null,null,"Total Classified Internal Transfers who were Employees with Disabilities to an Executive Role"]
[null,null,null,null,null,null,null,null,null,null,null,null,"Total Number of Voluntary Separations of Classified Employees at the Agency",null,null,null,null,null,null,null,"Total Internal Transfers PFY",{"$f":"IF(O43<>\"\",O43,N43)","v":0}]
[null,null,null,null,null,null,null,null,null,null,null,null,"Total Classified Voluntary Separations who were Employees with Disabilities",null,null,null,null,null,null,null,"Total Internal Transfers with Disabilities PFY",{"$f":"IF(O44<>\"\",O44,N44)","v":0}]
[null,null,null,null,null,null,null,null,null,null,null,null,"Total Classified Voluntary Separations who were Employees with Disabilities to a Leader/Supervisor Role (2 or more direct reports)",null,null,null,null,null,null,null,"Total Internal Transfers with Disabilities who are Leaders PFY",{"$f":"IF(O45<>\"\",O45,N45)","v":0}]
[null,null,null,null,null,null,null,null,null,null,null,null,"Total Classified Voluntary Separations who were Employees with Disabilities to an Executive Role",null,null,null,null,null,null,null,"Total Internal Transfers with Disabilities who are Executives PFY",{"$f":"IF(O46<>\"\",O46,N46)","v":0}]
[null,null,null,null,null,null,null,null,null,null,null,null,"Total Number of External Transfers of Classified Employees at the Agency"]
[null,null,null,null,null,null,null,null,null,null,null,null,"Total Classified External Transfers who were Employees with Disabilities",null,null,null,null,null,null,null,"Total Separations PFY",{"$f":"IF(O47<>\"\",O47,N47)","v":0}]
[null,null,{"$f":"IF(D53=\"\",5-COUNTIF(O96:O100,\"\"),D53)","v":0},null,null,null,null,null,null,null,null,null,"Total Classified External Transfers who were Employees with Disabilities to a Leader/Supervisor Role (2 or more direct reports)",null,null,null,null,null,null,null,"Total Separations with Disabilities PFY",{"$f":"IF(O48<>\"\",O48,N48)","v":0}]
[null,null,null,null,null,null,null,null,null,null,null,null,"Total Classified External Transfers who were Employees with Disabilities to an Executive Role",null,null,null,null,null,null,null,"Total Separations with Disabilities who are Leaders PFY",{"$f":"IF(O49<>\"\",O49,N49)","v":0}]
[null,null,null,null,null,null,null,null,null,null,null,null,"Recruitment Stregnths",null,null,null,null,null,null,null,"Total Separations with Disabilities who are Executives PFY",{"$f":"IF(O50<>\"\",O50,N50)","v":0}]
[null,null,null,null,null,null,null,null,null,null,null,null,"Retention Strengths"]
[null,null,null,null,null,null,null,null,null,null,null,null,"Engagement Strengths",null,null,null,null,null,null,null,"Total Transfers PFY",{"$f":"IF(O51<>\"\",O51,N51)","v":0}]
[null,null,null,null,null,null,null,null,null,null,null,null,"Learning/Development Strengths",null,null,null,null,null,null,null,"Total Transfers with Disabilities PFY",{"$f":"IF(O52<>\"\",O52,N52)","v":0}]
[null,null,null,null,null,null,null,null,null,null,null,null,"Recruitment Weaknesses",null,null,null,null,null,null,null,"Total Transfers with Disabilities who are Leaders PFY",{"$f":"IF(O53<>\"\",O53,N53)","v":0}]
[null,null,null,null,null,null,null,null,null,null,null,null,"Retention Weaknesses",null,null,null,null,null,null,null,"Total Transfers with Disabilities who are Executives PFY",{"$f":"IF(O54<>\"\",O54,N54)","v":0}]
[null,null,null,null,null,null,null,null,null,null,null,null,"Engagement Weaknesses"]
[null,null,null,null,null,null,null,null,null,null,null,null,"Learning/Development Weaknesses",null,null,null,null,null,null,null,"Recruitment Stregnths",{"$f":"IF(O55<>0,O55,N55)","v":0},{"$f":"IF(V62=0,\"\",V62)","v":""}]
[null,null,null,null,null,null,null,null,null,null,null,null,"Recruitment Opportunities",null,null,null,null,null,null,null,"Retention Strengths",{"$f":"IF(O56<>\"\",O56,N56)","v":0},{"$f":"IF(V63=0,\"\",V63)","v":""}]
[null,null,null,null,null,null,null,null,null,null,null,null,"Retention Opportunities",null,null,null,null,null,null,null,"Engagement Strengths",0,""]
[null,null,null,null,null,null,null,null,null,null,null,null,"Engagement Opportunities",null,null,null,null,null,null,null,"Learning/Development Strengths",0,""]
[null,null,null,null,null,null,null,null,null,null,null,null,"Learning/Development Opportunities",null,null,null,null,null,null,null,"Recruitment Weaknesses",0,""]
[null,null,null,null,null,null,null,null,null,null,null,null,"Recruitment Threats",null,null,null,null,null,null,null,"Retention Weaknesses",0,""]
[null,null,null,null,null,null,null,null,null,null,null,null,"Retention Threats",null,null,null,null,null,null,null,"Engagement Weaknesses",0,""]
[null,null,null,null,null,null,null,null,null,null,null,null,"Engagement Threats",null,null,null,null,null,null,null,"Learning/Development Weaknesses",0,""]
[null,null,null,null,null,null,null,null,null,null,null,null,"Learning/Development Threats",null,null,null,null,null,null,null,"Recruitment Opportunities",0,""]
[null,null,null,null,null,null,null,null,null,null,null,null,"Objective 1",null,null,null,null,null,null,null,"Retention Opportunities",0,""]
[null,null,null,null,null,null,null,null,null,null,null,null,"Objective 1 Action 1",null,null,null,null,null,null,null,"Engagement Opportunities",0,""]
[null,null,null,null,null,null,null,null,null,null,null,null,"Objective 1 Action 2",null,null,null,null,null,null,null,"Learning/Development Opportunities",0,""]
[null,null,null,null,null,null,null,null,null,null,null,null,"Objective 1 Action 3",null,null,null,null,null,null,null,"Recruitment Threats",0,""]
[null,null,null,null,null,null,null,null,null,null,null,null,"Objective 1 Action 4",null,null,null,null,null,null,null,"Retention Threats",0,""]
[null,null,null,null,null,null,null,null,null,null,null,null,"Objective 1 Action 5",null,null,null,null,null,null,null,"Engagement Threats",0,""]
[null,null,null,null,null,null,null,null,null,null,null,null,"Objective 2",null,null,null,null,null,null,null,"Learning/Development Threats",0,""]
[null,null,null,null,null,null,null,null,null,null,null,null,"Objective 2 Action 1",null,null,null,null,null,null,null,"Objective 1",0,""]
[null,null,null,null,null,null,null,null,null,null,null,null,"Objective 2 Action 2",null,null,null,null,null,null,null,"Objective 1 Action 1",0,""]
[null,null,null,null,null,null,null,null,null,null,null,null,"Objective 2 Action 3",null,null,null,null,null,null,null,"Objective 1 Action 2",0,""]
[null,null,null,null,null,null,null,null,null,null,null,null,"Objective 2 Action 4",null,null,null,null,null,null,null,"Objective 1 Action 3",0,""]
[null,null,null,null,null,null,null,null,null,null,null,null,"Objective 2 Action 5",null,null,null,null,null,null,null,"Objective 1 Action 4",0,""]
[null,null,null,null,null,null,null,null,null,null,null,null,"Objective 3",null,null,null,null,null,null,null,"Objective 1 Action 5",0,""]
[null,null,null,null,null,null,null,null,null,null,null,null,"Objective 3 Action 1",null,null,null,null,null,null,null,"Objective 2",0,""]
[null,null,null,null,null,null,null,null,null,null,null,null,"Objective 3 Action 2",null,null,null,null,null,null,null,"Objective 2 Action 1",0,""]
[null,null,null,null,null,null,null,null,null,null,null,null,"Objective 3 Action 3",null,null,null,null,null,null,null,"Objective 2 Action 2",0,""]
[null,null,null,null,null,null,null,null,null,null,null,null,"Objective 3 Action 4",null,null,null,null,null,null,null,"Objective 2 Action 3",0,""]
[null,null,null,null,null,null,null,null,null,null,null,null,"Objective 3 Action 5",null,null,null,null,null,null,null,"Objective 2 Action 4",0,""]
[null,null,null,null,null,null,null,null,null,null,null,null,"Objective 4",null,null,null,null,null,null,null,"Objective 2 Action 5",0,""]
[null,null,null,null,null,null,null,null,null,null,null,null,"Objective 4 Action 1",null,null,null,null,null,null,null,"Objective 3",0,""]
[null,null,null,null,null,null,null,null,null,null,null,null,"Objective 4 Action 2",null,null,null,null,null,null,null,"Objective 3 Action 1",0,""]
[null,null,null,null,null,null,null,null,null,null,null,null,"Objective 4 Action 3",null,null,null,null,null,null,null,"Objective 3 Action 2",0,""]
[null,null,null,null,null,null,null,null,null,null,null,null,"Objective 4 Action 4",null,null,null,null,null,null,null,"Objective 3 Action 3",0,""]
[null,null,null,null,null,null,null,null,null,null,null,null,"Objective 4 Action 5",null,null,null,null,null,null,null,"Objective 3 Action 4",0,""]
[null,null,null,null,null,null,null,null,null,null,null,null,"Objective 5",null,null,null,null,null,null,null,"Objective 3 Action 5",{"$f":"IF(O88<>\"\",O88,N88)","v":0},""]
[null,null,null,null,null,null,null,null,null,null,null,null,"Objective  5 Action 1",null,null,null,null,null,null,null,"Objective 4",0,""]
[null,null,null,null,null,null,null,null,null,null,null,null,"Objective 5 Action 2",null,null,null,null,null,null,null,"Objective 4 Action 1",0,""]
[null,null,null,null,null,null,null,null,null,null,null,null,"Objective 5 Action 3",null,null,null,null,null,null,null,"Objective 4 Action 2",0,""]
[null,null,null,null,null,null,null,null,null,null,null,null,"Objective 5 Action 4",null,null,null,null,null,null,null,"Objective 4 Action 3",0,""]
[null,null,null,null,null,null,null,null,null,null,null,null,"Objective 5 Action 5",null,null,null,null,null,null,null,"Objective 4 Action 4",0,""]
[null,null,null,null,null,null,null,null,null,null,null,null,"Executive Summary",null,null,null,null,null,null,null,"Objective 4 Action 5",0,""]
[null,null,null,null,null,null,null,null,null,null,null,null,"Red Scale",null,null,null,null,null,null,null,"Objective 5",0,""]
[null,null,null,null,null,null,null,null,null,null,null,null,"Yellow Scale",null,null,null,null,null,null,null,"Objective  5 Action 1",0,""]
[null,null,null,null,null,null,null,null,null,null,null,null,"Green Scale",null,null,null,null,null,null,null,"Objective 5 Action 2",0,""]
[null,null,null,null,null,null,null,null,null,null,null,null,"SWOT Included in Report",null,null,null,null,null,null,null,"Objective 5 Action 3",0,""]
[null,null,null,null,null,null,null,null,null,null,null,null,"SWOT Summary",null,null,null,null,null,null,null,"Objective 5 Action 4",0,""]
[null,null,null,null,null,null,null,null,null,null,null,null,"Strength Summary",null,null,null,null,null,null,null,"Objective 5 Action 5",0,""]
[null,null,null,null,null,null,null,null,null,null,null,null,"Weaknesses Summary",null,null,null,null,null,null,null,"Executive Summary",0,""]
[null,null,null,null,null,null,null,null,null,null,null,null,"Opportunities Summary",null,null,null,null,null,null,null,"Red Scale",0,""]
[null,null,null,null,null,null,null,null,null,null,null,null,"Threats Summary",null,null,null,null,null,null,null,"Yellow Scale",0,""]
[null,null,null,null,null,null,null,null,null,null,null,null,"Objective 1 Progress Summary",null,null,null,null,null,null,null,"Green Scale",0,""]
[null,null,null,null,null,null,null,null,null,null,null,null,"Objective 2 Progress Summary",null,null,null,null,null,null,null,"SWOT Included in Report",0,""]
[null,null,null,null,null,null,null,null,null,null,null,null,"Objective 3 Progress Summary",null,null,null,null,null,null,null,"SWOT Summary",0,""]
[null,null,null,null,null,null,null,null,null,null,null,null,"Objective 4 Progress Summary",null,null,null,null,null,null,null,"Strength Summary",0,""]
[null,null,null,null,null,null,null,null,null,null,null,null,"Objective 5 Progress Summary",null,null,null,null,null,null,null,"Weaknesses Summary",0,""]
[null,null,null,null,null,null,null,null,null,null,null,null,null,null,null,null,null,null,null,null,"Opportunities Summary",0,""]
[null,null,null,null,null,null,null,null,null,null,null,null,null,null,null,null,null,null,null,null,"Threats Summary",0,""]
[null,null,null,null,null,null,null,null,null,null,null,null,null,null,null,null,null,null,null,null,"Objective 1 Progress Summary",0,""]
[null,null,null,null,null,null,null,null,null,null,null,null,null,null,null,null,null,null,null,null,"Objective 2 Progress Summary",0,""]
[null,null,null,null,null,null,null,null,null,null,null,null,null,null,null,null,null,null,null,null,"Objective 3 Progress Summary",0,""]
[null,null,null,null,null,null,null,null,null,null,null,null,null,null,null,null,null,null,null,null,"Objective 4 Progress Summary",0,""]
[null,null,null,null,null,null,null,null,null,null,null,null,null,null,null,null,null,null,null,null,"Objective 5 Progress Summary",0,""]

{"sheet":"DATA EXPORT","index":10,"n_rows":120,"n_cols":16,"rows_kept":120,"cut":false,"hidden":true,"merged":[[5,2,7,14],[8,2,9,14]]}
[]
[]
[]
[]
[]
[null,null,"DHRM EXPORT"]
[]
[]
[null,null,"The DHRM Export Tab complies information in this template to be imported into other tools. "]
[]
[]
[]
[null,null,null,null,null,null,null,null,null,null,null,null,"Fiscal Year",{"$f":"'DHRM ADMIN'!$P$15-2","v":1898},{"$f":"'DHRM ADMIN'!$P$15-1","v":1899},{"$f":"'DHRM ADMIN'!$P$15","v":1900}]
[null,null,null,null,null,null,null,null,null,null,null,null," Agency Name",{"$f":"'AGENCY PROFILE'!$J$29","v":0},{"$f":"'AGENCY PROFILE'!$J$29","v":0},{"$f":"'AGENCY PROFILE'!$J$29","v":0}]
[null,null,null,null,null,null,null,null,null,null,null,null," Secretariat",{"$f":"'AGENCY PROFILE'!$J$30","v":""},{"$f":"'AGENCY PROFILE'!$J$30","v":""},{"$f":"'AGENCY PROFILE'!$J$30","v":""}]
[null,null,null,null,null,null,null,null,null,null,null,null,"Agency Number",{"$f":"'AGENCY PROFILE'!$P$31","v":""},{"$f":"'AGENCY PROFILE'!$P$31","v":""},{"$f":"'AGENCY PROFILE'!$P$31","v":""}]
[null,null,null,null,null,null,null,null,null,null,null,null,"Total Classified Employees at the Agency",{"$f":"'AGENCY PROFILE'!N59","v":0},{"$f":"'AGENCY PROFILE'!O59","v":0},{"$f":"'AGENCY PROFILE'!P59","v":0}]
[null,null,null,null,null,null,null,null,null,null,null,null,"Total Classified Employees with Disabilities at the Agency",{"$f":"'AGENCY PROFILE'!N60","v":0},{"$f":"'AGENCY PROFILE'!O60","v":0},{"$f":"'AGENCY PROFILE'!P60","v":0}]
[null,null,null,null,null,null,null,null,null,null,null,null,"Total Classified Employees with Disabilities who are Leaders/Supervisors (2 or more direct reports)",{"$f":"'AGENCY PROFILE'!N61","v":0},{"$f":"'AGENCY PROFILE'!O61","v":0},{"$f":"'AGENCY PROFILE'!P61","v":0}]
[null,null,null,null,null,null,null,null,null,null,null,null,"Total Classified Employees with Disabilities at the Agency who are Executives",{"$f":"'AGENCY PROFILE'!N62","v":0},{"$f":"'AGENCY PROFILE'!O62","v":0},{"$f":"'AGENCY PROFILE'!P62","v":0}]
[null,null,null,null,null,null,null,null,null,null,null,null,"Total Classified Veterans with Disabilities at the Agency",{"$f":"'AGENCY PROFILE'!N63","v":0},{"$f":"'AGENCY PROFILE'!O63","v":0},{"$f":"'AGENCY PROFILE'!P63","v":0}]
[null,null,null,null,null,null,null,null,null,null,null,null,"Total Classified Veterans with Disabilities who are Leaders/Supervisors (2 or more direct reports)",{"$f":"'AGENCY PROFILE'!N64","v":0},{"$f":"'AGENCY PROFILE'!O64","v":0},{"$f":"'AGENCY PROFILE'!P64","v":0}]
[null,null,null,null,null,null,null,null,null,null,null,null,"Total Classified Veterans with Disabilities at the Agency who are Executives",{"$f":"'AGENCY PROFILE'!N65","v":0},{"$f":"'AGENCY PROFILE'!O65","v":0},{"$f":"'AGENCY PROFILE'!P65","v":0}]
[null,null,null,null,null,null,null,null,null,null,null,null,"Total Classified Hires at the Agency",{"$f":"'WORKFORCE DATA'!N33","v":0},{"$f":"'WORKFORCE DATA'!O33","v":0},{"$f":"'WORKFORCE DATA'!P33","v":0}]
[null,null,null,null,null,null,null,null,null,null,null,null,"Total Classified Hires who were Employees with Disabilities",{"$f":"'WORKFORCE DATA'!N34","v":0},{"$f":"'WORKFORCE DATA'!O34","v":0},{"$f":"'WORKFORCE DATA'!P34","v":0}]
[null,null,null,null,null,null,null,null,null,null,null,null,"Total Classified Employees with Disabilities hired to Leader/Supervisor Role (2 or more direct reports)",{"$f":"'WORKFORCE DATA'!N35","v":0},{"$f":"'WORKFORCE DATA'!O35","v":0},{"$f":"'WORKFORCE DATA'!P35","v":0}]
[null,null,null,null,null,null,null,null,null,null,null,null,"Total Classified Employees with Disabilities hired to Executive Role",{"$f":"'WORKFORCE DATA'!N36","v":0},{"$f":"'WORKFORCE DATA'!O36","v":0},{"$f":"'WORKFORCE DATA'!P36","v":0}]
[null,null,null,null,null,null,null,null,null,null,null,null,"Total Classified Applicants to Positions at the Agency",{"$f":"'WORKFORCE DATA'!N41","v":0},{"$f":"'WORKFORCE DATA'!O41","v":0},{"$f":"'WORKFORCE DATA'!P41","v":0}]
[null,null,null,null,null,null,null,null,null,null,null,null,"Total Classified Applicants who were Employees with Disabilities",{"$f":"'WORKFORCE DATA'!N42","v":0},{"$f":"'WORKFORCE DATA'!O42","v":0},{"$f":"'WORKFORCE DATA'!P42","v":0}]
[null,null,null,null,null,null,null,null,null,null,null,null,"Total Classified Employees with Disabilities that applied for a Leader/Supervisor Role (2 or more direct reports)",{"$f":"'WORKFORCE DATA'!N43","v":0},{"$f":"'WORKFORCE DATA'!O43","v":0},{"$f":"'WORKFORCE DATA'!P43","v":0}]
[null,null,null,null,null,null,null,null,null,null,null,null,"Total Classified Employees with Disabilities that applied for an Executive Role",{"$f":"'WORKFORCE DATA'!N44","v":0},{"$f":"'WORKFORCE DATA'!O44","v":0},{"$f":"'WORKFORCE DATA'!P44","v":0}]
[null,null,null,null,null,null,null,null,null,null,null,null,"Total Applicants that used the Alternative Hiring Process",{"$f":"'WORKFORCE DATA'!N55","v":0},{"$f":"'WORKFORCE DATA'!O55","v":0},{"$f":"'WORKFORCE DATA'!P55","v":0}]
[null,null,null,null,null,null,null,null,null,null,null,null,"Total Individuals Hired from Alternative Hiring Process",{"$f":"'WORKFORCE DATA'!N56","v":0},{"$f":"'WORKFORCE DATA'!O56","v":0},{"$f":"'WORKFORCE DATA'!P56","v":0}]
[null,null,null,null,null,null,null,null,null,null,null,null,"Total Employees Hired through Alternative Hiring Process that transitioned to a Classified Employee",{"$f":"'WORKFORCE DATA'!N57","v":0},{"$f":"'WORKFORCE DATA'!O57","v":0},{"$f":"'WORKFORCE DATA'!P57","v":0}]
[null,null,null,null,null,null,null,null,null,null,null,null,"Average Years of Service at the Agency for Classified Employees",{"$f":"'WORKFORCE DATA'!N70","v":0},{"$f":"'WORKFORCE DATA'!O70","v":0},{"$f":"'WORKFORCE DATA'!P70","v":0}]
[null,null,null,null,null,null,null,null,null,null,null,null,"Average Years of Service for Classified Employees with Disabilities",{"$f":"'WORKFORCE DATA'!N71","v":0},{"$f":"'WORKFORCE DATA'!O71","v":0},{"$f":"'WORKFORCE DATA'!P71","v":0}]
[null,null,null,null,null,null,null,null,null,null,null,null,"Average Years of Service for Classified Employees with Disabilities in a Leader/Supervisor Role (2 or more direct reports)",{"$f":"'WORKFORCE DATA'!N72","v":0},{"$f":"'WORKFORCE DATA'!O72","v":0},{"$f":"'WORKFORCE DATA'!P72","v":0}]
[null,null,null,null,null,null,null,null,null,null,null,null,"Average Years of Service for Classified Employees with Disabilities in an Executive Role",{"$f":"'WORKFORCE DATA'!N73","v":0},{"$f":"'WORKFORCE DATA'!O73","v":0},{"$f":"'WORKFORCE DATA'!P73","v":0}]
[null,null,null,null,null,null,null,null,null,null,null,null,"Total Number of Internal Promotions of Classified Employees at the Agency",{"$f":"'WORKFORCE DATA'!N78","v":0},{"$f":"'WORKFORCE DATA'!O78","v":0},{"$f":"'WORKFORCE DATA'!P78","v":0}]
[null,null,null,null,null,null,null,null,null,null,null,null,"Total Classified Internal Promotions who were Employees with Disabilities",{"$f":"'WORKFORCE DATA'!N79","v":0},{"$f":"'WORKFORCE DATA'!O79","v":0},{"$f":"'WORKFORCE DATA'!P79","v":0}]
[null,null,null,null,null,null,null,null,null,null,null,null,"Total Classified Internal Promotions who were Employees with Disabilities to a Leader/Supervisor Role (2 or more direct reports)",{"$f":"'WORKFORCE DATA'!N80","v":0},{"$f":"'WORKFORCE DATA'!O80","v":0},{"$f":"'WORKFORCE DATA'!P80","v":0}]
[null,null,null,null,null,null,null,null,null,null,null,null,"Total Classified Internal Promotions who were Employees with Disabilities to an Executive Role",{"$f":"'WORKFORCE DATA'!N81","v":0},{"$f":"'WORKFORCE DATA'!O81","v":0},{"$f":"'WORKFORCE DATA'!P81","v":0}]
[null,null,null,null,null,null,null,null,null,null,null,null,"Total Number of Internal Transfers of Classified Employees at the Agency",{"$f":"'WORKFORCE DATA'!N86","v":0},{"$f":"'WORKFORCE DATA'!O86","v":0},{"$f":"'WORKFORCE DATA'!P86","v":0}]
[null,null,null,null,null,null,null,null,null,null,null,null,"Total Classified Internal Transfers who were Employees with Disabilities",{"$f":"'WORKFORCE DATA'!N87","v":0},{"$f":"'WORKFORCE DATA'!O87","v":0},{"$f":"'WORKFORCE DATA'!P87","v":0}]
[null,null,null,null,null,null,null,null,null,null,null,null,"Total Classified Internal Transfers who were Employees with Disabilities to a Leader/Supervisor Role (2 or more direct reports)",{"$f":"'WORKFORCE DATA'!N88","v":0},{"$f":"'WORKFORCE DATA'!O88","v":0},{"$f":"'WORKFORCE DATA'!P88","v":0}]
[null,null,null,null,null,null,null,null,null,null,null,null,"Total Classified Internal Transfers who were Employees with Disabilities to an Executive Role",{"$f":"'WORKFORCE DATA'!N89","v":0},{"$f":"'WORKFORCE DATA'!O89","v":0},{"$f":"'WORKFORCE DATA'!P89","v":0}]
[null,null,null,null,null,null,null,null,null,null,null,null,"Total Number of Voluntary Separations of Classified Employees at the Agency",{"$f":"'WORKFORCE DATA'!N94","v":0},{"$f":"'WORKFORCE DATA'!O94","v":0},{"$f":"'WORKFORCE DATA'!P94","v":0}]
[null,null,null,null,null,null,null,null,null,null,null,null,"Total Classified Voluntary Separations who were Employees with Disabilities",{"$f":"'WORKFORCE DATA'!N95","v":0},{"$f":"'WORKFORCE DATA'!O95","v":0},{"$f":"'WORKFORCE DATA'!P95","v":0}]
[null,null,null,null,null,null,null,null,null,null,null,null,"Total Classified Voluntary Separations who were Employees with Disabilities to a Leader/Supervisor Role (2 or more direct reports)",{"$f":"'WORKFORCE DATA'!N96","v":0},{"$f":"'WORKFORCE DATA'!O96","v":0},{"$f":"'WORKFORCE DATA'!P96","v":0}]
[null,null,null,null,null,null,null,null,null,null,null,null,"Total Classified Voluntary Separations who were Employees with Disabilities to an Executive Role",{"$f":"'WORKFORCE DATA'!N97","v":0},{"$f":"'WORKFORCE DATA'!O97","v":0},{"$f":"'WORKFORCE DATA'!P97","v":0}]
[null,null,null,null,null,null,null,null,null,null,null,null,"Total Number of External Transfers of Classified Employees at the Agency",{"$f":"'WORKFORCE DATA'!N102","v":0},{"$f":"'WORKFORCE DATA'!O102","v":0},{"$f":"'WORKFORCE DATA'!P102","v":0}]
[null,null,null,null,null,null,null,null,null,null,null,null,"Total Classified External Transfers who were Employees with Disabilities",{"$f":"'WORKFORCE DATA'!N103","v":0},{"$f":"'WORKFORCE DATA'!O103","v":0},{"$f":"'WORKFORCE DATA'!P103","v":0}]
[null,null,null,null,null,null,null,null,null,null,null,null,"Total Classified External Transfers who were Employees with Disabilities to a Leader/Supervisor Role (2 or more direct reports)",{"$f":"'WORKFORCE DATA'!N104","v":0},{"$f":"'WORKFORCE DATA'!O104","v":0},{"$f":"'WORKFORCE DATA'!P104","v":0}]
[null,null,null,null,null,null,null,null,null,null,null,null,"Total Classified External Transfers who were Employees with Disabilities to an Executive Role",{"$f":"'WORKFORCE DATA'!N105","v":0},{"$f":"'WORKFORCE DATA'!O105","v":0},{"$f":"'WORKFORCE DATA'!P105","v":0}]
[null,{"$f":"'GETTING STARTED'!B134","v":"00:00:00"},{"$f":"'GETTING STARTED'!K134","v":"00:00:00"},null,null,null,null,null,null,null,null,null,"Recruitment Stregnths",null,null,{"$f":"'AGENCY STRATEGY'!E81","v":0}]
[null,null,null,null,null,null,null,null,null,null,null,null,"Retention Strengths",null,null,{"$f":"'AGENCY STRATEGY'!H81","v":0}]
[null,null,null,null,null,null,null,null,null,null,null,null,"Engagement Strengths",null,null,{"$f":"'AGENCY STRATEGY'!K81","v":0}]
[null,null,null,null,null,null,null,null,null,null,null,null,"Learning/Development Strengths",null,null,{"$f":"'AGENCY STRATEGY'!N81","v":0}]
[null,null,null,null,null,null,null,null,null,null,null,null,"Recruitment Weaknesses",null,null,{"$f":"'AGENCY STRATEGY'!E100","v":0}]
[null,null,null,null,null,null,null,null,null,null,null,null,"Retention Weaknesses",null,null,{"$f":"'AGENCY STRATEGY'!H100","v":0}]
[null,null,null,null,null,null,null,null,null,null,null,null,"Engagement Weaknesses",null,null,{"$f":"'AGENCY STRATEGY'!$K$100","v":0}]
[null,null,null,null,null,null,null,null,null,null,null,null,"Learning/Development Weaknesses",null,null,{"$f":"'AGENCY STRATEGY'!$N$100","v":0}]
[null,null,null,null,null,null,null,null,null,null,null,null,"Recruitment Opportunities",null,null,{"$f":"'AGENCY STRATEGY'!$E$119","v":0}]
[null,null,null,null,null,null,null,null,null,null,null,null,"Retention Opportunities",null,null,{"$f":"'AGENCY STRATEGY'!$H$119","v":0}]
[null,null,null,null,null,null,null,null,null,null,null,null,"Engagement Opportunities",null,null,{"$f":"'AGENCY STRATEGY'!$K$119","v":0}]
[null,null,null,null,null,null,null,null,null,null,null,null,"Learning/Development Opportunities",null,null,{"$f":"'AGENCY STRATEGY'!$N$119","v":0}]
[null,null,null,null,null,null,null,null,null,null,null,null,"Recruitment Threats",null,null,{"$f":"'AGENCY STRATEGY'!$E$138","v":0}]
[null,null,null,null,null,null,null,null,null,null,null,null,"Retention Threats",null,null,{"$f":"'AGENCY STRATEGY'!$H$138","v":0}]
[null,null,null,null,null,null,null,null,null,null,null,null,"Engagement Threats",null,null,{"$f":"'AGENCY STRATEGY'!$K$138","v":0}]
[null,null,null,null,null,null,null,null,null,null,null,null,"Learning/Development Threats",null,null,{"$f":"'AGENCY STRATEGY'!$N$138","v":0}]
[null,null,null,null,null,null,null,null,null,null,null,null,"Objective 1",null,null,{"$f":"'AGENCY STRATEGY'!$F$160","v":0}]
[null,null,null,null,null,null,null,null,null,null,null,null,"Objective 1 Action 1",null,null,{"$f":"'AGENCY STRATEGY'!$H$166","v":0}]
[null,null,null,null,null,null,null,null,null,null,null,null,"Objective 1 Action 2",null,null,{"$f":"'AGENCY STRATEGY'!$H$169","v":0}]
[null,null,null,null,null,null,null,null,null,null,null,null,"Objective 1 Action 3",null,null,{"$f":"'AGENCY STRATEGY'!$H$172","v":0}]
[null,null,null,null,null,null,null,null,null,null,null,null,"Objective 1 Action 4",null,null,{"$f":"'AGENCY STRATEGY'!$H$175","v":0}]
[null,null,null,null,null,null,null,null,null,null,null,null,"Objective 1 Action 5",null,null,{"$f":"'AGENCY STRATEGY'!$H$178","v":0}]
[null,null,null,null,null,null,null,null,null,null,null,null,"Objective 2",null,null,{"$f":"'AGENCY STRATEGY'!$F$206","v":0}]
[null,null,null,null,null,null,null,null,null,null,null,null,"Objective 2 Action 1",null,null,{"$f":"'AGENCY STRATEGY'!$H$212","v":0}]
[null,null,null,null,null,null,null,null,null,null,null,null,"Objective 2 Action 2",null,null,{"$f":"'AGENCY STRATEGY'!$H$215","v":""}]
[null,null,null,null,null,null,null,null,null,null,null,null,"Objective 2 Action 3",null,null,{"$f":"'AGENCY STRATEGY'!$H$218","v":""}]
[null,null,null,null,null,null,null,null,null,null,null,null,"Objective 2 Action 4",null,null,{"$f":"'AGENCY STRATEGY'!$H$221","v":""}]
[null,null,null,null,null,null,null,null,null,null,null,null,"Objective 2 Action 5",null,null,{"$f":"'AGENCY STRATEGY'!$H$224","v":""}]
[null,null,null,null,null,null,null,null,null,null,null,null,"Objective 3",null,null,{"$f":"'AGENCY STRATEGY'!$F$252","v":0}]
[null,null,null,null,null,null,null,null,null,null,null,null,"Objective 3 Action 1",null,null,{"$f":"'AGENCY STRATEGY'!$H$258","v":0}]
[null,null,null,null,null,null,null,null,null,null,null,null,"Objective 3 Action 2",null,null,{"$f":"'AGENCY STRATEGY'!$H$261","v":""}]
[null,null,null,null,null,null,null,null,null,null,null,null,"Objective 3 Action 3",null,null,{"$f":"'AGENCY STRATEGY'!$H$264","v":""}]
[null,null,null,null,null,null,null,null,null,null,null,null,"Objective 3 Action 4",null,null,{"$f":"'AGENCY STRATEGY'!$H$267","v":""}]
[null,null,null,null,null,null,null,null,null,null,null,null,"Objective 3 Action 5",null,null,{"$f":"'AGENCY STRATEGY'!$H$270","v":""}]
[null,null,null,null,null,null,null,null,null,null,null,null,"Objective 4",null,null,{"$f":"'AGENCY STRATEGY'!$F$298","v":0}]
[null,null,null,null,null,null,null,null,null,null,null,null,"Objective 4 Action 1",null,null,{"$f":"'AGENCY STRATEGY'!$H$304","v":0}]
[null,null,null,null,null,null,null,null,null,null,null,null,"Objective 4 Action 2",null,null,{"$f":"'AGENCY STRATEGY'!$H$307","v":""}]
[null,null,null,null,null,null,null,null,null,null,null,null,"Objective 4 Action 3",null,null,{"$f":"'AGENCY STRATEGY'!$H$310","v":""}]
[null,null,null,null,null,null,null,null,null,null,null,null,"Objective 4 Action 4",null,null,{"$f":"'AGENCY STRATEGY'!$H$313","v":""}]
[null,null,null,null,null,null,null,null,null,null,null,null,"Objective 4 Action 5",null,null,{"$f":"'AGENCY STRATEGY'!$H$316","v":""}]
[null,null,null,null,null,null,null,null,null,null,null,null,"Objective 5",null,null,{"$f":"'AGENCY STRATEGY'!$F$344","v":0}]
[null,null,null,null,null,null,null,null,null,null,null,null,"Objective  5 Action 1",null,null,{"$f":"'AGENCY STRATEGY'!$H$350","v":0}]
[null,null,null,null,null,null,null,null,null,null,null,null,"Objective 5 Action 2",null,null,{"$f":"'AGENCY STRATEGY'!$H$353","v":""}]
[null,null,null,null,null,null,null,null,null,null,null,null,"Objective 5 Action 3",null,null,{"$f":"'AGENCY STRATEGY'!$H$356","v":""}]
[null,null,null,null,null,null,null,null,null,null,null,null,"Objective 5 Action 4",null,null,{"$f":"'AGENCY STRATEGY'!$H$359","v":""}]
[null,null,null,null,null,null,null,null,null,null,null,null,"Objective 5 Action 5",null,null,{"$f":"'AGENCY STRATEGY'!$H$362","v":""}]
[null,null,null,null,null,null,null,null,null,null,null,null,"Executive Summary",null,null,{"$f":"' EOP SUMMARY'!F45","v":0}]
[null,null,null,null,null,null,null,null,null,null,null,null,"Red Scale",null,null,{"$f":"' EOP SUMMARY'!C62","v":3.5000000000000003E-2}]
[null,null,null,null,null,null,null,null,null,null,null,null,"Yellow Scale",null,null,{"$f":"' EOP SUMMARY'!C66","v":0.05}]
[null,null,null,null,null,null,null,null,null,null,null,null,"Green Scale",null,null,{"$f":"' EOP SUMMARY'!C70","v":0.05}]
[null,null,null,null,null,null,null,null,null,null,null,null,"SWOT Included in Report",null,null,{"$f":"' EOP SUMMARY'!C93","v":"Yes"}]
[null,null,null,null,null,null,null,null,null,null,null,null,"SWOT Summary",null,null,{"$f":"' EOP SUMMARY'!F100","v":0}]
[null,null,null,null,null,null,null,null,null,null,null,null,"Strength Summary",null,null,{"$f":"' EOP SUMMARY'!F110","v":0}]
[null,null,null,null,null,null,null,null,null,null,null,null,"Weaknesses Summary",null,null,{"$f":"' EOP SUMMARY'!M110","v":0}]
[null,null,null,null,null,null,null,null,null,null,null,null,"Opportunities Summary",null,null,{"$f":"' EOP SUMMARY'!F147","v":0}]
[null,null,null,null,null,null,null,null,null,null,null,null,"Threats Summary",null,null,{"$f":"' EOP SUMMARY'!M147","v":0}]
[null,null,null,null,null,null,null,null,null,null,null,null,"Objective 1 Progress Summary",null,null,{"$f":"'AGENCY STRATEGY'!H190","v":0}]
[null,null,null,null,null,null,null,null,null,null,null,null,"Objective 2 Progress Summary",null,null,{"$f":"'AGENCY STRATEGY'!H236","v":0}]
[null,null,null,null,null,null,null,null,null,null,null,null,"Objective 3 Progress Summary",null,null,{"$f":"'AGENCY STRATEGY'!H282","v":0}]
[null,null,null,null,null,null,null,null,null,null,null,null,"Objective 4 Progress Summary",null,null,{"$f":"'AGENCY STRATEGY'!H328","v":0}]
[null,null,null,null,null,null,null,null,null,null,null,null,"Objective 5 Progress Summary",null,null,{"$f":"'AGENCY STRATEGY'!H374","v":0}]
[null,null,null,null,null,null,null,null,null,null,null,null,"Objective 1 Progress Date",null,null,{"$f":"IF('AGENCY STRATEGY'!H189=\"\",\"\",'AGENCY STRATEGY'!H189)","v":""}]
[null,null,null,null,null,null,null,null,null,null,null,null,"Objective 2 Progress Date",null,null,{"$f":"IF('AGENCY STRATEGY'!H235=\"\",\"\",'AGENCY STRATEGY'!H235)","v":""}]
[null,null,null,null,null,null,null,null,null,null,null,null,"Objective 3 Progress Date",null,null,{"$f":"IF('AGENCY STRATEGY'!H281=\"\",\"\",'AGENCY STRATEGY'!H281)","v":""}]
[null,null,null,null,null,null,null,null,null,null,null,null,"Objective 4 Progress Date",null,null,{"$f":"IF('AGENCY STRATEGY'!H327=\"\",\"\",'AGENCY STRATEGY'!H327)","v":""}]
[null,null,null,null,null,null,null,null,null,null,null,null,"Objective 5 Progress Date",null,null,{"$f":"IF('AGENCY STRATEGY'!H373=\"\",\"\",'AGENCY STRATEGY'!H373)","v":""}]